{"text_format":"3","workbook":"xlsx","n_sheets":14,"sheets":["Cover Sheet","E2994GXPOU Pump Data Addendum","Technical Clarifications","Q&As","Ankerlig - OCGT","Ankerlig - GAS1","Critical Spares","Drakensberg","Gariep","Gourikwa","Ingula P Station","Palmiet","Vanderkloof","Catalogue_Lookup"],"not_rendered":{"defined_names":1},"read":"whole","date_system":"1900"}

{"sheet":"Cover Sheet","index":0,"n_rows":53,"n_cols":2,"rows_kept":53,"merged":[[0,0,0,5],[1,0,1,5],[2,0,2,5],[3,0,3,5],[16,0,16,5],[17,0,17,5],[18,0,18,5],[19,0,19,5],[20,0,20,5],[21,0,21,5],[22,0,22,5],[23,0,23,5],[24,0,24,5],[25,0,25,5],[26,0,26,5],[27,0,27,5],[28,0,28,5],[29,0,29,5],[30,0,30,5],[31,0,31,5],[32,0,32,5],[33,0,33,5],[35,0,35,5],[51,0,51,5],[52,0,52,5]]}
["PUMP DATA PACKAGE - TENDER ADDENDUM"]
["TENDER E2994GXPOU"]
["SUPPLY AND DELIVERY OF PUMPS FOR 5 YEARS AT PEAKING OPERATING UNIT"]
["Contract Period: Five (5) Years on an 'As and When Required' Basis"]
[]
["KEY TENDER DATES:"]
["Issue Date:","29 May 2026"]
["Clarification Meeting:","17 June 2026 at 11:00 (via Microsoft Teams)"]
["Clarification Deadline:","5 working days before closing date"]
["Tender Closing Date:","27 August 2026 at 10:00 (EXTENDED)"]
["Tender Validity Period:","150 days from closing date"]
["ESKOM REPRESENTATIVE:"]
["Name:","Lorna Hendricks"]
["Email:","hendrial@eskom.co.za"]
["Tel:","021 941 5728"]
["NOTICE TO BIDDERS"]
["This document contains pump data as received from site end-users at various Peaking Power Stations."]
["REFERENCE DOCUMENTS (Available from Eskom Tender Bulletin and National Treasury E-Tender Portal):"]
["This Data Package must be read in conjunction with the Scope of Work and NEC Contract documents issued with Tender E2994GXPOU."]
["All tender documents are available from the Eskom Tender Bulletin and National Treasury E-Tender Portal."]
["MANDATORY REQUIREMENTS (Per ITT Section 3.13 - Functionality Criteria):"]
["• Tenderers MUST submit technical datasheets for all items quoted"]
["• Datasheets must demonstrate compliance with the minimum technical specifications"]
["• Failure to submit datasheets will result in zero score for functionality"]
["BIDDER GUIDANCE (For Data Package Completion):"]
["• If quoting: Provide technical datasheet demonstrating compliance with specifications"]
["• If not quoting: Indicate item is outside product range or capability"]
["• If information is insufficient: Submit Request for Information (RFI) via official channels before closing date"]
["EVALUATION PROCESS (Refer to ITT for full details):"]
["• Partial quotations permitted - Eskom reserves the right to award per item, per category, or per region (ITT Clause 1.6)"]
["• Alternative tenders are NOT allowed (ITT Clause 2.22)"]
["• Functionality evaluation applies with minimum threshold (ITT Section 3.13)"]
["• Preference point evaluation applies (ITT Clause 3.15)"]
["• Tenderers must refer to the full ITT document for complete evaluation criteria and weightings"]
["CLARIFICATIONS:"]
["Bidders may submit Requests for Information (RFIs) through official procurement channels."]
["DATA SUMMARY:"]
["Total Pump Records:",103]
["Number of Sites:",9]
["INCLUDED SITES:"]
["1. Ankerlig Power Station - GAS1"]
["2. Ankerlig Power Station - OCGT"]
["3. Critical Spares"]
["4. Drakensberg Pumped Storage Scheme"]
["5. Gariep Hydro Power Station"]
["6. Gourikwa OCGT Power Station"]
["7. Ingula Pumped Storage Scheme"]
["8. Palmiet Pumped Storage Scheme"]
["9. Vanderkloof Hydro Power Station"]
[]
["DATA POPULATION STATUS:"]
["Fields well populated (>70%): Pump Type (95%), Speed (83%), Size (81%), Driver Details (78%), Capacity (77%), Reference No. (74%)"]
["Fields requiring end-user input (<30%): OEM/Manufacturer (20%), Head (20%), Stage (20%), NPSH (19%), Mounting (17%), Body Material (16%)"]

{"sheet":"E2994GXPOU Pump Data Addendum","index":1,"n_rows":106,"n_cols":28,"rows_kept":106,"merged":[[0,0,0,24],[0,26,0,29],[2,0,2,24],[2,27,2,29],[3,27,3,29],[4,27,4,29],[5,27,5,29],[6,27,6,29],[7,27,7,29],[8,27,8,29],[9,27,9,29],[10,27,10,29]]}
[{"$nulls":26},"COLOR LEGEND"]
[]
[{"$nulls":27},"Missing Data"]
["Item of requisition","Material","Short Text","Storage Location","Full Description","OEM / Manufacturer","Pump Type","Size","Capacity / Flow","Head","Speed (RPM)","Stage","Body / Casing Material","Impeller Material","Driver / Motor Details","Connection Type","Seal / Packing Type","Medium / Application","Operating Temperature","Pressure / Rating","Reference / Part No.","NPSH","Mounting","Special Requirements","Supplier Comment",null,null,"Ankerlig"]
["10","0177401","PUMP RTRY:GEAR;90 MM;400 L/MIN;960 RPM","Drakensberg",{"$f":"IFERROR(VLOOKUP(TEXT(B5,\"0000000\"),Catalogue_Lookup!$A:$B,2,FALSE),\"\")","v":"PUMP, ROTARY: TYPE: GEAR; PORT SIZE: 90 MM; CAPACITY: 400 L/MIN; SPEED: 960 RPM; RATING: 490 KPA; REFERENCE NO: K6Q700082; DRIVER 380 VAC 15.5 A 3PH 50 HZ 7.5 KW"},null,"GEAR","90 MM","400 L/MIN",null,"960 RPM",{"$nulls":3},"7.5 KW; 380 VAC; 15.5 A",{"$nulls":4},"490 KPA","K6Q700082",{"$nulls":6},"Critical Spares"]
["20","0239820","ASSY:LUBE OIL PUMP;DIA 158 MM","Critical Spares",{"$f":"IFERROR(VLOOKUP(TEXT(B6,\"0000000\"),Catalogue_Lookup!$A:$B,2,FALSE),\"\")","v":"ASSEMBLY: TYPE: LUBE OIL PUMP; DIMENSIONS: DIA 158 MM; SUPPL P/N: NSS V50-160; REFERENCE NO: W-69-T-1330-GL112; 7045803; SPEED 2100 RPM, NSPH 1.6 M"},null,"LUBE OIL",{"$nulls":3},"2100 RPM, NSPH 1.6 M",{"$nulls":9},"NSS V50-160; W-69-T-1330-GL112",{"$nulls":6},"Drakensberg"]
["30","0239821","ASSY:LUBE OIL PUMP;DIA 230 MM","Critical Spares",{"$f":"IFERROR(VLOOKUP(TEXT(B7,\"0000000\"),Catalogue_Lookup!$A:$B,2,FALSE),\"\")","v":"ASSEMBLY: TYPE: LUBE OIL PUMP; DIMENSIONS: DIA 230 MM; SUPPL P/N: VSS V65-250; REFERENCE NO: 7045802; W-69-T-1330/200L; SPEED 2900 RPM"},null,"LUBE OIL",{"$nulls":3},"2900 RPM",{"$nulls":9},"VSS V65-250; 7045802",{"$nulls":6},"Gariep"]
["40","0553136","PUMP:PERISTALLIC DRAIN;DN4/6;300 CM3/HR","Ankerlig - OCGT",{"$f":"IFERROR(VLOOKUP(TEXT(B8,\"0000000\"),Catalogue_Lookup!$A:$B,2,FALSE),\"\")","v":"PUMP: TYPE: PERISTALLIC DRAIN; SIZE: DN4/6; CAPACITY: 300 CM3/HR; SPEED: 5 RPM; RATING: 200-2200 MBAR; DRIVER: ELECTRICAL MOTOR; SPECIFICATION: EN61010/50081/50082; POTENTIAL: 230 VAC; APPLICATION: OEMS CONDENSOR; MANUF P/N: SR25.2-W(01P1307); ENCLOSURE RATING: IP52; TEMP RATING: MAX 60 DEG C; TUBE CONNECTIONS: DN4/6 MM; M AND C; 230 VAC WITH CONNECTION TERMINALS FOR SURFACE AND WALL MOUNTING; IP10 EN60529; REPLACING SR25.1 P/N1P1000"},"M AND C","PERISTALTIC","DN4/6","300 CM3/HR",null,"5 RPM",{"$nulls":3},"ELECTRICAL MOTOR; 230 VAC","TERMINALS FOR SURFACE AND WALL MOUNTING",null,"OEMS CONDENSOR","MAX 60 DEG C","200-2200 MBAR","SR25.2-W(01P1307)",{"$nulls":6},"Gourikwa"]
["50","0553136","PUMP:PERISTALLIC DRAIN;DN4/6;300 CM3/HR","Gourikwa",{"$f":"IFERROR(VLOOKUP(TEXT(B9,\"0000000\"),Catalogue_Lookup!$A:$B,2,FALSE),\"\")","v":"PUMP: TYPE: PERISTALLIC DRAIN; SIZE: DN4/6; CAPACITY: 300 CM3/HR; SPEED: 5 RPM; RATING: 200-2200 MBAR; DRIVER: ELECTRICAL MOTOR; SPECIFICATION: EN61010/50081/50082; POTENTIAL: 230 VAC; APPLICATION: OEMS CONDENSOR; MANUF P/N: SR25.2-W(01P1307); ENCLOSURE RATING: IP52; TEMP RATING: MAX 60 DEG C; TUBE CONNECTIONS: DN4/6 MM; M AND C; 230 VAC WITH CONNECTION TERMINALS FOR SURFACE AND WALL MOUNTING; IP10 EN60529; REPLACING SR25.1 P/N1P1000"},"M AND C","PERISTALTIC","DN4/6","300 CM3/HR",null,"5 RPM",{"$nulls":3},"ELECTRICAL MOTOR; 230 VAC","TERMINALS FOR SURFACE AND WALL MOUNTING",null,"OEMS CONDENSOR","MAX 60 DEG C","200-2200 MBAR","SR25.2-W(01P1307)",{"$nulls":6},"Ingula"]
["60","0568041","PUMP:HEAD PERISTALTIC;4 MM;300 CM3/HR;5","Ankerlig - OCGT",{"$f":"IFERROR(VLOOKUP(TEXT(B10,\"0000000\"),Catalogue_Lookup!$A:$B,2,FALSE),\"\")","v":"PUMP: TYPE: HEAD PERISTALTIC; SIZE: 4 MM; CAPACITY: 300 CM3/HR; SPEED: 5 RPM; RATING: 1 KPA; DRIVER: ELECTRIC MOTOR; CASING MATERIAL: PLASTIC; MANUF P/N: 90P1030; USED ON CEMS SYSTEM"},null,"PERISTALTIC","4 MM","300 CM3/HR",null,"5 RPM",null,"PLASTIC",null,"ELECTRIC MOTOR",{"$nulls":4},"1 KPA","90P1030",{"$nulls":6},"Palmiet"]
["70","0568041","PUMP:HEAD PERISTALTIC;4 MM;300 CM3/HR;5","Gourikwa",{"$f":"IFERROR(VLOOKUP(TEXT(B11,\"0000000\"),Catalogue_Lookup!$A:$B,2,FALSE),\"\")","v":"PUMP: TYPE: HEAD PERISTALTIC; SIZE: 4 MM; CAPACITY: 300 CM3/HR; SPEED: 5 RPM; RATING: 1 KPA; DRIVER: ELECTRIC MOTOR; CASING MATERIAL: PLASTIC; MANUF P/N: 90P1030; USED ON CEMS SYSTEM"},null,"PERISTALTIC","4 MM","300 CM3/HR",null,"5 RPM",null,"PLASTIC",null,"ELECTRIC MOTOR",{"$nulls":4},"1 KPA","90P1030",{"$nulls":6},"Vanderkloof"]
["80","0570352","PUMP:PISTON;1 IN;59.4 L/MIN;1500/3300","Ankerlig - OCGT",{"$f":"IFERROR(VLOOKUP(TEXT(B12,\"0000000\"),Catalogue_Lookup!$A:$B,2,FALSE),\"\")","v":"PUMP: TYPE: PISTON; SIZE: 1 IN; CAPACITY: 59.4 L/MIN; SPEED: 1500/3300 RPM; RATING: 350 BAR; DRIVER: MOTOR; SPECIFICATION: A10 VS/018/31; APPLICATION: HYDRAULIC OIL SKID; MANUF P/N: A10 VS0 18; REFERENCE NO: R910949268"},"Rexroth","PISTON","1 IN","59.4 L/MIN",null,"1500/3300 RPM",{"$nulls":3},"MOTOR; 10 V",null,null,"HYDRAULIC OIL SKID",null,"350 BAR","A10 VS0 18; R910949268"]
["90","0570352","PUMP:PISTON;1 IN;59.4 L/MIN;1500/3300","Gourikwa",{"$f":"IFERROR(VLOOKUP(TEXT(B13,\"0000000\"),Catalogue_Lookup!$A:$B,2,FALSE),\"\")","v":"PUMP: TYPE: PISTON; SIZE: 1 IN; CAPACITY: 59.4 L/MIN; SPEED: 1500/3300 RPM; RATING: 350 BAR; DRIVER: MOTOR; SPECIFICATION: A10 VS/018/31; APPLICATION: HYDRAULIC OIL SKID; MANUF P/N: A10 VS0 18; REFERENCE NO: R910949268"},"Rexroth","PISTON","1 IN","59.4 L/MIN",null,"1500/3300 RPM",{"$nulls":3},"MOTOR; 10 V",null,null,"HYDRAULIC OIL SKID",null,"350 BAR","A10 VS0 18; R910949268"]
["100","0587283","STATOR PMP:SCREW;DIA 57 X LG 210 MM","Gourikwa",{"$f":"IFERROR(VLOOKUP(TEXT(B14,\"0000000\"),Catalogue_Lookup!$A:$B,2,FALSE),\"\")","v":"STATOR, PUMP: TYPE: SCREW; DIMENSIONS: DIA 57 X LG 210 MM; MATERIAL: STEEL/VITON RUBBER; MANUF P/N: 113011 0053D; SEEPEX BN1-6L; VENDORS ARE RESPONSIBLE FOR ENSURING THAT THEY ARE PERFORMING AGAINST THE CORRECT DRAWING REVISION NUMBER (IF APPLICABLE)."},"Seepex","SCREW",{"$nulls":13},"113011 0053D"]
["110","0764619","PUMP:CENTRIFUGAL;BS2400.402 HT243 ACRE","Drakensberg",{"$f":"IFERROR(VLOOKUP(TEXT(B15,\"0000000\"),Catalogue_Lookup!$A:$B,2,FALSE),\"\")","v":"PUMP: TYPE: CENTRIFUGAL; SIZE: BS2400.402 HT243 ACRE; CAPACITY: 25 L/S; SPEED: 2960 RPM; RATING: 90 KW , 380V, 155A ACRE; REFERENCE NO: BS2400.402 HT243"},null,"CENTRIFUGAL","BS2400.402 HT243 ACRE","25 L/S",null,"2960 RPM",{"$nulls":3},"90 KW; 380V; 243 A",{"$nulls":4},"90 KW , 380V, 155A ACRE","BS2400.402 HT243"]
["120","0767234","PUMP CNTRFGL:2.5 M;68 M3/HR;14.6 M;133;1","Ankerlig - GAS1",{"$f":"IFERROR(VLOOKUP(TEXT(B16,\"0000000\"),Catalogue_Lookup!$A:$B,2,FALSE),\"\")","v":"PUMP, CENTRIFUGAL: NPSH: 2.5 M; CAPACITY: 68 M3/HR; TOTAL HEAD: 14.6 M; SIZE: 133 MM; SPEED: 2900 RPM; STAGE: 1; TYPE: NSSV65-160; SHAFT DIAMETER: 0 ACRE; MANUF P/N: R.6001147; TYPE: NSSV65-160 DIA 133 W69-T-1330/132S-M,NR. R.6001147,Q:68 M3/H, H:14.6 M, N:2900 1/MIN, P:4.95 KW, NPSH:2.5 M, DENSITY:0.841 KG/DM3, VELOCITY:13.9 MM2/S"},"Allweiler","NSSV65-160","133 MM","68 M3/HR","14.6 M","2900 RPM",1,null,null,"4.95 KW; 0 A",{"$nulls":5},"R.6001147","2.5 M"]
["130","0767236","PUMP CNTRFGL:0 M;50 M3/S;35 M;161 MM;1;0","Ankerlig - GAS1",{"$f":"IFERROR(VLOOKUP(TEXT(B17,\"0000000\"),Catalogue_Lookup!$A:$B,2,FALSE),\"\")","v":"PUMP, CENTRIFUGAL: NPSH: 0 M; CAPACITY: 50 M3/S; TOTAL HEAD: 35 M; SIZE: 161 MM; SPEED: 2900 RPM; STAGE: 1; DRIVER: 11KW; TYPE: NT50-160; MOUNT: FOOT; SHAFT DIAMETER: 0 ACRE; MANUF P/N: S.6056434; TYPE NT50-160 DIA161 U3.20D-W64,"},"Allweiler","NT50-160","161 MM","50 M3/S","35 M","2900 RPM",1,null,null,"11KW; 0 A",{"$nulls":5},"S.6056434","0 M","FOOT"]
["140","0767237","PUMP CNTRFGL:0 M;172 M3/S;35 M;35 MM;1;0","Ankerlig - GAS1",{"$f":"IFERROR(VLOOKUP(TEXT(B18,\"0000000\"),Catalogue_Lookup!$A:$B,2,FALSE),\"\")","v":"PUMP, CENTRIFUGAL: NPSH: 0 M; CAPACITY: 172 M3/S; TOTAL HEAD: 35 M; SIZE: 35 MM; SPEED: 2900 RPM; STAGE: 1; DRIVER: 30KW; TYPE: NT80-200/02; MOUNT: FOOT; SHAFT DIAMETER: 0 ACRE; MANUF P/N: S.6056426; TYPE: NT80-200/02 DIA192 U3.20D-W119,"},"Allweiler","NT80-200/02","35 MM","172 M3/S","35 M","2900 RPM",1,null,null,"30KW; 0 A",{"$nulls":5},"S.6056426","0 M","FOOT"]
["150","0767474","PUMP:SINE CURVE GEAR PUMP;125 MM;5000;75","Drakensberg",{"$f":"IFERROR(VLOOKUP(TEXT(B19,\"0000000\"),Catalogue_Lookup!$A:$B,2,FALSE),\"\")","v":"PUMP: TYPE: SINE CURVE GEAR PUMP; SIZE: 125 MM; CAPACITY: 5000 L/S; SPEED: 725 RPM; RATING: 75 KW; APPLICATION: THRUST GUIDE BEARING OIL SYSTEM; DRAWING NO:"},null,"GEAR","125 MM","5000 L/S",null,"725 RPM",{"$nulls":3},"75 KW",null,null,"THRUST GUIDE BEARING OIL SYSTEM",null,"75 KW"]
["160","0767475","PUMP:GEAR PUMP;1½ IN;8 M3/HR;420 RPM;5","Drakensberg",{"$f":"IFERROR(VLOOKUP(TEXT(B20,\"0000000\"),Catalogue_Lookup!$A:$B,2,FALSE),\"\")","v":"PUMP: TYPE: GEAR PUMP; SIZE: 1½ IN; CAPACITY: 8 M3/HR; SPEED: 420 RPM; RATING: 5 HP; APPLICATION: OIL STORAGE BULK TANKS; MODEL NO:"},null,"GEAR","1½ IN","8 M3/HR",null,"420 RPM",{"$nulls":6},"OIL STORAGE BULK TANKS",null,"5 HP"]
["170","0767484","PUMP CNTRFGL:5.24 M;108.6 M3/S;63.30 M;1","Drakensberg",{"$f":"IFERROR(VLOOKUP(TEXT(B21,\"0000000\"),Catalogue_Lookup!$A:$B,2,FALSE),\"\")","v":"PUMP, CENTRIFUGAL: NPSH: 5.24 M; CAPACITY: 108.6 M3/S; TOTAL HEAD: 63.30 M; SIZE: CP 80 - 216 ACRE; SPEED: 2950 RPM; STAGE: 1; TYPE: CENTRIFUGAL PUMP; MOUNT: HORIZONTAL; MODEL NO:"},null,"CENTRIFUGAL","CP 80 - 216 ACRE","108.6 M3/S","63.30 M","2950 RPM",1,null,null,"216 A",{"$nulls":6},"5.24 M","HORIZONTAL"]
["180","0767572","PUMP:LB 17;J-80/80-E-C ACRE;530 L/MIN","Drakensberg",{"$f":"IFERROR(VLOOKUP(TEXT(B22,\"0000000\"),Catalogue_Lookup!$A:$B,2,FALSE),\"\")","v":"PUMP: TYPE: LB 17; SIZE: J-80/80-E-C ACRE; CAPACITY: 530 L/MIN; SPEED: 2900 RPM; RATING: 59.9 KPA; APPLICATION: GORVENOR OIL SYSTEM; MODEL NO:"},null,"LB 17","J-80/80-E-C ACRE","530 L/MIN",null,"2900 RPM",{"$nulls":6},"GORVENOR OIL SYSTEM",null,"59.9 KPA"]
["190","0767574","PUMP:CENTRIFUGAL PUMP;12x10x17 IN;1480","Drakensberg",{"$f":"IFERROR(VLOOKUP(TEXT(B23,\"0000000\"),Catalogue_Lookup!$A:$B,2,FALSE),\"\")","v":"PUMP: TYPE: CENTRIFUGAL PUMP; SIZE: 12x10x17 IN; CAPACITY: 300 - 400 L/S; SPEED: 1480 RPM; RATING: 400 V; DRIVER: 110 KW; APPLICATION: MAIN COOLING WATER SYSTEM; MODEL NO: PWO 12X10X17 / P12/ 10-17"},null,"CENTRIFUGAL","12x10x17 IN","300 - 400 L/S",null,"1480 RPM",{"$nulls":3},"110 KW; 400 V",null,null,"MAIN COOLING WATER SYSTEM",null,"400 V","PWO 12X10X17 / P12/ 10-17"]
["200","0767604","PUMP:CENTRIFUGAL PUMP;10x8x17 IN;980 RPM","Drakensberg",{"$f":"IFERROR(VLOOKUP(TEXT(B24,\"0000000\"),Catalogue_Lookup!$A:$B,2,FALSE),\"\")","v":"PUMP: TYPE: CENTRIFUGAL PUMP; SIZE: 10x8x17 IN; CAPACITY: 200 - 400 L/S; SPEED: 980 RPM; RATING: 380 V; DRIVER: 55 KW; APPLICATION: COMMON SERVICES COOLING SYSTEM; MODEL NO:"},null,"CENTRIFUGAL","10x8x17 IN","200 - 400 L/S",null,"980 RPM",{"$nulls":3},"55 KW; 380 V",null,null,"COMMON SERVICES COOLING SYSTEM",null,"380 V"]
["210","0643672","PUMP:HYDRAULIC VANE;1465 RPM;300 BAR","Gourikwa",{"$f":"IFERROR(VLOOKUP(TEXT(B25,\"0000000\"),Catalogue_Lookup!$A:$B,2,FALSE),\"\")","v":"PUMP: TYPE: HYDRAULIC VANE; SIZE: SUCTION DIA X 38.1; PRESSURE DIA 25.4 MM; SPEED: 1465 RPM; RATING: 300 BAR; DRIVER: ELECTRIC MOTOR; SPECIFICATION: T7BB112R00A5M0; APPLICATION: MBV LIFTING OIL; SUPPL P/N: 054-34367-500; DENISON"},"DENISON","HYDRAULIC VANE","SUCTION DIA X 38.1",null,null,"1465 RPM",{"$nulls":3},"ELECTRIC MOTOR; 00A",null,null,"MBV LIFTING OIL",null,"300 BAR","054-34367-500"]
["220","0684709","PUMP:DOSING;0-10 BAR;0-10 BAR, 11 WATTS","Ankerlig - OCGT",{"$f":"IFERROR(VLOOKUP(TEXT(B26,\"0000000\"),Catalogue_Lookup!$A:$B,2,FALSE),\"\")","v":"PUMP: TYPE: DOSING; SIZE: 0-10 BAR; CAPACITY: 0-10 BAR, 11 WATTS; SPEED: VARIABLE; RATING: 10 BAR, FLOW RATE 3 L/HOUR; DRIVER: INCLUDED; SPECIFICATION: ISO; POTENTIAL: 220-240 VAC; CASING MATERIAL: PVC; APPLICATION: DOSING; SUPPL P/N: 208-3.0-10000"},null,"DOSING","0-10 BAR","0-10 BAR, 11 WATTS",null,"VARIABLE",null,"PVC",null,"INCLUDED; 240 VAC",null,null,"DOSING",null,"10 BAR, FLOW RATE 3 L/HOUR","208-3.0-10000"]
["230","0684709","PUMP:DOSING;0-10 BAR;0-10 BAR, 11 WATTS","Gourikwa",{"$f":"IFERROR(VLOOKUP(TEXT(B27,\"0000000\"),Catalogue_Lookup!$A:$B,2,FALSE),\"\")","v":"PUMP: TYPE: DOSING; SIZE: 0-10 BAR; CAPACITY: 0-10 BAR, 11 WATTS; SPEED: VARIABLE; RATING: 10 BAR, FLOW RATE 3 L/HOUR; DRIVER: INCLUDED; SPECIFICATION: ISO; POTENTIAL: 220-240 VAC; CASING MATERIAL: PVC; APPLICATION: DOSING; SUPPL P/N: 208-3.0-10000"},null,"DOSING","0-10 BAR","0-10 BAR, 11 WATTS",null,"VARIABLE",null,"PVC",null,"INCLUDED; 240 VAC",null,null,"DOSING",null,"10 BAR, FLOW RATE 3 L/HOUR","208-3.0-10000"]
["240","0754580","PUMP:AUX SUBMERSIBLE;H991 X D500 MM;160","Vanderkloof",{"$f":"IFERROR(VLOOKUP(TEXT(B28,\"0000000\"),Catalogue_Lookup!$A:$B,2,FALSE),\"\")","v":"PUMP: TYPE: AUX SUBMERSIBLE; SIZE: H991 X D500 MM; CAPACITY: 160 M3/HR; SPEED: 2895 RPM; RATING: 18 KW; APPLICATION: AUXILARY SUMP PUMP; SUPPL P/N: BS2870HT 3~251 FLYGT; BS2870HT3- 251, SUBMERSIBLE PUMP, HIGH HEAD, 18 KW 3-PHASE, 400 VOLT, 2895RPM"},"FLYGT","SUBMERSIBLE","H991 X D500 MM","160 M3/HR",null,"2895 RPM",{"$nulls":3},"18 KW; 400 V",null,null,"AUXILARY SUMP PUMP",null,"18 KW","BS2870HT 3~251 FLYGT"]
["250","0755878","PUMP:ETANORM 150-125-315 GB10;305 MM;216","Drakensberg",{"$f":"IFERROR(VLOOKUP(TEXT(B29,\"0000000\"),Catalogue_Lookup!$A:$B,2,FALSE),\"\")","v":"PUMP: TYPE: ETANORM 150-125-315 GB10; SIZE: 305 MM; CAPACITY: 216 M3/HR; SPEED: 147 RPM; RATING: 216 M3/HR; DRIVER: 21.71 KW; POTENTIAL: 380 V; APPLICATION: CIRCULATING WATER IN CHILLER PLANT; SUPPL P/N: 9974643299/100/2; P/N TYPE:"},null,"ETANORM 150-125-315 GB10","305 MM","216 M3/HR",null,"147 RPM",{"$nulls":3},"21.71 KW; 380 V",null,null,"CIRCULATING WATER IN CHILLER PLANT",null,"216 M3/HR","9974643299/100/2"]
["260","0760054","PUMP:NSSV80-250 ∅ 226;W69-T-1230/225M-2","Ankerlig - GAS1",{"$f":"IFERROR(VLOOKUP(TEXT(B30,\"0000000\"),Catalogue_Lookup!$A:$B,2,FALSE),\"\")","v":"PUMP: TYPE: NSSV80-250 ∅ 226; SIZE: W69-T-1230/225M-2; CAPACITY: 96-164 M3/HR; SPEED: 2900 RPM; RATING: 205 BAR; DRIVER: 33.8 KW"},"Allweiler","NSSV80-250 ∅ 226","W69-T-1230/225M-2","96-164 M3/HR",null,"2900 RPM",{"$nulls":3},"33.8 KW",{"$nulls":4},"205 BAR"]
["270","0763291","PUMP CNTRFGL:1.8 M;80 M3/HR;60 M;DIA 400","Gourikwa",{"$f":"IFERROR(VLOOKUP(TEXT(B31,\"0000000\"),Catalogue_Lookup!$A:$B,2,FALSE),\"\")","v":"PUMP, CENTRIFUGAL: NPSH: 1.8 M; CAPACITY: 80 M3/HR; TOTAL HEAD: 60 M; SIZE: DIA 400 MM; SPEED: 1460 RPM; STAGE: 1; DRIVER: BHP: 19.3 KW, MOTOR: 30 KW; TYPE: FUEL TREATMENT; SPECIFICATION: PUMP TYPE: CENTRIFUGAL,  KRC-80F/400-100/GN, Q: 80 M3/H, H: 60M, BHP: 19.3 KW, SPED: 1460 RPM, PUMPING MEDIUM: DIESEL; MOUNT: HORIZONTAL; MANUF P/N:  KRC-80F/400-100/GN, SERIAL NUMBER:1277485/01-1, APOLLO GÖSSNITZ GMBH"},"APOLLO GÖSSNITZ","FUEL TREATMENT","DIA 400 MM","80 M3/HR","60 M","1460 RPM",1,null,null,"19.3 KW",null,null,"DIESEL",null,null,"KRC-80F/400-100/GN, SERIAL NUMBER:1277485/01-1, APOLLO GÖSSNITZ GMBH","1.8 M","HORIZONTAL"]
["280","0763617","ASSY:D-78315;NB80-200/02 Ø192","Ankerlig - GAS1",{"$f":"IFERROR(VLOOKUP(TEXT(B32,\"0000000\"),Catalogue_Lookup!$A:$B,2,FALSE),\"\")","v":"ASSEMBLY: TYPE: NB80-200/02 Ø192; APPLICATION: COOLING WATER PUMP; OEM P/N: D-78315; TYPE: NB80-200/02 Ø192; U3.20D-W119-55/400,NR. :R.6009079,Q: 172M³/H; H:35MM; N:2900 1/M; P:23.1KW; V:0.65MM²/S,0.992KG/DM³"},"Allweiler","NB80-200/02 Ø192",{"$nulls":7},"23.1KW",null,null,"COOLING WATER PUMP",null,null,"D-78315"]
["290","0763618","ASSY:D-78315;NB50-160;COOLING WATER PUMP","Ankerlig - GAS1",{"$f":"IFERROR(VLOOKUP(TEXT(B33,\"0000000\"),Catalogue_Lookup!$A:$B,2,FALSE),\"\")","v":"ASSEMBLY: TYPE: NB50-160; APPLICATION: COOLING WATER PUMP; OEM P/N: D-78315; TYPE: NB50-160 Ø 162; U3.20.D-W64-42/350,NR. :R.6009090,Q: 54M³/H; H:35MM; N:2900 1/M; P:7.1KW; V:0.65MM²/S,0.992KG/DM³"},"Allweiler","NB50-160",{"$nulls":7},"7.1KW",null,null,"COOLING WATER PUMP",null,null,"D-78315"]
["300","0764619","PUMP:CENTRIFUGAL;BS2400.402 HT243 ACRE","Drakensberg",{"$f":"IFERROR(VLOOKUP(TEXT(B34,\"0000000\"),Catalogue_Lookup!$A:$B,2,FALSE),\"\")","v":"PUMP: TYPE: CENTRIFUGAL; SIZE: BS2400.402 HT243 ACRE; CAPACITY: 25 L/S; SPEED: 2960 RPM; RATING: 90 KW , 380V, 155A ACRE; REFERENCE NO: BS2400.402 HT243"},null,"CENTRIFUGAL","BS2400.402 HT243 ACRE","25 L/S",null,"2960 RPM",{"$nulls":3},"90 KW; 380V; 243 A",{"$nulls":4},"90 KW , 380V, 155A ACRE","BS2400.402 HT243"]
["310","0767234","PUMP CNTRFGL:2.5 M;68 M3/HR;14.6 M;133;1","Ankerlig - GAS1",{"$f":"IFERROR(VLOOKUP(TEXT(B35,\"0000000\"),Catalogue_Lookup!$A:$B,2,FALSE),\"\")","v":"PUMP, CENTRIFUGAL: NPSH: 2.5 M; CAPACITY: 68 M3/HR; TOTAL HEAD: 14.6 M; SIZE: 133 MM; SPEED: 2900 RPM; STAGE: 1; TYPE: NSSV65-160; SHAFT DIAMETER: 0 ACRE; MANUF P/N: R.6001147; TYPE: NSSV65-160 DIA 133 W69-T-1330/132S-M,NR. R.6001147,Q:68 M3/H, H:14.6 M, N:2900 1/MIN, P:4.95 KW, NPSH:2.5 M, DENSITY:0.841 KG/DM3, VELOCITY:13.9 MM2/S"},"Allweiler","NSSV65-160","133 MM","68 M3/HR","14.6 M","2900 RPM",1,null,null,"4.95 KW; 0 A",{"$nulls":5},"R.6001147","2.5 M"]
["320","0767236","PUMP CNTRFGL:0 M;50 M3/S;35 M;161 MM;1;0","Ankerlig - GAS1",{"$f":"IFERROR(VLOOKUP(TEXT(B36,\"0000000\"),Catalogue_Lookup!$A:$B,2,FALSE),\"\")","v":"PUMP, CENTRIFUGAL: NPSH: 0 M; CAPACITY: 50 M3/S; TOTAL HEAD: 35 M; SIZE: 161 MM; SPEED: 2900 RPM; STAGE: 1; DRIVER: 11KW; TYPE: NT50-160; MOUNT: FOOT; SHAFT DIAMETER: 0 ACRE; MANUF P/N: S.6056434; TYPE NT50-160 DIA161 U3.20D-W64,"},"Allweiler","NT50-160","161 MM","50 M3/S","35 M","2900 RPM",1,null,null,"11KW; 0 A",{"$nulls":5},"S.6056434","0 M","FOOT"]
["330","0767237","PUMP CNTRFGL:0 M;172 M3/S;35 M;35 MM;1;0","Ankerlig - GAS1",{"$f":"IFERROR(VLOOKUP(TEXT(B37,\"0000000\"),Catalogue_Lookup!$A:$B,2,FALSE),\"\")","v":"PUMP, CENTRIFUGAL: NPSH: 0 M; CAPACITY: 172 M3/S; TOTAL HEAD: 35 M; SIZE: 35 MM; SPEED: 2900 RPM; STAGE: 1; DRIVER: 30KW; TYPE: NT80-200/02; MOUNT: FOOT; SHAFT DIAMETER: 0 ACRE; MANUF P/N: S.6056426; TYPE: NT80-200/02 DIA192 U3.20D-W119,"},"Allweiler","NT80-200/02","35 MM","172 M3/S","35 M","2900 RPM",1,null,null,"30KW; 0 A",{"$nulls":5},"S.6056426","0 M","FOOT"]
["340","0767474","PUMP:SINE CURVE GEAR PUMP;125 MM;5000;75","Drakensberg",{"$f":"IFERROR(VLOOKUP(TEXT(B38,\"0000000\"),Catalogue_Lookup!$A:$B,2,FALSE),\"\")","v":"PUMP: TYPE: SINE CURVE GEAR PUMP; SIZE: 125 MM; CAPACITY: 5000 L/S; SPEED: 725 RPM; RATING: 75 KW; APPLICATION: THRUST GUIDE BEARING OIL SYSTEM; DRAWING NO:"},null,"GEAR","125 MM","5000 L/S",null,"725 RPM",{"$nulls":3},"75 KW",null,null,"THRUST GUIDE BEARING OIL SYSTEM",null,"75 KW"]
["350","0767475","PUMP:GEAR PUMP;1½ IN;8 M3/HR;420 RPM;5","Drakensberg",{"$f":"IFERROR(VLOOKUP(TEXT(B39,\"0000000\"),Catalogue_Lookup!$A:$B,2,FALSE),\"\")","v":"PUMP: TYPE: GEAR PUMP; SIZE: 1½ IN; CAPACITY: 8 M3/HR; SPEED: 420 RPM; RATING: 5 HP; APPLICATION: OIL STORAGE BULK TANKS; MODEL NO:"},null,"GEAR","1½ IN","8 M3/HR",null,"420 RPM",{"$nulls":6},"OIL STORAGE BULK TANKS",null,"5 HP"]
["360","0767484","PUMP CNTRFGL:5.24 M;108.6 M3/S;63.30 M;1","Drakensberg",{"$f":"IFERROR(VLOOKUP(TEXT(B40,\"0000000\"),Catalogue_Lookup!$A:$B,2,FALSE),\"\")","v":"PUMP, CENTRIFUGAL: NPSH: 5.24 M; CAPACITY: 108.6 M3/S; TOTAL HEAD: 63.30 M; SIZE: CP 80 - 216 ACRE; SPEED: 2950 RPM; STAGE: 1; TYPE: CENTRIFUGAL PUMP; MOUNT: HORIZONTAL; MODEL NO:"},null,"CENTRIFUGAL","CP 80 - 216 ACRE","108.6 M3/S","63.30 M","2950 RPM",1,null,null,"216 A",{"$nulls":6},"5.24 M","HORIZONTAL"]
["370","0767572","PUMP:LB 17;J-80/80-E-C ACRE;530 L/MIN","Drakensberg",{"$f":"IFERROR(VLOOKUP(TEXT(B41,\"0000000\"),Catalogue_Lookup!$A:$B,2,FALSE),\"\")","v":"PUMP: TYPE: LB 17; SIZE: J-80/80-E-C ACRE; CAPACITY: 530 L/MIN; SPEED: 2900 RPM; RATING: 59.9 KPA; APPLICATION: GORVENOR OIL SYSTEM; MODEL NO:"},null,"LB 17","J-80/80-E-C ACRE","530 L/MIN",null,"2900 RPM",{"$nulls":6},"GORVENOR OIL SYSTEM",null,"59.9 KPA"]
["380","0767574","PUMP:CENTRIFUGAL PUMP;12x10x17 IN;1480","Drakensberg",{"$f":"IFERROR(VLOOKUP(TEXT(B42,\"0000000\"),Catalogue_Lookup!$A:$B,2,FALSE),\"\")","v":"PUMP: TYPE: CENTRIFUGAL PUMP; SIZE: 12x10x17 IN; CAPACITY: 300 - 400 L/S; SPEED: 1480 RPM; RATING: 400 V; DRIVER: 110 KW; APPLICATION: MAIN COOLING WATER SYSTEM; MODEL NO: PWO 12X10X17 / P12/ 10-17"},null,"CENTRIFUGAL","12x10x17 IN","300 - 400 L/S",null,"1480 RPM",{"$nulls":3},"110 KW; 400 V",null,null,"MAIN COOLING WATER SYSTEM",null,"400 V","PWO 12X10X17 / P12/ 10-17"]
["390","0767604","PUMP:CENTRIFUGAL PUMP;10x8x17 IN;980 RPM","Drakensberg",{"$f":"IFERROR(VLOOKUP(TEXT(B43,\"0000000\"),Catalogue_Lookup!$A:$B,2,FALSE),\"\")","v":"PUMP: TYPE: CENTRIFUGAL PUMP; SIZE: 10x8x17 IN; CAPACITY: 200 - 400 L/S; SPEED: 980 RPM; RATING: 380 V; DRIVER: 55 KW; APPLICATION: COMMON SERVICES COOLING SYSTEM; MODEL NO:"},null,"CENTRIFUGAL","10x8x17 IN","200 - 400 L/S",null,"980 RPM",{"$nulls":3},"55 KW; 380 V",null,null,"COMMON SERVICES COOLING SYSTEM",null,"380 V"]
["400","0023664","PUMP RTRY:GEAR;220 GAL/MIN;960 RPM;28.44","Gariep",{"$f":"IFERROR(VLOOKUP(TEXT(B44,\"0000000\"),Catalogue_Lookup!$A:$B,2,FALSE),\"\")","v":"PUMP, ROTARY: TYPE: GEAR; CAPACITY: 220 GAL/MIN; SPEED: 960 RPM; RATING: 28.44 LB; REFERENCE NO: EP8360455; ENCLOSED PORT SIZE; OIL CIRC GEN BEARING"},null,"GEAR",null,"220 GAL/MIN",null,"960 RPM",{"$nulls":8},"28.44 LB","EP8360455"]
["410","0046403","SHAFT PMP:LG 717 MM;STL;92 MM","Drakensberg",{"$f":"IFERROR(VLOOKUP(TEXT(B45,\"0000000\"),Catalogue_Lookup!$A:$B,2,FALSE),\"\")","v":"SHAFT, PUMP: LENGTH: 717 MM; MATERIAL: STL; NOMINAL DIAMETER: 92 MM; END STYLE 1: DIA 60 X SLOT 18 MM; END STYLE 2: DIA 57 X THD 12 MM; REFERENCE NO: 5-007-0"},{"$nulls":15},"5-007-0"]
["420","0046406","SHAFT PMP:LG 493 MM;STL;20 MM","Drakensberg",{"$f":"IFERROR(VLOOKUP(TEXT(B46,\"0000000\"),Catalogue_Lookup!$A:$B,2,FALSE),\"\")","v":"SHAFT, PUMP: LENGTH: 493 MM; MATERIAL: STL; NOMINAL DIAMETER: 20 MM; END STYLE 1: DIA 24 X SLOT 8 MM; END STYLE 2: DIA 16 X THD 1.5 MM; SUPPL P/N: 210; FOR K.S.B. ETA-B40- 26AK CENTRIFUGAL PUMP; IMPELLER DIA. 238MM"},null,"CENTRIFUGAL",{"$nulls":7},"26A",{"$nulls":5},210]
["430","0049532","PUMP RTRY:HYDRAULIC DOUBLE SCREW;50 MM","Drakensberg",{"$f":"IFERROR(VLOOKUP(TEXT(B47,\"0000000\"),Catalogue_Lookup!$A:$B,2,FALSE),\"\")","v":"PUMP, ROTARY: TYPE: HYDRAULIC DOUBLE SCREW; PORT SIZE: 50 MM; CAPACITY: 520 L/MIN; SPEED: 2920 RPM; RATING: 60 BAR; REFERENCE NO: LB 17-80/80-E-C; POWER INPUT 54 KW, PUMPING LIQUID: HYDR.OIL VISCOSITY 38 DEG E, OPERATING TEMPERATURE: 50 DEG C"},null,"HYDRAULIC","50 MM","520 L/MIN",null,"2920 RPM",{"$nulls":3},"54 KW",{"$nulls":3},"50 DEG C","60 BAR","LB 17-80/80-E-C"]
["440","0140716","PUMP ASSY:MOTOR;CA90 CALPEDA SPA","Palmiet",{"$f":"IFERROR(VLOOKUP(TEXT(B48,\"0000000\"),Catalogue_Lookup!$A:$B,2,FALSE),\"\")","v":"PUMP, ASSEMBLY: TYPE: MOTOR; REFERENCE NO: CA90 CALPEDA SPA; RATING 220/380 VOLT; 3/1.73 AMP; 0.75HP; 0.55KW; 2900RPM; 50HZ; 3 PHASE; DELEVERY 8/40 M 42/17; VENDORS ARE RESPONSIBLE FOR ENSURING THAT THEY ARE PERFORMING AGAINST THE CORRECT DRAWING REVISION NUMBER (IF APPLICABLE)."},"CALPEDA","MOTOR",{"$nulls":7},"0.55KW; 380 V; 1.73 AMP",{"$nulls":4},"220/380 VOLT","CA90 CALPEDA SPA"]
["450","0250735","PUMP CNTRFGL:4.1 M;124 M3/HR;1.091 KM;13","Gourikwa",{"$f":"IFERROR(VLOOKUP(TEXT(B49,\"0000000\"),Catalogue_Lookup!$A:$B,2,FALSE),\"\")","v":"PUMP, CENTRIFUGAL: NPSH: 4.1 M; CAPACITY: 124 M3/HR; TOTAL HEAD: 1.091 KM; SPEED: 2980 RPM; STAGE: 13; DRIVER: ELECTRIC MOTOR; TYPE: FUEL OIL INJECTION; MOUNT: BASE"},"Sulzer","FUEL OIL INJECTION",null,"124 M3/HR","1.091 KM","2980 RPM",13,null,null,"ELECTRIC MOTOR",{"$nulls":6},"4.1 M","BASE"]
["460","0562732","PUMP CNTRFGL:2.4 M;600 M3/HR;71.2 M;1450","Drakensberg",{"$f":"IFERROR(VLOOKUP(TEXT(B50,\"0000000\"),Catalogue_Lookup!$A:$B,2,FALSE),\"\")","v":"PUMP, CENTRIFUGAL: NPSH: 2.4 M; CAPACITY: 600 M3/HR; TOTAL HEAD: 71.2 M; SIZE: 200 X 250; SPEED: 1450 RPM; STAGE: 1; DRIVER: ELECTRIC MOTOR; TYPE: SLUICE HP; SPECIFICATION: KSB; SHAFT DIAMETER: 70 MM; REFERENCE NO: ZAN-28833; APPLICATION: TO BE FITTED WITH A 456 MM DOUBLE ENTRY IMPELLER; OMEGA 200-520A"},"KSB","SLUICE HP","200 X 250","600 M3/HR","71.2 M","1450 RPM",1,null,null,"ELECTRIC MOTOR; 520A",null,null,"TO BE FITTED WITH A 456 MM DOUBLE ENTRY IMPELLER",null,null,"ZAN-28833","2.4 M"]
["470","0581218","PUMP CNTRFGL:0;39 L/S;49 M;856 MM;1450","Drakensberg",{"$f":"IFERROR(VLOOKUP(TEXT(B51,\"0000000\"),Catalogue_Lookup!$A:$B,2,FALSE),\"\")","v":"PUMP, CENTRIFUGAL: NPSH: 0; CAPACITY: 39 L/S; TOTAL HEAD: 49 M; SIZE: 856 MM; SPEED: 1450 RPM; STAGE: SINGLE; TYPE: SUBMERSIBLE; REFERENCE NO: MJP 053 4054; 150MH-SBO-4P55-D150-HZ-02; POWER INSTALLED: 55KW; VOLTAGE: 400V; AMPS: 105A FULL LOAD; PUMP WEIGHT: 1184KG; HYDRAULIC END; IMPELLER TYPE: OPEN VANE; IMPELLER DIAMETER 394MM; VANE HEIGHT: 24MM; NUMBER OF VANES IS 5; MAX SPHERE THROUGH IMPELLER: 30MM PRODUCT PUMPED SLURRY; PUMP TOTAL LENGTH: 1648; DISCHARGE FLANGE DETAIL: 150 NOM TO BS4504 1613 OD: 288MM 8 HOLE FLANGE PCD: 240"},null,"SUBMERSIBLE","856 MM","39 L/S","49 M","1450 RPM","SINGLE",null,null,"55KW; 400V; 105A",{"$nulls":5},"MJP 053 4054",0]
["480","0586241","PUMP CNTRFGL:1 M;130 M3/HR;42.2 M;2940","Drakensberg",{"$f":"IFERROR(VLOOKUP(TEXT(B52,\"0000000\"),Catalogue_Lookup!$A:$B,2,FALSE),\"\")","v":"PUMP, CENTRIFUGAL: NPSH: 1 M; CAPACITY: 130 M3/HR; TOTAL HEAD: 42.2 M; SIZE: 100 X 80; SPEED: 2940 RPM; STAGE: SINGLE; MANUF P/N: KSBETANORM100-080-200GGA10GA302202B; REFERENCE NO: M063/11E; SUCTION DIAMETER: DN100; DISCHARGE DIAMETER: DN80; CODE:9972464992"},"KSB","CENTRIFUGAL","100 X 80","130 M3/HR","42.2 M","2940 RPM","SINGLE",{"$nulls":8},"KSBETANORM100-080-200GGA10GA302202B; M063/11E","1 M"]
["490","0620403","PUMP RTRY:VANES;1 X 1-1/2 IN;29 CM3;980","Ingula P Station",{"$f":"IFERROR(VLOOKUP(TEXT(B53,\"0000000\"),Catalogue_Lookup!$A:$B,2,FALSE),\"\")","v":"PUMP, ROTARY: TYPE: VANES; PORT SIZE: 1 X 1-1/2 IN; CAPACITY: 29 CM3; SPEED: 980 RPM; RATING: 21 MPA; DRIVER: ELECTRIC MOTOR; APPLICATION: GENERATOR; MOUNT: FOOT; OEM P/N: A10VO28DR/31R-PPC12N00M; DRAWING NO: M680-5V7129CP2 REV 0; REXROTH"},"REXROTH","VANES","1 X 1-1/2 IN","29 CM3",null,"980 RPM",null,null,"N/A (VANE PUMP )","ELECTRIC MOTOR; 10V","Spider coupling","LIP SEAL","GENERATOR",null,"21 MPA","A10VO28DR/31R-PPC12N00M; M680-5V7129CP2 REV 0",null,"FOOT"]
["500","0627091","PUMP:HYDRAULIC;1-1/2 IN;41 L/MIN;1465","Gourikwa",{"$f":"IFERROR(VLOOKUP(TEXT(B54,\"0000000\"),Catalogue_Lookup!$A:$B,2,FALSE),\"\")","v":"PUMP: TYPE: HYDRAULIC; SIZE: 1-1/2 IN; CAPACITY: 41 L/MIN; SPEED: 1465 RPM; RATING: 320 BAR; DRIVER: MOTOR; POTENTIAL: 400 V; APPLICATION: MBV LIFT OIL GAS1; REFERENCE NO: T7B B09 2R00"},"Denison","HYDRAULIC","1-1/2 IN","41 L/MIN",null,"1465 RPM",{"$nulls":3},"MOTOR; 400 V",null,null,"MBV LIFT OIL GAS1",null,"320 BAR","T7B B09 2R00"]
["510","0644796","MOTOR:PUMP MOTOR;2/3 MIN","Ankerlig - GAS1",{"$f":"IFERROR(VLOOKUP(TEXT(B55,\"0000000\"),Catalogue_Lookup!$A:$B,2,FALSE),\"\")","v":"MOTOR: TYPE: PUMP MOTOR; RATING: 2/3 MIN; SPECIFICATION: ABB BREAKER HECS-805; SUPPL P/N: GPFX052220R0002; VOLTAGE 220-250 VDC; POWER 660W"},"ABB",{"$nulls":8},"250 VDC",{"$nulls":4},"2/3 MIN","GPFX052220R0002"]
["520","0644796","MOTOR:PUMP MOTOR;2/3 MIN","Gourikwa",{"$f":"IFERROR(VLOOKUP(TEXT(B56,\"0000000\"),Catalogue_Lookup!$A:$B,2,FALSE),\"\")","v":"MOTOR: TYPE: PUMP MOTOR; RATING: 2/3 MIN; SPECIFICATION: ABB BREAKER HECS-805; SUPPL P/N: GPFX052220R0002; VOLTAGE 220-250 VDC; POWER 660W"},"ABB",{"$nulls":8},"250 VDC",{"$nulls":4},"2/3 MIN","GPFX052220R0002"]
["530","0650096","PUMP RCPRTG:DIAPHRAGM DOSING","Drakensberg",{"$f":"IFERROR(VLOOKUP(TEXT(B57,\"0000000\"),Catalogue_Lookup!$A:$B,2,FALSE),\"\")","v":"PUMP, RECIPROCATING: TYPE: DIAPHRAGM DOSING; SUPPL P/N: 251-5-10046"},null,"DIAPHRAGM",{"$nulls":13},"251-5-10046"]
["540",658356,"ASSY:OIL PUMP;INLET VLV CTRL;STL","Ingula P Station",{"$f":"IFERROR(VLOOKUP(TEXT(B58,\"0000000\"),Catalogue_Lookup!$A:$B,2,FALSE),\"\")","v":"ASSEMBLY: TYPE: OIL PUMP; APPLICATION: INLET VLV CTRL; DIMENSIONS: LG 1070 X HT 540 MM; MATERIAL: STEEL; COMPRISING: MOTOR AND PUMP; B35 DF; IPV5-64 171 EXTENSION PIECE; MOTOR SPECIFICATIONS: REFERENCE NUMBER 5013480609-1; PHASE 3; INSULATION CLASS F; ENCLOSURE RATING IP 55, FRAME IM B35 (400); POWER 30 KW; VOLTAGE 400/690 V; POWER FACTOR 0.86; AMPERAGE 54.6/31.5A; SPEED 1465 RPM; ARTICAL NUMBER 250-00705410; KUENLE; STANDARD ISO 9001"},"VOITH","Gear Pump","LG1070 X HT540MM",null,null,"1465 RPM","1 STAGE",null,"N/A  (GEAR PUMP)","30 KW; 690 V; 31.5A","SAE HOLE FLANGE",null,"INLET VLV CTRL",null,"IP 55, FRAME IM B35 (400)"]
["550","0658358","ASSY:LUBE OIL PUMP;TURBINE;STL","Ingula P Station",{"$f":"IFERROR(VLOOKUP(TEXT(B59,\"0000000\"),Catalogue_Lookup!$A:$B,2,FALSE),\"\")","v":"ASSEMBLY: TYPE: LUBE OIL PUMP; APPLICATION: TURBINE; DIMENSIONS: LG 1360 X HT 450 MM; MATERIAL: STEEL; COMPRISING: MOTOR, COUPLING, COUPLING HOUSING AND PUMP; REFERENCE NO: 132273-000; PUMP: TYPE L3MF-070/140; IFOKUI-G; MOTOR: TYPE WEG; PHASE 3; FRAME 160M-04; ENCLOSURE RATING IP55; INSULATION CLASS F; VOLTAGE 380/660 V 400/690 V; POWER 11 KW; SPEED 1465 RPM; AMPERAGE 21.9/12.6 A; POWER FACTOR 0.85; EFFIECENCY 89.8 PCT; LEISTRITZ; STANDARD ISO 9001"},"WEG /LEISTRITZ","SCREW PUMP","70/140",null,null,"1465 RPM",null,"STEEL 0.6025,0.7040 or 3,2315","Drive spindle 1.7139 hardened,Iddler spindle 1.7139 or 0.6025","11 KW; 660 V; 12.6 A",null,"Radial shaft seal Perbunan or Viton","TURBINE LUBE OIL PUMP","UP TO 100°C","IP55 UP TO 100 BAR","132273-000",null,"INLINE PUMP"]
["560","0659604","ASSY:IVP6-125 101;OIL PUMP;STL","Ingula P Station",{"$f":"IFERROR(VLOOKUP(TEXT(B60,\"0000000\"),Catalogue_Lookup!$A:$B,2,FALSE),\"\")","v":"ASSEMBLY: TYPE: OIL PUMP; APPLICATION: INLET VALVE PUMP; DIMENSIONS: LG 1300 X HT 650 MM; MATERIAL: STEEL; COMPRISING: MOTOR AND PUMP; OEM P/N: IVP6-125 101, OEM: VOITH TURBO; MOTOR SPECIFICATIONS: KUENLE KDGN2W, 55 KW, 3 PHASE, 400/690 V, 1480 RPM, S1, IP55, ISO F, 0.87 ACOS, VOITH MAT NO 250.00871710, 250 M 4 KT NV IE2; COUPLING SPECIFICATIONS: R+L HYDRAULICS RV550/265/3/0/DV400/83; PUMP SPECIFICATIONS: VOITH IVP 6-125 101, SERIAL NUMBER 0020096460/1403, MATERIAL H56.995120; EXTENSION HOUSING SPESIFICATIONS: TYPE 55 KW-B35/IPV6-125 101, MATERIAL 250.01204710, SERIAL NUMBER 20096970/1408; STANDARD ISO 9001"},"VOITH","HYDRAULIC",{"$nulls":7},"55 KW; 690 V; 0.87 A",null,null,"INLET VALVE PUMP",null,null,"IVP6-125 101"]
["570","0666763","PUMP:SUBMERSIBLE;DIA 160 MM;2900 RPM;1.9","Drakensberg",{"$f":"IFERROR(VLOOKUP(TEXT(B61,\"0000000\"),Catalogue_Lookup!$A:$B,2,FALSE),\"\")","v":"PUMP: TYPE: SUBMERSIBLE; SIZE: DIA 160 MM; CAPACITY: 0.3-5.0 L/S; 32-2 M; SPEED: 2900 RPM; RATING: 1.9 KW; DRIVER: MOTOR 400 V 4.5 A 50 HZ; SPECIFICATION: NS 50-172/01 2ULG 160; APPLICATION: SUBMERSIBLE PUMP FOR SEWAGE"},null,"SUBMERSIBLE","DIA 160 MM","0.3-5.0 L/S",null,"2900 RPM",{"$nulls":3},"1.9 KW; 400 V; 4.5 A",null,null,"SUBMERSIBLE PUMP FOR SEWAGE",null,"1.9 KW"]
["580","0683236","PUMP:MONO;VARIOUS;13.4 M3/HR;1430 RPM;10","Drakensberg",{"$f":"IFERROR(VLOOKUP(TEXT(B62,\"0000000\"),Catalogue_Lookup!$A:$B,2,FALSE),\"\")","v":"PUMP: TYPE: MONO; SIZE: VARIOUS; CAPACITY: 13.4 M3/HR; SPEED: 1430 RPM; RATING: 10 BAR; DRIVER: ELECTRIC MOTOR; POTENTIAL: 380 V; CASING MATERIAL: CAST STEEL; APPLICATION: STATION SEWAGE PLANT; MODEL NO: C62M"},null,"MONO","VARIOUS","13.4 M3/HR",null,"1430 RPM",null,"CAST STEEL",null,"ELECTRIC MOTOR; 380 V",null,null,"STATION SEWAGE PLANT",null,"10 BAR","C62M"]
["590","0684709","PUMP:DOSING;0-10 BAR;0-10 BAR, 11 WATTS","Ankerlig - GAS1",{"$f":"IFERROR(VLOOKUP(TEXT(B63,\"0000000\"),Catalogue_Lookup!$A:$B,2,FALSE),\"\")","v":"PUMP: TYPE: DOSING; SIZE: 0-10 BAR; CAPACITY: 0-10 BAR, 11 WATTS; SPEED: VARIABLE; RATING: 10 BAR, FLOW RATE 3 L/HOUR; DRIVER: INCLUDED; SPECIFICATION: ISO; POTENTIAL: 220-240 VAC; CASING MATERIAL: PVC; APPLICATION: DOSING; SUPPL P/N: 208-3.0-10000"},null,"DOSING","0-10 BAR","0-10 BAR, 11 WATTS",null,"VARIABLE",null,"PVC",null,"INCLUDED; 240 VAC",null,null,"DOSING",null,"10 BAR, FLOW RATE 3 L/HOUR","208-3.0-10000"]
["600","0716822","PUMP:SUBMISSIBLE;25 M;2500 L/MIN;1450;30","Drakensberg",{"$f":"IFERROR(VLOOKUP(TEXT(B64,\"0000000\"),Catalogue_Lookup!$A:$B,2,FALSE),\"\")","v":"PUMP: TYPE: SUBMISSIBLE; SIZE: 25 M; CAPACITY: 2500 L/MIN; SPEED: 1450 RPM; RATING: 30 KW; DRIVER: ELECTRICAL MOTOR; APPLICATION: NEUTRALISATION SUMP WATER; SUPPL P/N: 350CP ( ) 150H100Z; A COMPLETE DATA BOOK TO BE SUBMITTED ON SPARE DELIVERY"},"ITT","SUBMERSIBLE","25 M","2500 L/MIN",null,"1450 RPM",{"$nulls":3},"ELECTRICAL MOTOR; 30 KW",null,null,"NEUTRALISATION SUMP WATER",null,"30 KW","350CP ( ) 150H100Z"]
["610","0725185","PUMP:SUBMERSIBLE;80 MM;12 L/S;2905 RPM","Palmiet",{"$f":"IFERROR(VLOOKUP(TEXT(B65,\"0000000\"),Catalogue_Lookup!$A:$B,2,FALSE),\"\")","v":"PUMP: TYPE: SUBMERSIBLE; SIZE: 80 MM; CAPACITY: 12 L/S; SPEED: 2905 RPM; RATING: 11 KW; POTENTIAL: 400 V; FURNISHED ITEMS: 30M CABLE; CASING MATERIAL: HARD IRON; SUPPL P/N: NP 3153.181 SH 273; WET PIT(P): SEMI PERMANENT, SUBMERSIBLE PUMP INSTALLATION. WET PIT ARRANGEMENT WITH THE PUMP INSTALLED; CABLE TO BE CONTINUOUS AND NOT JOINT; PUMP PERFORMANCE TEST RESULTS TO BE SUPPLIED UPON DELIVERY.OPERATIONS AND MAINTENANCE INSTRUCTION MANUALS TO BE SUPPLIED UPON DELIVERY"},null,"SUBMERSIBLE","80 MM","12 L/S",null,"2905 RPM",null,"HARD IRON",null,"11 KW; 400 V",{"$nulls":4},"11 KW","NP 3153.181 SH 273",null,null,"PUMP PERFORMANCE TEST RESULTS TO BE SUPPLIED UPON DELIVERY.OPERATIONS AND MAINTENANCE INSTRUCTION MANUALS TO BE SUPPLIED UPON DELIVERY"]
["620","0731981","PUMP:HYDRAULIC HAND PUMP;2200 CM3;2 RPM","Drakensberg",{"$f":"IFERROR(VLOOKUP(TEXT(B66,\"0000000\"),Catalogue_Lookup!$A:$B,2,FALSE),\"\")","v":"PUMP: TYPE: HYDRAULIC HAND PUMP; SIZE: 2200 CM3; CAPACITY: CYLINDER STROKE 25.4 MM; SPEED: 2 RPM; RATING: 700 BAR"},null,"HYDRAULIC","2200 CM3","CYLINDER STROKE 25.4 MM",null,"2 RPM",{"$nulls":8},"700 BAR"]
["630","0739173","PUMP CNTRFGL:1 M;30 L/S;80 M;6 IN;1450;7","Palmiet",{"$f":"IFERROR(VLOOKUP(TEXT(B67,\"0000000\"),Catalogue_Lookup!$A:$B,2,FALSE),\"\")","v":"PUMP, CENTRIFUGAL: NPSH: 1 M; CAPACITY: 30 L/S; TOTAL HEAD: 80 M; SIZE: 6 IN; SPEED: 1450 RPM; STAGE: 7; TYPE: VERTICAL CENTRIFUGAL SUMP PUMP; MOUNT: FLANGE; MANUF P/N: M10 VTLV ; A. TYPE: VERTICAL TURBINE CENTRIFUGAL PUMP; B. RATED FLOW AND HEAD: 30L/S AT 78M HEAD; C. PUMP PRESSURE RANGE: 71M TO 78M; D. TOTAL PUMP LENGTH MUST BE BETWEEN 9000MM AND 9130 MM; E. IMPELLER BOWLS (CAST IRON), COLUMNS AND DISCHARGE CONNECTION HEAD MATERIAL CARBON STEEL; F. PUMP CONNECTING SHAFTS MATERIAL CARBON STEEL; G. PUMP CONNECTING SHAFT SOCKET / NUT MATERIAL CARBON STEEL; H. PUMP DISCHARGE HEAD SEALING ARRANGEMENT GLAND PACKING ASBESTOS FREE MATERIAL; I. THE IMPELLER IS CAST (STAINLESS STEEL 316) IN ONE PIECE WITH WEAR RINGS FOR EASY MAINTENANCE OF RUNNING CLEARANCES; J. CORROSION SPECIFICATION AS PER OEM RECOMMENDED SPECIFICATION FOR REVIEW AND ACCEPTANCE BY ESKOM. CORROSION PROTECTION APPLIED TO THE IMPELLER BOWLS, SHAFTS, COLUMNS AND DISCHARGE CONNECTING HEAD; K. THE PUMPS ARE PROVIDED WITH RENEWABLE WEAR RINGS; L. THE PUMPS ARE PROVIDED WITH INTAKE SCREENS; M. ALL BEARINGS SHALL BE DESIGNED FOR A MINIMUM LIFE OF 100 000 HOURS WITH CONTINUOUS OPERATION AT MAXIMUM RADIAL AND AXIAL LOADS; N. ALL PUMPS SHALL HAVE A PERMANENTLY ATTACHED CORROSION RESISTANT NAMEPLATE, DETAILING THE NAME, MANUFACTURER, MODEL NUMBER, MODEL TYPE, BEARINGS SPECIFICATIONS, HEAD, HEAD RANGE, SIZE, DISCHARGE FLOW RATE, DIRECTION OF ROTATION ETC. MOUNTED TO THE DISCHARGE HEAD; O. WARRANTY ON THE PUMP IS MINIMUM 1 YEAR ON DELIVERY OR 6 MONTHS AFTER INSTALLATION WHICHEVER IS LONGER; P. THE CONTRACTOR SUPPLIES EACH PUMP TO THE FOLLOWING DISCHARGE HEAD DIMENSIONAL SPECIFICATION FOR INTERFACE WITH THE EXISTING COMPONENTS. IF THE DIMENSIONS DISCHARGE HEAD CANNOT MEET THE SPECIFICATION, ADAPTORS MUST BE SUPPLIED TO INTERFACE THE PUMP WITH THE EXISTING PIPING AND HEAD BASE PLATE;"},null,"VERTICAL CENTRIFUGAL","6 IN","30 L/S","80 M","1450 RPM",7,null,null,"10 V","HEAD MATERIAL CARBON STEEL","ASBESTOS FREE MATERIAL",null,null,"RANGE: 71M TO 78M","M10 VTLV","1 M","FLANGE"]
["640","0750954","PUMP:PROMINENT BT4B;10.0 W;1 L/HR;180;16","Drakensberg",{"$f":"IFERROR(VLOOKUP(TEXT(B68,\"0000000\"),Catalogue_Lookup!$A:$B,2,FALSE),\"\")","v":"PUMP: TYPE: PROMINENT BT4B; SIZE: 10.0 W; CAPACITY: 1 L/HR; SPEED: 180 STR/MIN; RATING: 16 BAR; SUPPL P/N: BT4B 1601 PVT2"},"PROMINENT","PROMINENT BT4B","10.0 W","1 L/HR",null,"180 STR/MIN",{"$nulls":8},"16 BAR","BT4B 1601 PVT2"]
["650","0751465","PUMP:PROMINENT GMXA;25 W;2.3 L/HR;180;16","Drakensberg",{"$f":"IFERROR(VLOOKUP(TEXT(B69,\"0000000\"),Catalogue_Lookup!$A:$B,2,FALSE),\"\")","v":"PUMP: TYPE: PROMINENT GMXA; SIZE: 25 W; CAPACITY: 2.3 L/HR; SPEED: 180 STR/MIN; RATING: 16 BAR; SUPPL P/N: GMXA1602; PRODUCT RANGE: GMXA1602PVT2"},"PROMINENT","PROMINENT GMXA","25 W","2.3 L/HR",null,"180 STR/MIN",{"$nulls":8},"16 BAR","GMXA1602"]
["660","0752355","PUMP:HAND;R1/2 IN;12 L;45 RPM;60 BAR","Palmiet",{"$f":"IFERROR(VLOOKUP(TEXT(B70,\"0000000\"),Catalogue_Lookup!$A:$B,2,FALSE),\"\")","v":"PUMP: TYPE: HAND; SIZE: R1/2 IN; CAPACITY: 12 L; SPEED: 45 RPM; RATING: 60 BAR; MANUF P/N: RP505; ROTHENBERGER RP 50S MANUAL PRESSURE TESTING PUMP"},null,"HAND","R1/2 IN","12 L",null,"45 RPM",{"$nulls":8},"60 BAR","RP505"]
["670","0620211","PUMP ASSY:JACKING;ROTOR","Ingula P Station",{"$f":"IFERROR(VLOOKUP(TEXT(B71,\"0000000\"),Catalogue_Lookup!$A:$B,2,FALSE),\"\")","v":"PUMP, ASSEMBLY: TYPE: JACKING; APPLICATION: ROTOR; HYDRAULIC PUMP MCY14-1B: RATE: 1.25 ML/R; PRESSURE: 31.5 MPA; SPEED: 1500 RPM; CONNECTION SIZE: 1/2 IN; MOTOR ABB: FREQENCY: 50, SPEED: 1430 RPM; POWER: 1.5 KW; AMPERAGE: 5 A; ENCLOSURE RATING: IP55; FRAME: M2BA90SLD4; VOLTAGE: 230/400V; MOUNT: FLANGE; SHAFT SIZE: DIA 24 X LG 55 MM; COMPLETE WITH PEDESTAL, COUPLING, PRESSURE REGULATOR AND HOSE.; VENDORS ARE RESPONSIBLE FOR ENSURING THAT THEY ARE PERFORMING AGAINST THE CORRECT DRAWING REVISION NUMBER (IF APPLICABLE)."},"ABB /ZOUSEN Hydraulic","Piston Pump","1/2 IN",null,null,"1500 RPM",null,"Cast Iron",null,"1.5 KW; 400V; 5 A","SIZE: 1/2 IN",null,"ROTOR",null,"IP55 31.5 Mpa",null,null,"FLANGE"]
["680","0623907","PUMP RTRY:2 STG BIDIRECTIONAL HYDRAULIC","Ingula P Station",{"$f":"IFERROR(VLOOKUP(TEXT(B72,\"0000000\"),Catalogue_Lookup!$A:$B,2,FALSE),\"\")","v":"PUMP, ROTARY: TYPE: 2 STG BIDIRECTIONAL HYDRAULIC; PORT SIZE: 1-1/4 X 1 IN; CAPACITY: 62 L/MIN; SPEED: 2800 RPM; RATING: 44 CM3; DRIVER: MOTOR; APPLICATION: SURGE CHAMBER HOIST; MOUNT: FLANGE; COMPRISING OF ONE GHPA3A-R-66-S2-D-E3-RF2224 AND ONE GHPP3-R-66-D-E1; CROSS HYDRAULICS"},"MARZOCCHI","HYDRAULIC GEAR PUMP","1-1/4 X 1 IN","62 L/MIN",null,"2800 RPM","2 Stage",null,null,"MOTOR; 3A",null,null,"SURGE CHAMBER HOIST",null,"44 CM3",null,null,"FLANGE"]
["690","0624686","PUMP:GEAR;50 MM;48 L/MIN;3000 RPM;33 CM3","Ingula P Station",{"$f":"IFERROR(VLOOKUP(TEXT(B73,\"0000000\"),Catalogue_Lookup!$A:$B,2,FALSE),\"\")","v":"PUMP: TYPE: GEAR; SIZE: 50 MM; CAPACITY: 48 L/MIN; SPEED: 3000 RPM; RATING: 33 CM3; CASING MATERIAL: PLASTIC/STL; MANUF P/N: GPHA3-D-50"},"MARZOCCHI","GEAR","50 MM","48 L/MIN",null,"3000 RPM",null,"PLASTIC/STL",{"$nulls":6},"33 CM3","GPHA3-D-50"]
["700","0736849","PUMP:CENTRIFUGAL;45375-048;0.097 M3/S","Ingula P Station",{"$f":"IFERROR(VLOOKUP(TEXT(B74,\"0000000\"),Catalogue_Lookup!$A:$B,2,FALSE),\"\")","v":"PUMP: TYPE: CENTRIFUGAL; SIZE: 45375-048; CAPACITY: 0.097 M3/S; SPEED: 1479 RPM; RATING: 270 KPA; DRIVER: MOTOR; SPECIFICATION: BS 4891; POTENTIAL: 380 V; CASING MATERIAL: CAST STEEL; APPLICATION: AC LUB OIL PUMP; SUPPL P/N: 45375 048; SCOPE OF WORK/REPAIR,STRIP AND ASSESSMENT, NEW GASKET AND BOLTS. REPLACE IMPELLER WITH OEM SUPPLY,REPLACE WEAR RINGS WITH OEM SUPPLY. REFURBISH THRUST JOURNAL BEARING AND RE-COAT WHITE METAL BEARING TO OEM SPECIFICATION. SUPPLY NEW FLEXIBLE SHAFT, REBURBISH STUB SHAFT AND PUMP HOUSING. ENGINEERING SERVICES AND TESTING"},null,"CENTRIFUGAL","45375-048","0.097 M3/S",null,"1479 RPM",null,"CAST STEEL",null,"MOTOR; 380 V",null,null,"AC LUB OIL PUMP",null,"270 KPA","45375 048"]
["710","0624685","PUMP:GHPP-D11;GEAR;11 MM;8.8 L/MIN;3800","Ingula P Station",{"$f":"IFERROR(VLOOKUP(TEXT(B75,\"0000000\"),Catalogue_Lookup!$A:$B,2,FALSE),\"\")","v":"PUMP: TYPE: GEAR; SIZE: 11 MM; CAPACITY: 8.8 L/MIN; SPEED: 3800 RPM; RATING: 7.6 CM3; CASING MATERIAL: PLASTIC/STL; OEM P/N: GHPP-D11, OEM: MARZOCCHI"},"MARZOCCHI","GEAR","11 MM","8.8 L/MIN",null,"3800 RPM",null,"PLASTIC/STL",{"$nulls":6},"7.6 CM3","GHPP-D11"]
["720","0646932","PUMP:HAND;3/4 IN;VARIABLE;0-100 PCT;PN10","Critical Spares",{"$f":"IFERROR(VLOOKUP(TEXT(B76,\"0000000\"),Catalogue_Lookup!$A:$B,2,FALSE),\"\")","v":"PUMP: TYPE: HAND; SIZE: 3/4 IN; CAPACITY: VARIABLE; SPEED: 0-100 PCT; RATING: PN10; DRIVER: HAND OPERATED; SPECIFICATION: ISO 9001; CASING MATERIAL: CI; APPLICATION: INLET VALVE CONTROL"},null,"HAND","3/4 IN","VARIABLE",null,"0-100 PCT",null,"CI",null,"HAND OPERATED",null,null,"INLET VALVE CONTROL",null,"PN10"]
["730","0637419","PUMP:HYDRAULIC GEAR;4.09 IN;2.7 GAL/MIN","Ingula P Station",{"$f":"IFERROR(VLOOKUP(TEXT(B77,\"0000000\"),Catalogue_Lookup!$A:$B,2,FALSE),\"\")","v":"PUMP: TYPE: HYDRAULIC GEAR; SIZE: 4.09 IN; CAPACITY: 2.7 GAL/MIN; SPEED: 3000 RPM; RATING: 138 BAR; SPECIFICATION: SAE; CASING MATERIAL: AL DIE CAST; MODEL NO: 705089; REFERENCE NO: D27X2905; OPERATING TEMPERATURE RANGE: -40 TO 185 DEG F"},"VOITH","HYDRAULIC","4.09 IN","2.7 GAL/MIN",null,"3000 RPM",null,"AL DIE CAST",{"$nulls":5},"RANGE: -40 TO 185 DEG F","138 BAR","D27X2905; 705089"]
["740","0643672","PUMP:HYDRAULIC VANE;1465 RPM;300 BAR","Ingula P Station",{"$f":"IFERROR(VLOOKUP(TEXT(B78,\"0000000\"),Catalogue_Lookup!$A:$B,2,FALSE),\"\")","v":"PUMP: TYPE: HYDRAULIC VANE; SIZE: SUCTION DIA X 38.1; PRESSURE DIA 25.4 MM; SPEED: 1465 RPM; RATING: 300 BAR; DRIVER: ELECTRIC MOTOR; SPECIFICATION: T7BB112R00A5M0; APPLICATION: MBV LIFTING OIL; SUPPL P/N: 054-34367-500; DENISON"},"DENISON","HYDRAULIC VANE","SUCTION DIA X 38.1",null,null,"1465 RPM",{"$nulls":3},"ELECTRIC MOTOR; 00A",null,null,"MBV LIFTING OIL",null,"300 BAR","054-34367-500"]
["760","0695456","PUMP ASSY:GEAR PUMP;LUBRICATION","Ingula P Station",{"$f":"IFERROR(VLOOKUP(TEXT(B79,\"0000000\"),Catalogue_Lookup!$A:$B,2,FALSE),\"\")","v":"PUMP, ASSEMBLY: TYPE: GEAR PUMP; APPLICATION: LUBRICATION; OEM P/N: 063543; J.P. SAUER & SOHN WP6310 COMPRESSOR; VENDORS ARE RESPONSIBLE FOR ENSURING THAT THEY ARE PERFORMING AGAINST THE CORRECT DRAWING REVISION NUMBER (IF APPLICABLE)."},"J.P. Sauer & Sohn","GEAR PUMP",{"$nulls":10},"LUBRICATION",null,null,63543]
["770","0773313","PUMP:HYDROSTATIC PRESSURE TESTING UNIT","Palmiet",{"$f":"IFERROR(VLOOKUP(TEXT(B80,\"0000000\"),Catalogue_Lookup!$A:$B,2,FALSE),\"\")","v":"PUMP: TYPE: HYDROSTATIC PRESSURE TESTING UNIT; SIZE: 2.2 KW; CAPACITY: 11 L/MIN; SPEED: 1450 RPM; RATING: 0 - 100 BAR; SPECIFICATION: PUMP MODEL : NHDP1115R; MANUF P/N: 8H-T2-11-100"},null,"HYDROSTATIC PRESSURE TESTING UNIT","2.2 KW","11 L/MIN",null,"1450 RPM",{"$nulls":3},"2.2 KW",{"$nulls":4},"0 - 100 BAR","8H-T2-11-100"]
["780","0772878","KIT:ACCESORIES;SUBMERSIBLE PUMPS","Palmiet",{"$f":"IFERROR(VLOOKUP(TEXT(B81,\"0000000\"),Catalogue_Lookup!$A:$B,2,FALSE),\"\")","v":"KIT: TYPE: ACCESORIES; APPLICATION: SUBMERSIBLE PUMPS; COMPRISING: 50 MM X 500 MM - GALVANISED PIPE , CAMLOCK ADAPTOR (2\") A200 50MM , CAMLOCK TAIL (2\") C200 50MM , SUCTION HOSE SMOOTH 50MM BLUE 30 METRES"},null,"ACCESORIES",{"$nulls":10},"SUBMERSIBLE PUMPS"]
["790","0177522","PUMP RTRY:SCREW;70 X 60 MM;251 L/MIN;64","Palmiet",{"$f":"IFERROR(VLOOKUP(TEXT(B82,\"0000000\"),Catalogue_Lookup!$A:$B,2,FALSE),\"\")","v":"PUMP, ROTARY: TYPE: SCREW; PORT SIZE: 70 X 60 MM; CAPACITY: 251 L/MIN; SPEED: 1475 RPM; RATING: 64 BAR; DRIVER: ELECTRIC MOTOR 68 A 35 KW; APPLICATION: TURBINE OIL TANKS; SPECIFICATION: IP54; REFERENCE NO: SMBA280R46U9W2"},null,"SCREW","70 X 60 MM","251 L/MIN",null,"1475 RPM",{"$nulls":3},"35 KW; 68 A",null,null,"TURBINE OIL TANKS",null,"64 BAR","SMBA280R46U9W2"]
["800","0725185","PUMP:SUBMERSIBLE;80 MM;12 L/S;2905 RPM","Palmiet",{"$f":"IFERROR(VLOOKUP(TEXT(B83,\"0000000\"),Catalogue_Lookup!$A:$B,2,FALSE),\"\")","v":"PUMP: TYPE: SUBMERSIBLE; SIZE: 80 MM; CAPACITY: 12 L/S; SPEED: 2905 RPM; RATING: 11 KW; POTENTIAL: 400 V; FURNISHED ITEMS: 30M CABLE; CASING MATERIAL: HARD IRON; SUPPL P/N: NP 3153.181 SH 273; WET PIT(P): SEMI PERMANENT, SUBMERSIBLE PUMP INSTALLATION. WET PIT ARRANGEMENT WITH THE PUMP INSTALLED; CABLE TO BE CONTINUOUS AND NOT JOINT; PUMP PERFORMANCE TEST RESULTS TO BE SUPPLIED UPON DELIVERY.OPERATIONS AND MAINTENANCE INSTRUCTION MANUALS TO BE SUPPLIED UPON DELIVERY"},null,"SUBMERSIBLE","80 MM","12 L/S",null,"2905 RPM",null,"HARD IRON",null,"11 KW; 400 V",{"$nulls":4},"11 KW","NP 3153.181 SH 273",null,null,"PUMP PERFORMANCE TEST RESULTS TO BE SUPPLIED UPON DELIVERY.OPERATIONS AND MAINTENANCE INSTRUCTION MANUALS TO BE SUPPLIED UPON DELIVERY"]
["810","0739173","PUMP CNTRFGL:1 M;0.3 M3/HR;100 M;65 MM;1","Palmiet",{"$f":"IFERROR(VLOOKUP(TEXT(B84,\"0000000\"),Catalogue_Lookup!$A:$B,2,FALSE),\"\")","v":"PUMP, CENTRIFUGAL: NPSH: 1 M; CAPACITY: 30 L/S; TOTAL HEAD: 80 M; SIZE: 6 IN; SPEED: 1450 RPM; STAGE: 7; TYPE: VERTICAL CENTRIFUGAL SUMP PUMP; MOUNT: FLANGE; MANUF P/N: M10 VTLV ; A. TYPE: VERTICAL TURBINE CENTRIFUGAL PUMP; B. RATED FLOW AND HEAD: 30L/S AT 78M HEAD; C. PUMP PRESSURE RANGE: 71M TO 78M; D. TOTAL PUMP LENGTH MUST BE BETWEEN 9000MM AND 9130 MM; E. IMPELLER BOWLS (CAST IRON), COLUMNS AND DISCHARGE CONNECTION HEAD MATERIAL CARBON STEEL; F. PUMP CONNECTING SHAFTS MATERIAL CARBON STEEL; G. PUMP CONNECTING SHAFT SOCKET / NUT MATERIAL CARBON STEEL; H. PUMP DISCHARGE HEAD SEALING ARRANGEMENT GLAND PACKING ASBESTOS FREE MATERIAL; I. THE IMPELLER IS CAST (STAINLESS STEEL 316) IN ONE PIECE WITH WEAR RINGS FOR EASY MAINTENANCE OF RUNNING CLEARANCES; J. CORROSION SPECIFICATION AS PER OEM RECOMMENDED SPECIFICATION FOR REVIEW AND ACCEPTANCE BY ESKOM. CORROSION PROTECTION APPLIED TO THE IMPELLER BOWLS, SHAFTS, COLUMNS AND DISCHARGE CONNECTING HEAD; K. THE PUMPS ARE PROVIDED WITH RENEWABLE WEAR RINGS; L. THE PUMPS ARE PROVIDED WITH INTAKE SCREENS; M. ALL BEARINGS SHALL BE DESIGNED FOR A MINIMUM LIFE OF 100 000 HOURS WITH CONTINUOUS OPERATION AT MAXIMUM RADIAL AND AXIAL LOADS; N. ALL PUMPS SHALL HAVE A PERMANENTLY ATTACHED CORROSION RESISTANT NAMEPLATE, DETAILING THE NAME, MANUFACTURER, MODEL NUMBER, MODEL TYPE, BEARINGS SPECIFICATIONS, HEAD, HEAD RANGE, SIZE, DISCHARGE FLOW RATE, DIRECTION OF ROTATION ETC. MOUNTED TO THE DISCHARGE HEAD; O. WARRANTY ON THE PUMP IS MINIMUM 1 YEAR ON DELIVERY OR 6 MONTHS AFTER INSTALLATION WHICHEVER IS LONGER; P. THE CONTRACTOR SUPPLIES EACH PUMP TO THE FOLLOWING DISCHARGE HEAD DIMENSIONAL SPECIFICATION FOR INTERFACE WITH THE EXISTING COMPONENTS. IF THE DIMENSIONS DISCHARGE HEAD CANNOT MEET THE SPECIFICATION, ADAPTORS MUST BE SUPPLIED TO INTERFACE THE PUMP WITH THE EXISTING PIPING AND HEAD BASE PLATE;"},null,"VERTICAL CENTRIFUGAL","6 IN","30 L/S","80 M","1450 RPM",7,null,null,"10 V","HEAD MATERIAL CARBON STEEL","ASBESTOS FREE MATERIAL",null,null,"RANGE: 71M TO 78M","M10 VTLV","1 M","FLANGE"]
["820","0769828","PUMP:SELF PRIMING ELECTRIC;1 IN;5 - 45;6","Palmiet",{"$f":"IFERROR(VLOOKUP(TEXT(B85,\"0000000\"),Catalogue_Lookup!$A:$B,2,FALSE),\"\")","v":"PUMP: TYPE: SELF PRIMING ELECTRIC; SIZE: 1 IN; CAPACITY: 5 - 45 L/MIN; SPEED: 2800 RPM; RATING: 6 BAR; DRIVER: MOTOR; SPECIFICATION: IE3 0.75KW SINGLE PHASE; POTENTIAL: 230 - 240 V; CASING MATERIAL: AISI 304; APPLICATION: PUMP TURBINE COMPARTMENT; MANUF P/N: JESX M8; OPERATING AND INSTRUCTIONS MANUAL AND PUMP CHARACTERISTIC CURVE TO BE INCLUDED WITH DELIVERY OF THIS PUMP"},null,"SELF PRIMING ELECTRIC","1 IN","5 - 45 L/MIN",null,"2800 RPM",null,"AISI 304",null,"MOTOR; 0.75KW; 240 V",null,null,"PUMP TURBINE COMPARTMENT",null,"6 BAR","JESX M8"]
["830","0772689","PUMP CNTRFGL:1 M;7.5 L/S;98.39 M;65 MM;1","Palmiet",{"$f":"IFERROR(VLOOKUP(TEXT(B86,\"0000000\"),Catalogue_Lookup!$A:$B,2,FALSE),\"\")","v":"PUMP: TYPE: SUBMERSIBLE; SIZE: 2 IN; CAPACITY: 100 TO 800 L/MIN; SPEED: 2800 RPM; RATING: 400 VAC; CASING MATERIAL: AISI 304; DW VOX 300. OPERATING INSTRUCTIONS AND MAINTENANCE MANUAL AS WELL AS TEST CERTIFICATES TO BE SUPPLIED ON DELIVERY.PLEASE PROVIDE 30M LONG POWER SUPPLY CABLE UPON DELIVERY."},null,"SUBMERSIBLE","2 IN","100 TO 800 L/MIN",null,"2800 RPM",null,"AISI 304",null,"400 VAC",{"$nulls":4},"400 VAC"]
["840","0761990","PUMP CNTRFGL:11 M;22.5 L/S;10.7 M;100 MM","Palmiet",{"$f":"IFERROR(VLOOKUP(TEXT(B87,\"0000000\"),Catalogue_Lookup!$A:$B,2,FALSE),\"\")","v":"PUMP, CENTRIFUGAL: NPSH: 11 M; CAPACITY: 22.5 L/S; TOTAL HEAD: 10.7 M; SIZE: 100 MM; SPEED: 1435 RPM; STAGE: SINGLE; DRIVER: 3-PHASE CAGE INDUCTION MOTOR , 4 POLE , 3.8KW; TYPE: TRANSFORMER OIL CIRCULATION PUMP; SPECIFICATION: IEC 34-1, INSULATION CLASS F, IMPELLER SIZE 98MM , PART NO : VMOA 100 - 198; MOUNT: FLANGE MOUNTED"},null,"CENTRIFUGAL","100 MM","22.5 L/S","10.7 M","1435 RPM","SINGLE",null,null,"3.8KW",{"$nulls":6},"11 M","FLANGE MOUNTED"]
["850","0045267","PUMP:HYDRAULIC OIL;3.8 CM3/STR;173","Palmiet",{"$f":"IFERROR(VLOOKUP(TEXT(B88,\"0000000\"),Catalogue_Lookup!$A:$B,2,FALSE),\"\")","v":"PUMP: TYPE: HYDRAULIC OIL; CAPACITY: 3.8 CM3/STR; RATING: 173 KG/CM2; DRIVER: HAND OPERATED; REFERENCE NO: RT-67-1"},null,"HYDRAULIC",null,"3.8 CM3/STR",{"$nulls":5},"HAND OPERATED",{"$nulls":4},"173 KG/CM2","RT-67-1"]
["860","0045263","PUMP RTRY:SCREW;80 MM;272 L/MIN;1450 RPM","Palmiet",{"$f":"IFERROR(VLOOKUP(TEXT(B89,\"0000000\"),Catalogue_Lookup!$A:$B,2,FALSE),\"\")","v":"PUMP, ROTARY: TYPE: SCREW; PORT SIZE: 80 MM; CAPACITY: 272 L/MIN; SPEED: 1450 RPM; RATING: 5 BAR; DRAWING NO: 6520000-001 REV 1; CIRCULATING OIL, OVERALL LENGTH 670 MM, FLANGE TO FLANGE 302 MM"},null,"SCREW","80 MM","272 L/MIN",null,"1450 RPM",{"$nulls":8},"5 BAR","6520000-001 REV 1"]
["870","0772690","PUMP:SUBMERSIBLE;2 IN;100 TO 700 L/MIN","Palmiet",{"$f":"IFERROR(VLOOKUP(TEXT(B90,\"0000000\"),Catalogue_Lookup!$A:$B,2,FALSE),\"\")","v":"PUMP: TYPE: SUBMERSIBLE; SIZE: 2 IN; CAPACITY: 100 TO 700 L/MIN; SPEED: 2800 RPM; RATING: 1.1 KW; CASING MATERIAL: AISI 304; DW M 150 A_230_SINGLE PHASE . OPERATING INSTRUCTIONS AND MAINTENANCE MANUAL AS WELL AS TEST CERTIFICATES TO BE SUPPLIED ON DELIVERY.PLEASE PROVIDE 20M POWER SUPPLY CABLE UPON DELIVERY."},null,"SUBMERSIBLE","2 IN","100 TO 700 L/MIN",null,"2800 RPM",null,"AISI 304",null,"1.1 KW; 150 A",{"$nulls":4},"1.1 KW"]
["890","0045268","PUMP RTRY:INTERNAL GEAR;48 MM;63 CM3/REV","Palmiet",{"$f":"IFERROR(VLOOKUP(TEXT(B91,\"0000000\"),Catalogue_Lookup!$A:$B,2,FALSE),\"\")","v":"PUMP, ROTARY: TYPE: INTERNAL GEAR; PORT SIZE: 48 MM; CAPACITY: 63 CM3/REV; RATING: 160 KG/CM; DRIVER: MOTOR; REFERENCE NO: 866371; QT52-63A"},null,"GEAR","48 MM","63 CM3/REV",{"$nulls":5},"MOTOR; 63A",{"$nulls":4},"160 KG/CM",866371]
["900","0041760","PUMP RTRY:OIL GEAR;22 X 16 MM","Palmiet",{"$f":"IFERROR(VLOOKUP(TEXT(B92,\"0000000\"),Catalogue_Lookup!$A:$B,2,FALSE),\"\")","v":"PUMP, ROTARY: TYPE: OIL GEAR; PORT SIZE: 22 X 16 MM"},null,"GEAR","22 X 16 MM"]
["910","0045270","PUMP RCPRTG:PISTON RADIAL;28 X 18 MM","Palmiet",{"$f":"IFERROR(VLOOKUP(TEXT(B93,\"0000000\"),Catalogue_Lookup!$A:$B,2,FALSE),\"\")","v":"PUMP, RECIPROCATING: TYPE: PISTON RADIAL; SIZE: 28 X 18 MM; DRIVER: MOTOR; REFERENCE NO: M096-84176220/23P7; PC-1A-5-10; MFG.700, SHAFT DIA 10 MM LG 38 MM"},null,"PISTON","28 X 18 MM",{"$nulls":6},"MOTOR; 1A",{"$nulls":5},"M096-84176220/23P7"]
["920","0045269","PUMP RCPRTG:PISTON RADIAL;45 X 30 MM","Palmiet",{"$f":"IFERROR(VLOOKUP(TEXT(B94,\"0000000\"),Catalogue_Lookup!$A:$B,2,FALSE),\"\")","v":"PUMP, RECIPROCATING: TYPE: PISTON RADIAL; SIZE: 45 X 30 MM; DRIVER: MOTOR; DRAWING NO: M096-84176221/23P4 REV 1; REFERENCE NO: PC-2A-30-10; PC SERIES"},null,"PISTON","45 X 30 MM",{"$nulls":6},"MOTOR; 2A",{"$nulls":5},"PC-2A-30-10; M096-84176221/23P4 REV 1"]
["930","0045264","PUMP:LUBRICATION TRANSFER;15 MM;1030;910","Palmiet",{"$f":"IFERROR(VLOOKUP(TEXT(B95,\"0000000\"),Catalogue_Lookup!$A:$B,2,FALSE),\"\")","v":"PUMP: TYPE: LUBRICATION TRANSFER; SIZE: 15 MM; CAPACITY: 1030 CM3/HR; SPEED: 910 RPM; RATING: 300 BAR; DRIVER: ELECTRIC MOTOR 220/380 V AC; DRAWING NO: 799-000-2557C REV 1; GREASE TANK CAPACITY 30 KG, HR.ON 6 OUTLETS, TYPE OF ENCLOSURE: ISY, INSULATION CLASS: F, OVERALL DIMENSIONS HG 773 MM, DIA 35 MM AT PIONT"},null,"LUBRICATION TRANSFER","15 MM","1030 CM3/HR",null,"910 RPM",{"$nulls":3},"380 V",{"$nulls":4},"300 BAR","799-000-2557C REV 1"]
["940","0779201","PUMP CNTRFGL:1 M;150 L/S;22 M;8 x 6 IN;1","Palmiet",{"$f":"IFERROR(VLOOKUP(TEXT(B96,\"0000000\"),Catalogue_Lookup!$A:$B,2,FALSE),\"\")","v":"PUMP, CENTRIFUGAL: NPSH: 1 M; CAPACITY: 150 L/S; TOTAL HEAD: 22 M; SIZE: 8 x 6 IN; SPEED: 1450 RPM; STAGE: 1 ACRE; DRIVER: ELECTRICAL MOTOR; TYPE: F8B4; SPECIFICATION: 8X6-15; 45 KW MOTOR"},null,"F8B4","8 x 6 IN","150 L/S","22 M","1450 RPM","1 ACRE",null,null,"ELECTRICAL MOTOR; 45 KW; 1 A",{"$nulls":6},"1 M"]
["950","0779151","PUMP:VERTICAL TURBINE;10 IN;100 L/S;1486","Palmiet",{"$f":"IFERROR(VLOOKUP(TEXT(B97,\"0000000\"),Catalogue_Lookup!$A:$B,2,FALSE),\"\")","v":"PUMP: TYPE: VERTICAL TURBINE; SIZE: 10 IN; CAPACITY: 100 L/S; SPEED: 1486 RPM; RATING: 185 KW; DRIVER: ELECTRICAL MOTOR G&C; SPECIFICATION: GA H14 VTLC 5 STAGE; POTENTIAL: 3300 V; APPLICATION: PALMIET DEWATERING PUMP; 4 POLE MOTOR COUPLING F140"},null,"VERTICAL TURBINE","10 IN","100 L/S",null,"1486 RPM",{"$nulls":3},"ELECTRICAL MOTOR G&C; 185 KW; 14 V",null,null,"PALMIET DEWATERING PUMP",null,"185 KW"]
["960","0781495","PUMP CNTRFGL:1 M;85 M3/HR;100 M;65 MM;1","Palmiet",{"$f":"IFERROR(VLOOKUP(TEXT(B98,\"0000000\"),Catalogue_Lookup!$A:$B,2,FALSE),\"\")","v":"PUMP, CENTRIFUGAL: NPSH: 1 M; CAPACITY: 85 M3/HR; TOTAL HEAD: 100 M; SIZE: 65 MM; SPEED: 3900 RPM; STAGE: 1 ACRE; DRIVER: ELECTRICAL MOTOR; MANUF P/N: 0655-050-315/2P GC 10B0; PUMP RATED POWER : 35.89 KW , INCLUDES ELECTRICAL MOTOR : MOTORELLI : VOLTS :400/690 , FRAME : Y3 225S/M-2 B3 PTC , 45KW  ,50 HZ  , RPM 2960"},null,"CENTRIFUGAL","65 MM","85 M3/HR","100 M","3900 RPM","1 ACRE",null,null,"ELECTRICAL MOTOR; 35.89 KW; 1 A",{"$nulls":5},"0655-050-315/2P GC 10B0","1 M"]
["970","0779150","PUMP:VERTICAL TURBINE;6 IN;35 L/S;1482","Palmiet",{"$f":"IFERROR(VLOOKUP(TEXT(B99,\"0000000\"),Catalogue_Lookup!$A:$B,2,FALSE),\"\")","v":"PUMP: TYPE: VERTICAL TURBINE; SIZE: 6 IN; CAPACITY: 35 L/S; SPEED: 1482 RPM; RATING: 45 KW; DRIVER: ELECTRICAL MOTOR WEG; SPECIFICATION: VTP 12 CC 9 STAGE; POTENTIAL: 380 V; APPLICATION: PALMIET SUMP SEEPAGE PUMP"},"WEG","VERTICAL TURBINE","6 IN","35 L/S",null,"1482 RPM",{"$nulls":3},"ELECTRICAL MOTOR WEG; 45 KW; 380 V",null,null,"PALMIET SUMP SEEPAGE PUMP",null,"45 KW"]
["1020","0041582","PUMP:CIRCULATING WATER;24 MM;1750-2490","Palmiet",{"$f":"IFERROR(VLOOKUP(TEXT(B100,\"0000000\"),Catalogue_Lookup!$A:$B,2,FALSE),\"\")","v":"PUMP: TYPE: CIRCULATING WATER; SIZE: 24 MM; SPEED: 1750-2490 RPM; DRIVER: ELECTRIC MOTOR 220 VAC 1 PH 50 HZ; REFERENCE NO: 2-130B; BF1714310; FOR DIESEL GENERATOR, 3 SPEED A 0.39 WIND 85, R/MIN 2490, A 0.26 WIND 58, R/MIN 2190, A 0.18 WIND 37 R/MIN 1750"},null,"CIRCULATING WATER","24 MM",null,null,"1750-2490 RPM",{"$nulls":3},"220 VAC",{"$nulls":5},"2-130B"]
["1040","0779152","PUMP:SUBMERSIBLE BOREHOLE;350 MM;180 L/S","Palmiet",{"$f":"IFERROR(VLOOKUP(TEXT(B101,\"0000000\"),Catalogue_Lookup!$A:$B,2,FALSE),\"\")","v":"PUMP: TYPE: SUBMERSIBLE BOREHOLE; SIZE: 350 MM; CAPACITY: 180 L/S; SPEED: 3500 RPM; RATING: 205 KW; DRIVER: ELECTRICAL; POTENTIAL: 3300 V; APPLICATION: PALMIET EMERGENCY PUMP; MANUF P/N: UPA 350-180/2 + UMA 300-205 LV22 3300V"},null,"SUBMERSIBLE","350 MM","180 L/S",null,"3500 RPM",{"$nulls":3},"ELECTRICAL; 205 KW; 3300 V",null,null,"PALMIET EMERGENCY PUMP",null,"205 KW","UPA 350-180/2 + UMA 300-205 LV22 3300V"]
["1050","0781642","PUMP CNTRFGL:1 M;0.3 M3/HR;100 M;65 MM;1","Palmiet",{"$f":"IFERROR(VLOOKUP(TEXT(B102,\"0000000\"),Catalogue_Lookup!$A:$B,2,FALSE),\"\")","v":"PUMP, CENTRIFUGAL: NPSH: 1 M; CAPACITY: 0.3 M3/HR; TOTAL HEAD: 100 M; SIZE: 65 MM; SPEED: 1430 RPM; STAGE: 1 ACRE; DRIVER: ELECTRICAL MOTOR; MOUNT: B3; MANUF P/N: 40-160; FRAME : DX100L , 3 PHASE  , DUTY : S1 , STAR CONNECTED , CURRENT : 5.3 A . PUMP INLET : 65MM , OUTLET : 40MM , HALBERG"},"HALBERG","CENTRIFUGAL","65 MM","0.3 M3/HR","100 M","1430 RPM","1 ACRE",null,null,"ELECTRICAL MOTOR; 1 A",{"$nulls":5},"40-160","1 M","B3"]
["1060","0781575","PUMP CNTRFGL:1 M;7.5 L/S;98.39 M;65 MM;1","Palmiet",{"$f":"IFERROR(VLOOKUP(TEXT(B103,\"0000000\"),Catalogue_Lookup!$A:$B,2,FALSE),\"\")","v":"PUMP, CENTRIFUGAL: NPSH: 1 M; CAPACITY: 7.5 L/S; TOTAL HEAD: 98.39 M; SIZE: 65 MM; SPEED: 1435 RPM; STAGE: 1 ACRE; DRIVER: ELECTRICAL MOTOR; MANUF P/N: 65-315; INCLUIDES ELECTRICAL MOTOR FRAME NUMBER: DX 132M , BP , 7.5 KW , MOUNTING : B3"},null,"CENTRIFUGAL","65 MM","7.5 L/S","98.39 M","1435 RPM","1 ACRE",null,null,"ELECTRICAL MOTOR; 7.5 KW; 1 A",{"$nulls":5},"65-315","1 M","B3"]
["1090","0781519","PUMP:SUBMERSIBLE;80 MM;136 M3/HR;1405;2","Palmiet",{"$f":"IFERROR(VLOOKUP(TEXT(B104,\"0000000\"),Catalogue_Lookup!$A:$B,2,FALSE),\"\")","v":"PUMP: TYPE: SUBMERSIBLE; SIZE: 80 MM; CAPACITY: 136 M3/HR; SPEED: 1405 RPM; RATING: 2 KW; FURNISHED ITEMS: 460 IMPELLER; CASING MATERIAL: CAST IRON GREY; APPLICATION: SEWAGE PUMP; MANUF P/N: 3085.160; 10 METER UNJOINTED ELECTRIC SUPPLY CABLE NEEDED ON DELIVERY OF THIS PUMP , FOR SAFE SUBMERGING OF PUMP"},null,"SUBMERSIBLE","80 MM","136 M3/HR",null,"1405 RPM",null,"CAST IRON GREY",null,"2 KW",null,null,"SEWAGE PUMP",null,"2 KW",3085.16]
["1110","0781990","PUMP:HORIZONTAL SPLIT;10 -12 IN;135 L/S","Palmiet",{"$f":"IFERROR(VLOOKUP(TEXT(B105,\"0000000\"),Catalogue_Lookup!$A:$B,2,FALSE),\"\")","v":"PUMP: TYPE: HORIZONTAL SPLIT; SIZE: 10 -12 IN; CAPACITY: 135 L/S; SPEED: 1485 RPM; RATING: 6 BAR; DRIVER: 3.3 KV ELECTRIC MOTOR; APPLICATION: PALMIET ELECTRIC FIRE PUMP; MANUF P/N: HSM10/12"},null,"HORIZONTAL SPLIT","10 -12 IN","135 L/S",null,"1485 RPM",{"$nulls":3},"3.3 KV ELECTRIC MOTOR",null,null,"PALMIET ELECTRIC FIRE PUMP",null,"6 BAR","HSM10/12"]
["1130","0781520","PUMP CNTRFGL:1 M;0.3 M3/HR;61.184 M;80;1","Palmiet",{"$f":"IFERROR(VLOOKUP(TEXT(B106,\"0000000\"),Catalogue_Lookup!$A:$B,2,FALSE),\"\")","v":"PUMP, CENTRIFUGAL: NPSH: 1 M; CAPACITY: 0.3 M3/HR; TOTAL HEAD: 61.184 M; SIZE: 80 MM; SPEED: 2940 RPM; STAGE: 1 ACRE; DRIVER: ELECTRICAL MOTOR 380V 15KW; MOUNT: B3; MANUF P/N: 32-26; MOTOR FRAME 160M , HALBERG"},"HALBERG","CENTRIFUGAL","80 MM","0.3 M3/HR","61.184 M","2940 RPM","1 ACRE",null,null,"15KW; 380V; 1 A",{"$nulls":5},"32-26","1 M","B3"]

{"sheet":"Technical Clarifications","index":2,"n_rows":20,"n_cols":6,"rows_kept":20,"merged":[[0,0,0,5],[1,0,1,5],[2,0,2,5],[3,0,3,5],[4,0,4,5],[5,1,5,5],[6,1,6,4],[7,1,7,4],[8,1,8,4],[9,1,9,4],[10,1,10,4],[11,0,11,5],[19,0,19,4]]}
["TECHNICAL CLARIFICATIONS"]
["TENDER E2994GXPOU"]
["SUPPLY AND DELIVERY OF PUMPS FOR 5 YEARS AT PEAKING OPERATING UNIT"]
["This sheet records technical clarifications and queries. Tenderers must read this in conjunction with the Scope of Work and NEC Contract documents."]
["IMPORTANT TENDER CLAUSES"]
["Clause Reference","Description"]
["ITT Clause 1.6","Partial quotations permitted - Eskom reserves the right to award per item, per category, or per region"]
["ITT Clause 2.22","Alternative tenders are NOT allowed - quoted products must meet stated specifications exactly"]
["ITT Section 3.13","Functionality evaluation applies with minimum threshold - tenderers failing functionality will not proceed to price evaluation"]
["ITT Clause 3.15","90/10 Preference point system applies to all qualifying tenders"]
["NEC Contract","Contract will be administered per NEC terms issued with tender documents"]
["CLARIFICATIONS LOG"]
["Query No.","Date Received","Category","Query/Clarification","Eskom Response","Status"]
["Q001",null,"Technical Data","Missing technical parameters in Data Package","End-users to populate missing data. Bidders may use 'Supplier Comment' column for queries.","IN PROGRESS"]
["Q002"]
["Q003"]
["Q004"]
["Q005"]
[]
["NOTE: Additional queries may be submitted via official RFI process before the clarification deadline. All clarifications will be published as addenda."]

{"sheet":"Q&As","index":3,"n_rows":0,"n_cols":0,"rows_kept":0}

{"sheet":"Ankerlig - OCGT","index":4,"n_rows":7,"n_cols":25,"rows_kept":7,"merged":[[0,0,0,23],[1,0,1,24]]}
[]
[]
["Item of requisition","Material","Short Text","Storage Location","Full Description","OEM / Manufacturer","Pump Type","Size","Capacity / Flow","Head","Speed (RPM)","Stage","Body / Casing Material","Impeller Material","Driver / Motor Details","Connection Type","Seal / Packing Type","Medium / Application","Operating Temperature","Pressure / Rating","Reference / Part No.","NPSH","Mounting","Special Requirements","Supplier Comment"]
[40,553136,"PUMP:PERISTALLIC DRAIN;DN4/6;300 CM3/HR","Ankerlig - OCGT","PUMP: TYPE: PERISTALLIC DRAIN; SIZE: DN4/6; CAPACITY: 300 CM3/HR; SPEED: 5 RPM; RATING: 200-2200 MBAR; DRIVER: ELECTRICAL MOTOR; SPECIFICATION: EN61010/50081/50082; POTENTIAL: 230 VAC; APPLICATION: OEMS CONDENSOR; MANUF P/N: SR25.2-W(01P1307); ENCLOSURE RATING: IP52; TEMP RATING: MAX 60 DEG C; TUBE CONNECTIONS: DN4/6 MM; M AND C; 230 VAC WITH CONNECTION TERMINALS FOR SURFACE AND WALL MOUNTING; IP10 EN60529; REPLACING SR25.1 P/N1P1000","M&C TechGroup","POSITIVE DISPLACEMENT PERISTALTIC","DN4/6 MM","300 CM3/HR","N/A","5 RPM","N/A",null,"N/A","ELECTRICAL MOTOR; 230 VAC","PVDF wetted connections","N/A","Gas cooler Condensate fluid","MAX 60 DEG C","200-2200 MBAR","SR25.2-W(01P1307)","N/A","Wall/Panel mount","The offered equipment shall be a peristaltic condensate drainage pump fully interchangeable with M&C SR25.2-W (Part No. 01P1307) installed on CEMS and sample gas conditioning equipment"]
[60,568041,"PUMP:HEAD PERISTALTIC;4 MM;300 CM3/HR;5","Ankerlig - OCGT","PUMP: TYPE: HEAD PERISTALTIC; SIZE: 4 MM; CAPACITY: 300 CM3/HR; SPEED: 5 RPM; RATING: 1 KPA; DRIVER: ELECTRIC MOTOR; CASING MATERIAL: PLASTIC; MANUF P/N: 90P1030; USED ON CEMS SYSTEM","ABB/M&C","PERISTALTIC PUMP HEAD","4 MM tubing","300 CM3/HR","N/A","5 RPM","N/A","PLASTIC","N/A","ELECTRIC MOTOR 230VAC ",{"$nulls":4},"1 KPA","90P1030",null,null,"The supplier shall confirm compatibility with the SR25.1 peristaltic pump where 90P1030 is offered as a replacement pump head."]
[80,570352,"PUMP:PISTON;1 IN;59.4 L/MIN;1500/3300","Ankerlig - OCGT","PUMP: TYPE: PISTON; SIZE: 1 IN; CAPACITY: 59.4 L/MIN; SPEED: 1500/3300 RPM; RATING: 350 BAR; DRIVER: MOTOR; SPECIFICATION: A10 VS/018/31; APPLICATION: HYDRAULIC OIL SKID; MANUF P/N: A10 VS0 18; REFERENCE NO: R910949268","Rexroth","AXIAL PISTON PUMP","1 IN","59.4 L/MIN","350 bar","1500/3300 RPM","N/A",null,null,"MOTOR; 10 V",null,null,"HYDRAULIC OIL",null,"350 BAR","Model: A10 VS0 18; Ref: R910949268"]
[220,684709,"PUMP:DOSING;0-10 BAR;0-10 BAR, 11 WATTS","Ankerlig - OCGT","PUMP: TYPE: DOSING; SIZE: 0-10 BAR; CAPACITY: 0-10 BAR, 11 WATTS; SPEED: VARIABLE; RATING: 10 BAR, FLOW RATE 3 L/HOUR; DRIVER: INCLUDED; SPECIFICATION: ISO; POTENTIAL: 220-240 VAC; CASING MATERIAL: PVC; APPLICATION: DOSING; SUPPL P/N: 208-3.0-10000","Grundfos/Alldos","Diaphragm Dosing","0-10 BAR","3l/h","10 bar","VARIABLE",null,"PVC",null,"INCLUDED; 240 VAC","Hose compression fitting, DN 4",null,"Anti Scaling Dosing",null,"10 BAR, FLOW RATE 3 L/HOUR","Primus M208-3-10000"]

{"sheet":"Ankerlig - GAS1","index":5,"n_rows":4,"n_cols":25,"rows_kept":4,"merged":[[0,0,0,23],[1,0,1,24]]}
[]
[]
["Item of requisition","Material","Short Text","Storage Location","Full Description","OEM / Manufacturer","Pump Type","Size","Capacity / Flow","Head","Speed (RPM)","Stage","Body / Casing Material","Impeller Material","Driver / Motor Details","Connection Type","Seal / Packing Type","Medium / Application","Operating Temperature","Pressure / Rating","Reference / Part No.","NPSH","Mounting","Special Requirements","Supplier Comment"]
[590,684709,"PUMP:DOSING;0-10 BAR;0-10 BAR, 11 WATTS","Ankerlig - GAS1","PUMP: TYPE: DOSING; SIZE: 0-10 BAR; CAPACITY: 0-10 BAR, 11 WATTS; SPEED: VARIABLE; RATING: 10 BAR, FLOW RATE 3 L/HOUR; DRIVER: INCLUDED; SPECIFICATION: ISO; POTENTIAL: 220-240 VAC; CASING MATERIAL: PVC; APPLICATION: DOSING; SUPPL P/N: 208-3.0-10000","Grundfos/Alldos","Diaphragm Dosing","0-10 BAR","3l/h","10 bar","VARIABLE",null,"PVC",null,"INCLUDED; 240 VAC","Hose compression fitting, DN 4",null,"Anti Scaling Dosing",null,"10 BAR, FLOW RATE 3 L/HOUR","Primus M208-3-10000"]

{"sheet":"Critical Spares","index":6,"n_rows":6,"n_cols":25,"rows_kept":6,"merged":[[0,0,0,23],[1,0,1,24]]}
[]
[]
["Item of requisition","Material","Short Text","Storage Location","Full Description","OEM / Manufacturer","Pump Type","Size","Capacity / Flow","Head","Speed (RPM)","Stage","Body / Casing Material","Impeller Material","Driver / Motor Details","Connection Type","Seal / Packing Type","Medium / Application","Operating Temperature","Pressure / Rating","Reference / Part No.","NPSH","Mounting","Special Requirements","Supplier Comment"]
[20,239820,"ASSY:LUBE OIL PUMP;DIA 158 MM","Critical Spares","ASSEMBLY: TYPE: LUBE OIL PUMP; DIMENSIONS: DIA 158 MM; SUPPL P/N: NSS V50-160; REFERENCE NO: W-69-T-1330-GL112; 7045803; SPEED 2100 RPM, NSPH 1.6 M",null,"LUBE OIL",{"$nulls":3},"2100 RPM, NSPH 1.6 M",{"$nulls":9},"NSS V50-160; W-69-T-1330-GL112"]
[30,239821,"ASSY:LUBE OIL PUMP;DIA 230 MM","Critical Spares","ASSEMBLY: TYPE: LUBE OIL PUMP; DIMENSIONS: DIA 230 MM; SUPPL P/N: VSS V65-250; REFERENCE NO: 7045802; W-69-T-1330/200L; SPEED 2900 RPM",null,"LUBE OIL",{"$nulls":3},"2900 RPM",{"$nulls":9},"VSS V65-250; 7045802"]
[720,646932,"PUMP:HAND;3/4 IN;VARIABLE;0-100 PCT;PN10","Critical Spares","PUMP: TYPE: HAND; SIZE: 3/4 IN; CAPACITY: VARIABLE; SPEED: 0-100 PCT; RATING: PN10; DRIVER: HAND OPERATED; SPECIFICATION: ISO 9001; CASING MATERIAL: CI; APPLICATION: INLET VALVE CONTROL",null,"HAND","3/4 IN","VARIABLE",null,"0-100 PCT",null,"CI",null,"HAND OPERATED",null,null,"INLET VALVE CONTROL",null,"PN10"]

{"sheet":"Drakensberg","index":7,"n_rows":32,"n_cols":25,"rows_kept":32,"merged":[[0,0,0,23],[1,0,1,24]]}
[]
[]
["Item of requisition","Material","Short Text","Storage Location","Full Description","OEM / Manufacturer","Pump Type","Size","Capacity / Flow","Head","Speed (RPM)","Stage","Body / Casing Material","Impeller Material","Driver / Motor Details","Connection Type","Seal / Packing Type","Medium / Application","Operating Temperature","Pressure / Rating","Reference / Part No.","NPSH","Mounting","Special Requirements","Supplier Comment"]
[10,177401,"PUMP RTRY:GEAR;90 MM;400 L/MIN;960 RPM","Drakensberg","PUMP, ROTARY: TYPE: GEAR; PORT SIZE: 90 MM; CAPACITY: 400 L/MIN; SPEED: 960 RPM; RATING: 490 KPA; REFERENCE NO: K6Q700082; DRIVER 380 VAC 15.5 A 3PH 50 HZ 7.5 KW","VIKING/ALBANY PUMPS","GEAR","90 MM","400 L/MIN","58.8M","960 RPM","N/A","Cast Iron (ASTM A48 Class 30 / EN-GJL-250 or equivalent)","N/A","7.5 KW; 380 VAC; 15.5 A","FLANGES","SINGLE MECHANICAL SEAL","OIL","120-150 Deg","490 KPA","K6Q700082"," ","HORIZONTAL","N/A"," "]
[110,764619,"PUMP:CENTRIFUGAL;BS2400.402 HT243 ACRE","Drakensberg","PUMP: TYPE: CENTRIFUGAL; SIZE: BS2400.402 HT243 ACRE; CAPACITY: 25 L/S; SPEED: 2960 RPM; RATING: 90 KW , 380V, 155A ACRE; REFERENCE NO: BS2400.402 HT243","ACRE","CENTRIFUGAL","BS2400.402 HT243 ACRE","25 L/S","60-80M","2960 RPM",1,"CAST IRON","BRONZE/ STAINLESS STEEL","90 KW; 380V; 243 A","FLANGES","MECHANICAL SEAL","WATER","5-50 Deg","90 KW , 380V, 155A ACRE","BS2400.402 HT243","N/A","hORIZONTAL","N/A"," "]
[150,767474,"PUMP:SINE CURVE GEAR PUMP;125 MM;5000;75","Drakensberg","PUMP: TYPE: SINE CURVE GEAR PUMP; SIZE: 125 MM; CAPACITY: 5000 L/S; SPEED: 725 RPM; RATING: 75 KW; APPLICATION: THRUST GUIDE BEARING OIL SYSTEM; DRAWING NO:","VIKING/KRAL/ROPER PUMPS","GEAR","125 MM","5000 L/S","30-60M","725 RPM","N/A","CAST IRON","N/A","75 KW","FLANGES","SINGLE MECHANICAL SEAL","THRUST GUIDE BEARING OIL SYSTEM","30-70 Deg","75 KW","N/A","N/A","HORIZONTAL","N/A"," "]
[160,767475,"PUMP:GEAR PUMP;1½ IN;8 M3/HR;420 RPM;5","Drakensberg","PUMP: TYPE: GEAR PUMP; SIZE: 1½ IN; CAPACITY: 8 M3/HR; SPEED: 420 RPM; RATING: 5 HP; APPLICATION: OIL STORAGE BULK TANKS; MODEL NO:","VIKING/ROPER/ JOHNSON PUMP","GEAR","1½ IN","8 M3/HR","51M","420 RPM","N/A","CAST IRON","N/A","5 KW","FLANGES","MECHANICAL SEAL","OIL STORAGE BULK TANKS","20-80 Deg","5 HP","N/A","N/A","HORIZONTAL","N/A"," "]
[170,767484,"PUMP CNTRFGL:5.24 M;108.6 M3/S;63.30 M;1","Drakensberg","PUMP, CENTRIFUGAL: NPSH: 5.24 M; CAPACITY: 108.6 M3/S; TOTAL HEAD: 63.30 M; SIZE: CP 80 - 216 ACRE; SPEED: 2950 RPM; STAGE: 1; TYPE: CENTRIFUGAL PUMP; MOUNT: HORIZONTAL; MODEL NO:","ACRE","CENTRIFUGAL","CP 80 - 216 ACRE","108.6 M3/S","63.30 M","2950 RPM",1,"CAST IRON","Cast Iron or Stainless Steel (depending on service)","216 A","FLANGES","MECHANICAL SEAL","WATER/OIL","0-80 Deg","6.21 bar","N/A","5.24 M","HORIZONTAL","N/A"," "]
[180,767572,"PUMP:LB 17;J-80/80-E-C ACRE;530 L/MIN","Drakensberg","PUMP: TYPE: LB 17; SIZE: J-80/80-E-C ACRE; CAPACITY: 530 L/MIN; SPEED: 2900 RPM; RATING: 59.9 KPA; APPLICATION: GORVENOR OIL SYSTEM; MODEL NO:","ACRE","LB 17","J-80/80-E-C ACRE","530 L/MIN","6.1M","2900 RPM",1,"CAST IRON","CAST IRON/ BRONZE","50HZ","FLANGES","MECHANICAL SEAL","GORVENOR OIL SYSTEM","20-80 Deg","59.9 KPA"," N/A","N/A","HORIZONTAL","N/A"," "]
[190,767574,"PUMP:CENTRIFUGAL PUMP;12x10x17 IN;1480","Drakensberg","PUMP: TYPE: CENTRIFUGAL PUMP; SIZE: 12x10x17 IN; CAPACITY: 300 - 400 L/S; SPEED: 1480 RPM; RATING: 400 V; DRIVER: 110 KW; APPLICATION: MAIN COOLING WATER SYSTEM; MODEL NO: PWO 12X10X17 / P12/ 10-17","NOT SPECIFIED","CENTRIFUGAL","12x10x17 IN","300 - 400 L/S","20-30M","1480 RPM",1,"CAST IRON","CAST IRON/ BRONZE","110 KW; 400 V","FLANGES","MECHANICAL SEAL","MAIN COOLING WATER SYSTEM","5-50 Deg","400 V","PWO 12X10X17 / P12/ 10-17","N/A","HORIZONTAL","N/A"," "]
[200,767604,"PUMP:CENTRIFUGAL PUMP;10x8x17 IN;980 RPM","Drakensberg","PUMP: TYPE: CENTRIFUGAL PUMP; SIZE: 10x8x17 IN; CAPACITY: 200 - 400 L/S; SPEED: 980 RPM; RATING: 380 V; DRIVER: 55 KW; APPLICATION: COMMON SERVICES COOLING SYSTEM; MODEL NO:","NOT SPECIFIED","CENTRIFUGAL","10x8x17 IN","200 - 400 L/S","10-20M","980 RPM",1,"CAST IRON ","CAST IRON/ BRONZE","55 KW; 380 V","FLANGES","MECHANICAL SEAL","COMMON SERVICES COOLING SYSTEM","5-50 Deg","380 V","N/A","N/A","HORIZONTAL","N/A"," "]
[250,755878,"PUMP:ETANORM 150-125-315 GB10;305 MM;216","Drakensberg","PUMP: TYPE: ETANORM 150-125-315 GB10; SIZE: 305 MM; CAPACITY: 216 M3/HR; SPEED: 147 RPM; RATING: 216 M3/HR; DRIVER: 21.71 KW; POTENTIAL: 380 V; APPLICATION: CIRCULATING WATER IN CHILLER PLANT; SUPPL P/N: 9974643299/100/2; P/N TYPE:","KSB","ETANORM 150-125-315 GB10","305 MM","216 M3/HR","28M","147 RPM",1,"CAST IRON ","BRONZE/ CAST IRON","21.71 KW; 380 V","FLANGES","MECHANICAL SEAL","CIRCULATING WATER IN CHILLER PLANT","0-40 Deg","216 M3/HR","9974643299/100/2","N/A","HORIZONTAL","N/A"," "]
[300,764619,"PUMP:CENTRIFUGAL;BS2400.402 HT243 ACRE","Drakensberg","PUMP: TYPE: CENTRIFUGAL; SIZE: BS2400.402 HT243 ACRE; CAPACITY: 25 L/S; SPEED: 2960 RPM; RATING: 90 KW , 380V, 155A ACRE; REFERENCE NO: BS2400.402 HT243","ACRE","CENTRIFUGAL","BS2400.402 HT243 ACRE","25 L/S","60-80M","2960 RPM",1,"CAST IRON","BRONZE/ STAINLESS STEEL","90 KW; 380V; 243 A","FLANGES","MECHANICAL SEAL","WATER","5-50 Deg","90 KW , 380V, 155A ACRE","BS2400.402 HT243","N/A","hORIZONTAL","N/A"," "]
[340,767474,"PUMP:SINE CURVE GEAR PUMP;125 MM;5000;75","Drakensberg","PUMP: TYPE: SINE CURVE GEAR PUMP; SIZE: 125 MM; CAPACITY: 5000 L/S; SPEED: 725 RPM; RATING: 75 KW; APPLICATION: THRUST GUIDE BEARING OIL SYSTEM; DRAWING NO:","NOT SPECIFIED","GEAR","125 MM","5000 L/S","NOT SPECIFIED","725 RPM",1,"CAST IRON/ DUCTILE IRON","GEAR IS HARDENED ALLOY STEEL","75 KW","FLANGES","MECHANICAL SEAL","THRUST GUIDE BEARING OIL SYSTEM","80 Deg ","75 KW","N/A","N/A","HORIZONTAL","N/A"," "]
[350,767475,"PUMP:GEAR PUMP;1½ IN;8 M3/HR;420 RPM;5","Drakensberg","PUMP: TYPE: GEAR PUMP; SIZE: 1½ IN; CAPACITY: 8 M3/HR; SPEED: 420 RPM; RATING: 5 HP; APPLICATION: OIL STORAGE BULK TANKS; MODEL NO:","NOT SPECIFIED","GEAR","1½ IN","8 M3/HR","40M","420 RPM",1,"CAST IRON/ CAST STEEL","GEAR IS HARDENED ALLOY STEEL","5 HP","FLANGES","MECHANICAL SEAL","OIL STORAGE BULK TANKS","80 Deg ","5 HP","N/A","N/A","HORIZONTAL","N/A"," "]
[360,767484,"PUMP CNTRFGL:5.24 M;108.6 M3/S;63.30 M;1","Drakensberg","PUMP, CENTRIFUGAL: NPSH: 5.24 M; CAPACITY: 108.6 M3/S; TOTAL HEAD: 63.30 M; SIZE: CP 80 - 216 ACRE; SPEED: 2950 RPM; STAGE: 1; TYPE: CENTRIFUGAL PUMP; MOUNT: HORIZONTAL; MODEL NO:","ACRE","CENTRIFUGAL","CP 80 - 216 ACRE","108.6 M3/S","63.30 M","2950 RPM",1,"CAST IRON/ DUCTILE IRON","BRONZE/ STAINLESS STEEL","216 A","FLANGES","MECHANICAL SEAL","WATER","50 Deg","6.2 Bar","N/A","5.24 M","HORIZONTAL","N/A"," "]
[370,767572,"PUMP:LB 17;J-80/80-E-C ACRE;530 L/MIN","Drakensberg","PUMP: TYPE: LB 17; SIZE: J-80/80-E-C ACRE; CAPACITY: 530 L/MIN; SPEED: 2900 RPM; RATING: 59.9 KPA; APPLICATION: GORVENOR OIL SYSTEM; MODEL NO:","ACRE","LB 17","J-80/80-E-C ACRE","530 L/MIN","7.2 M","2900 RPM",1,"CAST IRON/ CAST STEEL","BRONZE/ STAINLESS STEEL","7.5KW","FLANGES","MECHANICAL SEAL","GORVENOR OIL SYSTEM","80 Deg ","59.9 KPA","N/A","N/A","HORIZONTAL","N/A"," "]
[380,767574,"PUMP:CENTRIFUGAL PUMP;12x10x17 IN;1480","Drakensberg","PUMP: TYPE: CENTRIFUGAL PUMP; SIZE: 12x10x17 IN; CAPACITY: 300 - 400 L/S; SPEED: 1480 RPM; RATING: 400 V; DRIVER: 110 KW; APPLICATION: MAIN COOLING WATER SYSTEM; MODEL NO: PWO 12X10X17 / P12/ 10-17","NOT SPECIFIED","CENTRIFUGAL","12x10x17 IN","300 - 400 L/S","30M","1480 RPM",1,"CAST IRON","CAST IRON STAINLESS STEEL","110 KW; 400 V","FLANGES","MECHANICAL SEAL","MAIN COOLING WATER SYSTEM","45 Deg","400 V","PWO 12X10X17 / P12/ 10-17","N/A","HORIZONTAL","N/A"," "]
[390,767604,"PUMP:CENTRIFUGAL PUMP;10x8x17 IN;980 RPM","Drakensberg","PUMP: TYPE: CENTRIFUGAL PUMP; SIZE: 10x8x17 IN; CAPACITY: 200 - 400 L/S; SPEED: 980 RPM; RATING: 380 V; DRIVER: 55 KW; APPLICATION: COMMON SERVICES COOLING SYSTEM; MODEL NO:","NOT SPECIFIED","CENTRIFUGAL","10x8x17 IN","200 - 400 L/S","30M","980 RPM",1,"CAST IRON/ DUCTILE IRON","BRONZE/ STAINLESS STEEL","55 KW; 380 V","FLANGES","MECHANICAL SEAL","COMMON SERVICES COOLING SYSTEM","45 Deg","380 V","N/A","N/A","HORIZONTAL","N/A"," "]
[410,46403,"SHAFT PMP:LG 717 MM;STL;92 MM","Drakensberg","SHAFT, PUMP: LENGTH: 717 MM; MATERIAL: STL; NOMINAL DIAMETER: 92 MM; END STYLE 1: DIA 60 X SLOT 18 MM; END STYLE 2: DIA 57 X THD 12 MM; REFERENCE NO: 5-007-0","NOT SPECIFIED","SHAFT PUMP","92MM X 717MM","NS","NS","NS",1,"CARBON STEEL","SHAFT IS STEEL","NS","KEYED/THREADED CONNECTION","MECHANICAL SEAL","WATER","NS","NS","5-007-0","N/A","VERTICAL","N/A"," "]
[420,46406,"SHAFT PMP:LG 493 MM;STL;20 MM","Drakensberg","SHAFT, PUMP: LENGTH: 493 MM; MATERIAL: STL; NOMINAL DIAMETER: 20 MM; END STYLE 1: DIA 24 X SLOT 8 MM; END STYLE 2: DIA 16 X THD 1.5 MM; SUPPL P/N: 210; FOR K.S.B. ETA-B40- 26AK CENTRIFUGAL PUMP; IMPELLER DIA. 238MM","KSB","CENTRIFUGAL","20X493 MM","NS","NS","NS",1,"CARBON STEEL","SHAFT IS STEEL","26A","KEYED/THREADED CONNECTION","MECHANICAL SEAL","WATER","NS","NS",210,"N/A","VERTICAL","N/A"," "]
[430,49532,"PUMP RTRY:HYDRAULIC DOUBLE SCREW;50 MM","Drakensberg","PUMP, ROTARY: TYPE: HYDRAULIC DOUBLE SCREW; PORT SIZE: 50 MM; CAPACITY: 520 L/MIN; SPEED: 2920 RPM; RATING: 60 BAR; REFERENCE NO: LB 17-80/80-E-C; POWER INPUT 54 KW, PUMPING LIQUID: HYDR.OIL VISCOSITY 38 DEG E, OPERATING TEMPERATURE: 50 DEG C","NOT SPECIFIED","HYDRAULIC","50 MM","520 L/MIN","720M","2920 RPM",1,"CAST IRON","BRONZE","54 KW","FLANGES","MECHANICAL SEAL","OIL","50 DEG C","60 BAR","LB 17-80/80-E-C","N/A","HORIZONTAL","N/A"," "]
[460,562732,"PUMP CNTRFGL:2.4 M;600 M3/HR;71.2 M;1450","Drakensberg","PUMP, CENTRIFUGAL: NPSH: 2.4 M; CAPACITY: 600 M3/HR; TOTAL HEAD: 71.2 M; SIZE: 200 X 250; SPEED: 1450 RPM; STAGE: 1; DRIVER: ELECTRIC MOTOR; TYPE: SLUICE HP; SPECIFICATION: KSB; SHAFT DIAMETER: 70 MM; REFERENCE NO: ZAN-28833; APPLICATION: TO BE FITTED WITH A 456 MM DOUBLE ENTRY IMPELLER; OMEGA 200-520A","KSB","SLUICE HP","200 X 250","600 M3/HR","71.2 M","1450 RPM",1,"CAST IRON","BRONZE","ELECTRIC MOTOR; 520A","DIRECT COUPLE MOTOR","MECHANICAL SEAL","TO BE FITTED WITH A 456 MM DOUBLE ENTRY IMPELLER","90 Deg","7 bar","ZAN-28833","2.4 M","HORIZONTAL","N/A"," "]
[470,581218,"PUMP CNTRFGL:0;39 L/S;49 M;856 MM;1450","Drakensberg","PUMP, CENTRIFUGAL: NPSH: 0; CAPACITY: 39 L/S; TOTAL HEAD: 49 M; SIZE: 856 MM; SPEED: 1450 RPM; STAGE: SINGLE; TYPE: SUBMERSIBLE; REFERENCE NO: MJP 053 4054; 150MH-SBO-4P55-D150-HZ-02; POWER INSTALLED: 55KW; VOLTAGE: 400V; AMPS: 105A FULL LOAD; PUMP WEIGHT: 1184KG; HYDRAULIC END; IMPELLER TYPE: OPEN VANE; IMPELLER DIAMETER 394MM; VANE HEIGHT: 24MM; NUMBER OF VANES IS 5; MAX SPHERE THROUGH IMPELLER: 30MM PRODUCT PUMPED SLURRY; PUMP TOTAL LENGTH: 1648; DISCHARGE FLANGE DETAIL: 150 NOM TO BS4504 1613 OD: 288MM 8 HOLE FLANGE PCD: 240","NOT SPECIFIED","SUBMERSIBLE","856 MM","39 L/S","49 M","1450 RPM","SINGLE","HIGH CHROME CAST IRON","HIGH CHROME ALLOY","55KW; 400V; 105A","FLANGES","MECHANICAL SEAL","WATER","60 Deg","N/S","MJP 053 4054",0,"HORIZONTAL","N/A"," "]
[480,586241,"PUMP CNTRFGL:1 M;130 M3/HR;42.2 M;2940","Drakensberg","PUMP, CENTRIFUGAL: NPSH: 1 M; CAPACITY: 130 M3/HR; TOTAL HEAD: 42.2 M; SIZE: 100 X 80; SPEED: 2940 RPM; STAGE: SINGLE; MANUF P/N: KSBETANORM100-080-200GGA10GA302202B; REFERENCE NO: M063/11E; SUCTION DIAMETER: DN100; DISCHARGE DIAMETER: DN80; CODE:9972464992","KSB","CENTRIFUGAL","100 X 80","130 M3/HR","42.2 M","2940 RPM","SINGLE","CAST IRON","CAST IRON/ BRONZE","50 HZ","FLANGES","MECHANICAL SEAL","WATER","80 Deg ","N/S","KSBETANORM100-080-200GGA10GA302202B; M063/11E","1 M","HORIZONTAL","N/A"," "]
[530,650096,"PUMP RCPRTG:DIAPHRAGM DOSING","Drakensberg","PUMP, RECIPROCATING: TYPE: DIAPHRAGM DOSING; SUPPL P/N: 251-5-10046","GRUNDFOS/SEKO","DIAPHRAGM","NOT SPECIFIED","NOT SPECIFIED","NOT SPECIFIED","NOT SPECIFIED",1,"CAST ALUMINIUM/ CAST IRON","N/A","NOT SPECIFIED","NOT SPECIFIED","MECHANICAL SEAL","WATER/ SLUDGE","0-80 Deg","NOT SPECIFIED","251-5-10046","N/A","HORIZONTAL","N/A"," "]
[570,666763,"PUMP:SUBMERSIBLE;DIA 160 MM;2900 RPM;1.9","Drakensberg","PUMP: TYPE: SUBMERSIBLE; SIZE: DIA 160 MM; CAPACITY: 0.3-5.0 L/S; 32-2 M; SPEED: 2900 RPM; RATING: 1.9 KW; DRIVER: MOTOR 400 V 4.5 A 50 HZ; SPECIFICATION: NS 50-172/01 2ULG 160; APPLICATION: SUBMERSIBLE PUMP FOR SEWAGE","SULZER","SUBMERSIBLE","DIA 160 MM","0.3-5.0 L/S","32=2 M","2900 RPM",1,"CAST IRON","CAST IRON","1.9 KW; 400 V; 4.5 A","FLANGES","MECHANICAL SEAL","SUBMERSIBLE PUMP FOR SEWAGE","0- +40 Deg","1.9 KW","NS 50-172/01 2ULG 160","N/A","VERTICAL","N/A"," "]
[580,683236,"PUMP:MONO;VARIOUS;13.4 M3/HR;1430 RPM;10","Drakensberg","PUMP: TYPE: MONO; SIZE: VARIOUS; CAPACITY: 13.4 M3/HR; SPEED: 1430 RPM; RATING: 10 BAR; DRIVER: ELECTRIC MOTOR; POTENTIAL: 380 V; CASING MATERIAL: CAST STEEL; APPLICATION: STATION SEWAGE PLANT; MODEL NO: C62M","MONO PUMPS","MONO","VARIOUS","13.4 M3/HR","102 M","1430 RPM",1,"CAST STEEL","CAST STEEL","ELECTRIC MOTOR; 380 V","FLANGES","MECHANICAL SEAL","STATION SEWAGE PLANT","0 TO +80 Deg","10 BAR","C62M","N/A","HORIZONTAL","N/A"," "]
[600,716822,"PUMP:SUBMISSIBLE;25 M;2500 L/MIN;1450;30","Drakensberg","PUMP: TYPE: SUBMISSIBLE; SIZE: 25 M; CAPACITY: 2500 L/MIN; SPEED: 1450 RPM; RATING: 30 KW; DRIVER: ELECTRICAL MOTOR; APPLICATION: NEUTRALISATION SUMP WATER; SUPPL P/N: 350CP ( ) 150H100Z; A COMPLETE DATA BOOK TO BE SUBMITTED ON SPARE DELIVERY","ITT","SUBMERSIBLE","25 M","2500 L/MIN"," ","1450 RPM"," "," "," ","ELECTRICAL MOTOR; 30 KW"," "," ","NEUTRALISATION SUMP WATER"," ","30 KW","350CP ( ) 150H100Z"," "," "," "," "]
[620,731981,"PUMP:HYDRAULIC HAND PUMP;2200 CM3;2 RPM","Drakensberg","PUMP: TYPE: HYDRAULIC HAND PUMP; SIZE: 2200 CM3; CAPACITY: CYLINDER STROKE 25.4 MM; SPEED: 2 RPM; RATING: 700 BAR","ENERPAC/SIMPLEX","HYDRAULIC","2200 CM3","CYLINDER STROKE 25.4 MM","8400 M","2 RPM",1,"CAST STEEL/ HIGH STRENTH STEEL","STEEL","MANUAL HAND LEVER OPERATED","THREADED HYDRAULIC CONNECTION","MECHANICAL SEAL","OIL","0 TO 60 Deg","700 BAR","NOT SPECIFIED","N/A","HORIZONTAL","N/A"," "]
[640,750954,"PUMP:PROMINENT BT4B;10.0 W;1 L/HR;180;16","Drakensberg","PUMP: TYPE: PROMINENT BT4B; SIZE: 10.0 W; CAPACITY: 1 L/HR; SPEED: 180 STR/MIN; RATING: 16 BAR; SUPPL P/N: BT4B 1601 PVT2","PROMINENT","PROMINENT BT4B","10.0 W","1 L/HR","163 M","180 STR/MIN",1,"POLYPROPYLENE","N/A","10 W","TUBE COMPRESION FITTING","MECHANICAL SEAL","WATER/OIL","0-45","16 BAR","BT4B 1601 PVT2","N/A","HORIZONTAL","N/A"," "]
[650,751465,"PUMP:PROMINENT GMXA;25 W;2.3 L/HR;180;16","Drakensberg","PUMP: TYPE: PROMINENT GMXA; SIZE: 25 W; CAPACITY: 2.3 L/HR; SPEED: 180 STR/MIN; RATING: 16 BAR; SUPPL P/N: GMXA1602; PRODUCT RANGE: GMXA1602PVT2","PROMINENT","PROMINENT GMXA","25 W","2.3 L/HR","163 M","180 STR/MIN",1,"POLYPROPYLENE","N/A","25 W","TUBE COMPRESION FITTING","MECHANICAL SEAL","WASTE WATER","0-45 Deg","16 BAR","GMXA1602","N/A","HORIZONTAL","N/A"," "]

{"sheet":"Gariep","index":8,"n_rows":4,"n_cols":25,"rows_kept":4,"merged":[[0,0,0,23],[1,0,1,24]]}
[]
[]
["Item of requisition","Material","Short Text","Storage Location","Full Description","OEM / Manufacturer","Pump Type","Size","Capacity / Flow","Head","Speed (RPM)","Stage","Body / Casing Material","Impeller Material","Driver / Motor Details","Connection Type","Seal / Packing Type","Medium / Application","Operating Temperature","Pressure / Rating","Reference / Part No.","NPSH","Mounting","Special Requirements","Supplier Comment"]
[400,23664,"PUMP RTRY:GEAR;220 GAL/MIN;960 RPM;28.44","Gariep","PUMP, ROTARY: TYPE: GEAR; CAPACITY: 220 GAL/MIN; SPEED: 960 RPM; RATING: 28.44 LB; REFERENCE NO: EP8360455; ENCLOSED PORT SIZE; OIL CIRC GEN BEARING",null,"GEAR",null,"220 GAL/MIN",null,"960 RPM",{"$nulls":8},"28.44 LB","EP8360455"]

{"sheet":"Gourikwa","index":9,"n_rows":12,"n_cols":25,"rows_kept":12,"merged":[[0,0,0,23],[1,0,1,24]]}
[]
[]
["Item of requisition","Material","Short Text","Storage Location","Full Description","OEM / Manufacturer","Pump Type","Size","Capacity / Flow","Head","Speed (RPM)","Stage","Body / Casing Material","Impeller Material","Driver / Motor Details","Connection Type","Seal / Packing Type","Medium / Application","Operating Temperature","Pressure / Rating","Reference / Part No.","NPSH","Mounting","Special Requirements","Supplier Comment"]
[50,553136,"PUMP:PERISTALLIC DRAIN;DN4/6;300 CM3/HR","Gourikwa","PUMP: TYPE: PERISTALLIC DRAIN; SIZE: DN4/6; CAPACITY: 300 CM3/HR; SPEED: 5 RPM; RATING: 200-2200 MBAR; DRIVER: ELECTRICAL MOTOR; SPECIFICATION: EN61010/50081/50082; POTENTIAL: 230 VAC; APPLICATION: OEMS CONDENSOR; MANUF P/N: SR25.2-W(01P1307); ENCLOSURE RATING: IP52; TEMP RATING: MAX 60 DEG C; TUBE CONNECTIONS: DN4/6 MM; M AND C; 230 VAC WITH CONNECTION TERMINALS FOR SURFACE AND WALL MOUNTING; IP10 EN60529; REPLACING SR25.1 P/N1P1000","M&C TechGroup","POSITIVE DISPLACEMENT PERISTALTIC","DN4/6 MM","300 CM3/HR","N/A","5 RPM","N/A",null,"N/A","ELECTRICAL MOTOR; 230 VAC","PVDF wetted connections","N/A","Gas cooler Condensate fluid","MAX 60 DEG C","200-2200 MBAR","SR25.2-W(01P1307)","N/A","Wall/Panel mount","The offered equipment shall be a peristaltic condensate drainage pump fully interchangeable with M&C SR25.2-W (Part No. 01P1307) installed on CEMS and sample gas conditioning equipment"]
[70,568041,"PUMP:HEAD PERISTALTIC;4 MM;300 CM3/HR;5","Gourikwa","PUMP: TYPE: HEAD PERISTALTIC; SIZE: 4 MM; CAPACITY: 300 CM3/HR; SPEED: 5 RPM; RATING: 1 KPA; DRIVER: ELECTRIC MOTOR; CASING MATERIAL: PLASTIC; MANUF P/N: 90P1030; USED ON CEMS SYSTEM","ABB/M&C","PERISTALTIC PUMP HEAD","4 MM tubing","300 CM3/HR","N/A","5 RPM","N/A","PLASTIC","N/A","ELECTRIC MOTOR 230VAC ",{"$nulls":4},"1 KPA","90P1030",null,null,"The supplier shall confirm compatibility with the SR25.1 peristaltic pump where 90P1030 is offered as a replacement pump head."]
[90,570352,"PUMP:PISTON;1 IN;59.4 L/MIN;1500/3300","Gourikwa","PUMP: TYPE: PISTON; SIZE: 1 IN; CAPACITY: 59.4 L/MIN; SPEED: 1500/3300 RPM; RATING: 350 BAR; DRIVER: MOTOR; SPECIFICATION: A10 VS/018/31; APPLICATION: HYDRAULIC OIL SKID; MANUF P/N: A10 VS0 18; REFERENCE NO: R910949268","Rexroth","AXIAL PISTON PUMP","1 IN","59.4 L/MIN","350 bar","1500/3300 RPM","N/A",null,null,"MOTOR; 10 V",null,null,"HYDRAULIC OIL",null,"350 BAR","Model: A10 VS0 18; Ref: R910949268"]
[100,587283,"STATOR PMP:SCREW;DIA 57 X LG 210 MM","Gourikwa","STATOR, PUMP: TYPE: SCREW; DIMENSIONS: DIA 57 X LG 210 MM; MATERIAL: STEEL/VITON RUBBER; MANUF P/N: 113011 0053D; SEEPEX BN1-6L; VENDORS ARE RESPONSIBLE FOR ENSURING THAT THEY ARE PERFORMING AGAINST THE CORRECT DRAWING REVISION NUMBER (IF APPLICABLE).","Seepex ","Positive Displacemant Progressive Cavity pump","1 1/2 Inch","1m3/h","6 bar",null,"N/A","A1( casing parts) Fabricated from Iron/ Cast Iron, stator A7 - See Seepex material code - specialized hard material","Rotor material: Alloy 904L/1.4539 Stainless steel","N/A",null,"Main Shaft seal: Single acting Bi-directional mechanical seal","Sludge containing diesel hydrocarbons, oily solids, abrasive particulate matter and trapped gas/air","ambient ","6 Bar","BN 1-6L/A1-A7-A7-FO-GA-X",null,"Horizontal"]
[210,643672,"PUMP:HYDRAULIC VANE;1465 RPM;300 BAR","Gourikwa","PUMP: TYPE: HYDRAULIC VANE; SIZE: SUCTION DIA X 38.1; PRESSURE DIA 25.4 MM; SPEED: 1465 RPM; RATING: 300 BAR; DRIVER: ELECTRIC MOTOR; SPECIFICATION: T7BB112R00A5M0; APPLICATION: MBV LIFTING OIL; SUPPL P/N: 054-34367-500; DENISON","DENISON","HYDRAULIC VANE","SUCTION DIA X 38.1 MM, PRESSURE DIA: 25.4MM","35ml/rev","35m","1465 RPM","n/a",null,null,"ELECTRIC MOTOR; 00A","Search Part number","Search Part Number","Hydraulic Oil",null,"300 BAR","T7BB112R00A5M0"]
[230,684709,"PUMP:DOSING;0-10 BAR;0-10 BAR, 11 WATTS","Gourikwa","PUMP: TYPE: DOSING; SIZE: 0-10 BAR; CAPACITY: 0-10 BAR, 11 WATTS; SPEED: VARIABLE; RATING: 10 BAR, FLOW RATE 3 L/HOUR; DRIVER: INCLUDED; SPECIFICATION: ISO; POTENTIAL: 220-240 VAC; CASING MATERIAL: PVC; APPLICATION: DOSING; SUPPL P/N: 208-3.0-10000","Grundfos/Alldos","Diaphragm Dosing","0-10 BAR","3l/h","10 bar","VARIABLE",null,"PVC",null,"INCLUDED; 240 VAC","Hose compression fitting, DN 4",null,"Anti Scaling Dosing",null,"10 BAR, FLOW RATE 3 L/HOUR","Primus M208-3-10000"]
[270,763291,"PUMP CNTRFGL:1.8 M;80 M3/HR;60 M;DIA 400","Gourikwa","PUMP, CENTRIFUGAL: NPSH: 1.8 M; CAPACITY: 80 M3/HR; TOTAL HEAD: 60 M; SIZE: DIA 400 MM; SPEED: 1460 RPM; STAGE: 1; DRIVER: BHP: 19.3 KW, MOTOR: 30 KW; TYPE: FUEL TREATMENT; SPECIFICATION: PUMP TYPE: CENTRIFUGAL,  KRC-80F/400-100/GN, Q: 80 M3/H, H: 60M, BHP: 19.3 KW, SPED: 1460 RPM, PUMPING MEDIUM: DIESEL; MOUNT: HORIZONTAL; MANUF P/N:  KRC-80F/400-100/GN, SERIAL NUMBER:1277485/01-1, APOLLO GÖSSNITZ GMBH","APOLLO GÖSSNITZ","Centrifugal ","DIA 400 MM","80 M3/HR","60 M","1460 RPM",1,null,null,"19.3 KW",null,null,"DIESEL",null,null,"KRC-80F/400-100/GN, SERIAL NUMBER:1277485/01-1, APOLLO GÖSSNITZ GMBH","1.8 M","HORIZONTAL"]
[450,250735,"PUMP CNTRFGL:4.1 M;124 M3/HR;1.091 KM;13","Gourikwa","PUMP, CENTRIFUGAL: NPSH: 4.1 M; CAPACITY: 124 M3/HR; TOTAL HEAD: 1.091 KM; SPEED: 2980 RPM; STAGE: 13; DRIVER: ELECTRIC MOTOR; TYPE: FUEL OIL INJECTION; MOUNT: BASE","Sulzer","Centrifugal Multistage ","MC80-260/13-440kW","124 M3/HR","1091 M","2980 RPM",13,"1.0619.01",0.602,"ELECTRIC MOTOR, 440 kW","Flange Inlet DN 150, Flange outlet DN 80","Burgman mechanical seal","Diesel","Less than 64 Dgrees C","Inlet: PN 16, Outlet: PN 160","MC80-260/13","4.1 M","Horizontal"]
[500,627091,"PUMP:HYDRAULIC;1-1/2 IN;41 L/MIN;1465","Gourikwa","PUMP: TYPE: HYDRAULIC; SIZE: 1-1/2 IN; CAPACITY: 41 L/MIN; SPEED: 1465 RPM; RATING: 320 BAR; DRIVER: MOTOR; POTENTIAL: 400 V; APPLICATION: MBV LIFT OIL GAS1; REFERENCE NO: T7B B09 2R00","Denison","Vane ","Suction Size dia: 38.1mm, Pressure Size Dia: 25.4mm","41 L/MIN",null,"1465 RPM",{"$nulls":3},"MOTOR; 400 V","ISO 2-bolt mounting flange",null,"Hydraulic Oil ",null,"320 BAR","T7B B09 2R00A5M0"]

{"sheet":"Ingula P Station","index":10,"n_rows":15,"n_cols":25,"rows_kept":15,"merged":[[0,0,0,23],[1,0,1,24]]}
[]
[]
["Item of requisition","Material","Short Text","Storage Location","Full Description","OEM / Manufacturer","Pump Type","Size","Capacity / Flow","Head","Speed (RPM)","Stage","Body / Casing Material","Impeller Material","Driver / Motor Details","Connection Type","Seal / Packing Type","Medium / Application","Operating Temperature","Pressure / Rating","Reference / Part No.","NPSH","Mounting","Special Requirements","Supplier Comment"]
[490,620403,"PUMP RTRY:VANES;1 X 1-1/2 IN;29 CM3;980","Ingula P Station","PUMP, ROTARY: TYPE: VANES; PORT SIZE: 1 X 1-1/2 IN; CAPACITY: 29 CM3; SPEED: 980 RPM; RATING: 21 MPA; DRIVER: ELECTRIC MOTOR; APPLICATION: GENERATOR; MOUNT: FOOT; OEM P/N: A10VO28DR/31R-PPC12N00M; DRAWING NO: M680-5V7129CP2 REV 0; REXROTH","REXROTH","VANES","1 X 1-1/2 IN","29 CM3",null,"980 RPM",{"$nulls":3},"ELECTRIC MOTOR; 10V","Spider coupling","LIP SEAL","GENERATOR",null,"21 MPA","A10VO28DR/31R-PPC12N00M; M680-5V7129CP2 REV 0",null,"FOOT"]
[540,658356,"ASSY:OIL PUMP;INLET VLV CTRL;STL","Ingula P Station","ASSEMBLY: TYPE: OIL PUMP; APPLICATION: INLET VLV CTRL; DIMENSIONS: LG 1070 X HT 540 MM; MATERIAL: STEEL; COMPRISING: MOTOR AND PUMP; B35 DF; IPV5-64 171 EXTENSION PIECE; MOTOR SPECIFICATIONS: REFERENCE NUMBER 5013480609-1; PHASE 3; INSULATION CLASS F; ENCLOSURE RATING IP 55, FRAME IM B35 (400); POWER 30 KW; VOLTAGE 400/690 V; POWER FACTOR 0.86; AMPERAGE 54.6/31.5A; SPEED 1465 RPM; ARTICAL NUMBER 250-00705410; KUENLE; STANDARD ISO 9001","VOITH","Gear Pump","LG 1070 X HT",null,null,"1465 RPM",null,"STEEL",null,"30 KW; 690 V; 31.5A",null,null,"INLET VLV CTRL",null,"IP 55, FRAME IM B35 (400)"]
[550,658358,"ASSY:LUBE OIL PUMP;TURBINE;STL","Ingula P Station","ASSEMBLY: TYPE: LUBE OIL PUMP; APPLICATION: TURBINE; DIMENSIONS: LG 1360 X HT 450 MM; MATERIAL: STEEL; COMPRISING: MOTOR, COUPLING, COUPLING HOUSING AND PUMP; REFERENCE NO: 132273-000; PUMP: TYPE L3MF-070/140; IFOKUI-G; MOTOR: TYPE WEG; PHASE 3; FRAME 160M-04; ENCLOSURE RATING IP55; INSULATION CLASS F; VOLTAGE 380/660 V 400/690 V; POWER 11 KW; SPEED 1465 RPM; AMPERAGE 21.9/12.6 A; POWER FACTOR 0.85; EFFIECENCY 89.8 PCT; LEISTRITZ; STANDARD ISO 9001","Lestritz Pumpen GmbH","Screw Pump L3MF","70/140","1 to 2,943 gpm","16 Bar","1465 RPM",null,"HIGH GRADE NITRIDED STEEL","PRIMARY SCREWS ARE MADE OF HIGH GRADE  NIRIDED STEEL.SEC SCREWS MADE OF GREY CAST IRON ","11 KW; 660 V; 12.6 A","FLANGE","RADIAL SHAFT SEAL PERBUNAN OR VITON","TURBINE LUBE OIL PUMP","UP TO 100°C","IP55 UP TO 100 BAR","132273-000",null,"FLANGE"]
[560,659604,"ASSY:IVP6-125 101;OIL PUMP;STL","Ingula P Station","ASSEMBLY: TYPE: OIL PUMP; APPLICATION: INLET VALVE PUMP; DIMENSIONS: LG 1300 X HT 650 MM; MATERIAL: STEEL; COMPRISING: MOTOR AND PUMP; OEM P/N: IVP6-125 101, OEM: VOITH TURBO; MOTOR SPECIFICATIONS: KUENLE KDGN2W, 55 KW, 3 PHASE, 400/690 V, 1480 RPM, S1, IP55, ISO F, 0.87 ACOS, VOITH MAT NO 250.00871710, 250 M 4 KT NV IE2; COUPLING SPECIFICATIONS: R+L HYDRAULICS RV550/265/3/0/DV400/83; PUMP SPECIFICATIONS: VOITH IVP 6-125 101, SERIAL NUMBER 0020096460/1403, MATERIAL H56.995120; EXTENSION HOUSING SPESIFICATIONS: TYPE 55 KW-B35/IPV6-125 101, MATERIAL 250.01204710, SERIAL NUMBER 20096970/1408; STANDARD ISO 9001","VOITH","HYDRAULIC","LG1300 X HT 650MM",{"$nulls":6},"55 KW; 690 V; 0.87 A",null,null,"INLET VALVE PUMP","20  - 80 °C",null,"IVP6-125 101",null,"ISO 3019-2"]
[670,620211,"PUMP ASSY:JACKING;ROTOR","Ingula P Station","PUMP, ASSEMBLY: TYPE: JACKING; APPLICATION: ROTOR; HYDRAULIC PUMP MCY14-1B: RATE: 1.25 ML/R; PRESSURE: 31.5 MPA; SPEED: 1500 RPM; CONNECTION SIZE: 1/2 IN; MOTOR ABB: FREQENCY: 50, SPEED: 1430 RPM; POWER: 1.5 KW; AMPERAGE: 5 A; ENCLOSURE RATING: IP55; FRAME: M2BA90SLD4; VOLTAGE: 230/400V; MOUNT: FLANGE; SHAFT SIZE: DIA 24 X LG 55 MM; COMPLETE WITH PEDESTAL, COUPLING, PRESSURE REGULATOR AND HOSE.; VENDORS ARE RESPONSIBLE FOR ENSURING THAT THEY ARE PERFORMING AGAINST THE CORRECT DRAWING REVISION NUMBER (IF APPLICABLE).","ABB /ZOUSEN Hydraulic","Hydraulic piston","1/2 IN","1.25 ml/r",null,"1500 RPM","SINGLE STAGE","CAST IRON BODY","HI GRADED HARDENED STEEL FOR PISTON","1.5 KW; 400V; 5 A","SIZE: 1/2 IN","LIP SEALS","ROTOR JACKING",null,"IP55  31.5 Mpa",null,null,"FLANGE"]
[680,623907,"PUMP RTRY:2 STG BIDIRECTIONAL HYDRAULIC","Ingula P Station","PUMP, ROTARY: TYPE: 2 STG BIDIRECTIONAL HYDRAULIC; PORT SIZE: 1-1/4 X 1 IN; CAPACITY: 62 L/MIN; SPEED: 2800 RPM; RATING: 44 CM3; DRIVER: MOTOR; APPLICATION: SURGE CHAMBER HOIST; MOUNT: FLANGE; COMPRISING OF ONE GHPA3A-R-66-S2-D-E3-RF2224 AND ONE GHPP3-R-66-D-E1; CROSS HYDRAULICS","MARZOCCHI","HYDRAULIC","1-1/4 X 1 IN","62 L/MIN",null,"2800 RPM","2 stage",null,null,"MOTOR; 3A","rubber coupling","Lip seal","SURGE CHAMBER HOIST",null,"44 CM3","GHPP3-R-66-D-E1",null,"FLANGE"]
[690,624686,"PUMP:GEAR;50 MM;48 L/MIN;3000 RPM;33 CM3","Ingula P Station",{"$f":"IFERROR(VLOOKUP(TEXT(B10,\"0000000\"),Catalogue_Lookup!$A:$B,2,FALSE),\"\")","v":"PUMP: TYPE: GEAR; SIZE: 50 MM; CAPACITY: 48 L/MIN; SPEED: 3000 RPM; RATING: 33 CM3; CASING MATERIAL: PLASTIC/STL; MANUF P/N: GPHA3-D-50"},"MARZOCCHI","GEAR","50 MM","48 L/MIN",null,"3000 RPM",null,"PLASTIC/STL",{"$nulls":6},"33 CM3","GPHA3-D-50"]
[700,736849,"PUMP:CENTRIFUGAL;45375-048;0.097 M3/S","Ingula P Station","PUMP: TYPE: CENTRIFUGAL; SIZE: 45375-048; CAPACITY: 0.097 M3/S; SPEED: 1479 RPM; RATING: 270 KPA; DRIVER: MOTOR; SPECIFICATION: BS 4891; POTENTIAL: 380 V; CASING MATERIAL: CAST STEEL; APPLICATION: AC LUB OIL PUMP; SUPPL P/N: 45375 048; SCOPE OF WORK/REPAIR,STRIP AND ASSESSMENT, NEW GASKET AND BOLTS. REPLACE IMPELLER WITH OEM SUPPLY,REPLACE WEAR RINGS WITH OEM SUPPLY. REFURBISH THRUST JOURNAL BEARING AND RE-COAT WHITE METAL BEARING TO OEM SPECIFICATION. SUPPLY NEW FLEXIBLE SHAFT, REBURBISH STUB SHAFT AND PUMP HOUSING. ENGINEERING SERVICES AND TESTING",null,"CENTRIFUGAL","45375-048","0.097 M3/S",null,"1479 RPM",null,"CAST STEEL",null,"MOTOR; 380 V",null,"LIP SEALS","AC LUB OIL PUMP",null,"270 KPA","45375 048"]
[710,624685,"PUMP:GHPP-D11;GEAR;11 MM;8.8 L/MIN;3800","Ingula P Station","PUMP: TYPE: GEAR; SIZE: 11 MM; CAPACITY: 8.8 L/MIN; SPEED: 3800 RPM; RATING: 7.6 CM3; CASING MATERIAL: PLASTIC/STL; OEM P/N: GHPP-D11, OEM: MARZOCCHI","MARZOCCHI","GEAR","11 MM","8.8 L/MIN",null,"3800 RPM","SINGLE STAGE","PLASTIC/STL",{"$nulls":3},"LIP SEALS",null,null,"7.6 CM3","GHPP-D11"]
[730,637419,"PUMP:HYDRAULIC GEAR;4.09 IN;2.7 GAL/MIN","Ingula P Station","PUMP: TYPE: HYDRAULIC GEAR; SIZE: 4.09 IN; CAPACITY: 2.7 GAL/MIN; SPEED: 3000 RPM; RATING: 138 BAR; SPECIFICATION: SAE; CASING MATERIAL: AL DIE CAST; MODEL NO: 705089; REFERENCE NO: D27X2905; OPERATING TEMPERATURE RANGE: -40 TO 185 DEG F","VOITH","HYDRAULIC GEAR PUMP","4.09 IN","2.7 GAL/MIN",null,"3000 RPM",null,"AL DIE CAST","N/A",null,null,"LIP SEALS",null,"RANGE: -40 TO 185 DEG F  ","138 BAR","D27X2905; 705089"]
[740,643672,"PUMP:HYDRAULIC VANE;1465 RPM;300 BAR","Ingula P Station","PUMP: TYPE: HYDRAULIC VANE; SIZE: SUCTION DIA X 38.1; PRESSURE DIA 25.4 MM; SPEED: 1465 RPM; RATING: 300 BAR; DRIVER: ELECTRIC MOTOR; SPECIFICATION: T7BB112R00A5M0; APPLICATION: MBV LIFTING OIL; SUPPL P/N: 054-34367-500; DENISON","DENISON","HYDRAULIC VANE","SUCTION DIA X 38.1","11 to 537 L/min",null,"1465 RPM","Double vane pump","High strength cast iron","vanes and rotor made of hardened alloy steel","ELECTRIC MOTOR; 00A","4BOLTS SAE FLANGE J518C","Buna N(nitrile) or viton","MBV LIFTING OIL",null,"300 BAR","T7BB112R00A5M0"]
[760,695456,"PUMP ASSY:GEAR PUMP;LUBRICATION","Ingula P Station","PUMP, ASSEMBLY: TYPE: GEAR PUMP; APPLICATION: LUBRICATION; OEM P/N: 063543; J.P. SAUER & SOHN WP6310 COMPRESSOR; VENDORS ARE RESPONSIBLE FOR ENSURING THAT THEY ARE PERFORMING AGAINST THE CORRECT DRAWING REVISION NUMBER (IF APPLICABLE).","J.P. SAUER &SOHN /STOCKLOG","GEAR OIL Pump","WP45 L",null,null,"500 to 3500 rpm","SINGLE STAGE","Heavy duty alluminium alloy or cast iron","gears made of high tempered steel","COMPRESSOR DRIVE SHAFT","DIRRECT COUPLING","Nitrile (NBR) or viton o rings","Sauer and sohn compressor (wp200/wp400)","-10 to 80 degrees celcius","30 BAR MAX",63543,null,"FLANGED MOUNT"]

{"sheet":"Palmiet","index":11,"n_rows":34,"n_cols":25,"rows_kept":34,"merged":[[0,0,0,23],[1,0,1,24]]}
[]
[]
["Item of requisition","Material","Short Text","Storage Location","Full Description","OEM / Manufacturer","Pump Type","Size","Capacity / Flow","Head","Speed (RPM)","Stage","Body / Casing Material","Impeller Material","Driver / Motor Details","Connection Type","Seal / Packing Type","Medium / Application","Operating Temperature","Pressure / Rating","Reference / Part No.","NPSH","Mounting","Special Requirements","Supplier Comment"]
[440,140716,"PUMP ASSY:MOTOR;CA90 CALPEDA SPA","Palmiet","PUMP, ASSEMBLY: TYPE: MOTOR; REFERENCE NO: CA90 CALPEDA SPA; RATING 220/380 VOLT; 3/1.73 AMP; 0.75HP; 0.55KW; 2900RPM; 50HZ; 3 PHASE; DELEVERY 8/40 M 42/17; VENDORS ARE RESPONSIBLE FOR ENSURING THAT THEY ARE PERFORMING AGAINST THE CORRECT DRAWING REVISION NUMBER (IF APPLICABLE).","CALPEDA","MOTOR",{"$nulls":7},"0.55KW; 380 V; 1.73 AMP",{"$nulls":4},"220/380 VOLT","CA90 CALPEDA SPA"]
[610,725185,"PUMP:SUBMERSIBLE;80 MM;12 L/S;2905 RPM","Palmiet","PUMP: TYPE: SUBMERSIBLE; SIZE: 80 MM; CAPACITY: 12 L/S; SPEED: 2905 RPM; RATING: 11 KW; POTENTIAL: 400 V; FURNISHED ITEMS: 30M CABLE; CASING MATERIAL: HARD IRON; SUPPL P/N: NP 3153.181 SH 273; WET PIT(P): SEMI PERMANENT, SUBMERSIBLE PUMP INSTALLATION. WET PIT ARRANGEMENT WITH THE PUMP INSTALLED; CABLE TO BE CONTINUOUS AND NOT JOINT; PUMP PERFORMANCE TEST RESULTS TO BE SUPPLIED UPON DELIVERY.OPERATIONS AND MAINTENANCE INSTRUCTION MANUALS TO BE SUPPLIED UPON DELIVERY",null,"SUBMERSIBLE","80 MM","12 L/S",null,"2905 RPM",null,"HARD IRON",null,"11 KW; 400 V",{"$nulls":4},"11 KW","NP 3153.181 SH 273",null,null,"PUMP PERFORMANCE TEST RESULTS TO BE SUPPLIED UPON DELIVERY.OPERATIONS AND MAINTENANCE INSTRUCTION MANUALS TO BE SUPPLIED UPON DELIVERY"]
[630,739173,"PUMP CNTRFGL:1 M;30 L/S;80 M;6 IN;1450;7","Palmiet","PUMP, CENTRIFUGAL: NPSH: 1 M; CAPACITY: 30 L/S; TOTAL HEAD: 80 M; SIZE: 6 IN; SPEED: 1450 RPM; STAGE: 7; TYPE: VERTICAL CENTRIFUGAL SUMP PUMP; MOUNT: FLANGE; MANUF P/N: M10 VTLV ; A. TYPE: VERTICAL TURBINE CENTRIFUGAL PUMP; B. RATED FLOW AND HEAD: 30L/S AT 78M HEAD; C. PUMP PRESSURE RANGE: 71M TO 78M; D. TOTAL PUMP LENGTH MUST BE BETWEEN 9000MM AND 9130 MM; E. IMPELLER BOWLS (CAST IRON), COLUMNS AND DISCHARGE CONNECTION HEAD MATERIAL CARBON STEEL; F. PUMP CONNECTING SHAFTS MATERIAL CARBON STEEL; G. PUMP CONNECTING SHAFT SOCKET / NUT MATERIAL CARBON STEEL; H. PUMP DISCHARGE HEAD SEALING ARRANGEMENT GLAND PACKING ASBESTOS FREE MATERIAL; I. THE IMPELLER IS CAST (STAINLESS STEEL 316) IN ONE PIECE WITH WEAR RINGS FOR EASY MAINTENANCE OF RUNNING CLEARANCES; J. CORROSION SPECIFICATION AS PER OEM RECOMMENDED SPECIFICATION FOR REVIEW AND ACCEPTANCE BY ESKOM. CORROSION PROTECTION APPLIED TO THE IMPELLER BOWLS, SHAFTS, COLUMNS AND DISCHARGE CONNECTING HEAD; K. THE PUMPS ARE PROVIDED WITH RENEWABLE WEAR RINGS; L. THE PUMPS ARE PROVIDED WITH INTAKE SCREENS; M. ALL BEARINGS SHALL BE DESIGNED FOR A MINIMUM LIFE OF 100 000 HOURS WITH CONTINUOUS OPERATION AT MAXIMUM RADIAL AND AXIAL LOADS; N. ALL PUMPS SHALL HAVE A PERMANENTLY ATTACHED CORROSION RESISTANT NAMEPLATE, DETAILING THE NAME, MANUFACTURER, MODEL NUMBER, MODEL TYPE, BEARINGS SPECIFICATIONS, HEAD, HEAD RANGE, SIZE, DISCHARGE FLOW RATE, DIRECTION OF ROTATION ETC. MOUNTED TO THE DISCHARGE HEAD; O. WARRANTY ON THE PUMP IS MINIMUM 1 YEAR ON DELIVERY OR 6 MONTHS AFTER INSTALLATION WHICHEVER IS LONGER; P. THE CONTRACTOR SUPPLIES EACH PUMP TO THE FOLLOWING DISCHARGE HEAD DIMENSIONAL SPECIFICATION FOR INTERFACE WITH THE EXISTING COMPONENTS. IF THE DIMENSIONS DISCHARGE HEAD CANNOT MEET THE SPECIFICATION, ADAPTORS MUST BE SUPPLIED TO INTERFACE THE PUMP WITH THE EXISTING PIPING AND HEAD BASE PLATE;",null,"VERTICAL CENTRIFUGAL","6 IN","30 L/S","80 M","1450 RPM",7,null,null,"10 V","HEAD MATERIAL CARBON STEEL","ASBESTOS FREE MATERIAL",null,null,"RANGE: 71M TO 78M","M10 VTLV","1 M","FLANGE"]
[660,752355,"PUMP:HAND;R1/2 IN;12 L;45 RPM;60 BAR","Palmiet","PUMP: TYPE: HAND; SIZE: R1/2 IN; CAPACITY: 12 L; SPEED: 45 RPM; RATING: 60 BAR; MANUF P/N: RP505; ROTHENBERGER RP 50S MANUAL PRESSURE TESTING PUMP",null,"HAND","R1/2 IN","12 L",null,"45 RPM",{"$nulls":8},"60 BAR","RP505"]
[770,773313,"PUMP:HYDROSTATIC PRESSURE TESTING UNIT","Palmiet","PUMP: TYPE: HYDROSTATIC PRESSURE TESTING UNIT; SIZE: 2.2 KW; CAPACITY: 11 L/MIN; SPEED: 1450 RPM; RATING: 0 - 100 BAR; SPECIFICATION: PUMP MODEL : NHDP1115R; MANUF P/N: 8H-T2-11-100",null,"HYDROSTATIC PRESSURE TESTING UNIT","2.2 KW","11 L/MIN",null,"1450 RPM",{"$nulls":3},"2.2 KW",{"$nulls":4},"0 - 100 BAR","8H-T2-11-100"]
[780,772878,"KIT:ACCESORIES;SUBMERSIBLE PUMPS","Palmiet","KIT: TYPE: ACCESORIES; APPLICATION: SUBMERSIBLE PUMPS; COMPRISING: 50 MM X 500 MM - GALVANISED PIPE , CAMLOCK ADAPTOR (2\") A200 50MM , CAMLOCK TAIL (2\") C200 50MM , SUCTION HOSE SMOOTH 50MM BLUE 30 METRES",null,"ACCESORIES",{"$nulls":10},"SUBMERSIBLE PUMPS"]
[790,177522,"PUMP RTRY:SCREW;70 X 60 MM;251 L/MIN;64","Palmiet","PUMP, ROTARY: TYPE: SCREW; PORT SIZE: 70 X 60 MM; CAPACITY: 251 L/MIN; SPEED: 1475 RPM; RATING: 64 BAR; DRIVER: ELECTRIC MOTOR 68 A 35 KW; APPLICATION: TURBINE OIL TANKS; SPECIFICATION: IP54; REFERENCE NO: SMBA280R46U9W2",null,"SCREW","70 X 60 MM","251 L/MIN",null,"1475 RPM",{"$nulls":3},"35 KW; 68 A",null,null,"TURBINE OIL TANKS",null,"64 BAR","SMBA280R46U9W2"]
[800,725185,"PUMP:SUBMERSIBLE;80 MM;12 L/S;2905 RPM","Palmiet","PUMP: TYPE: SUBMERSIBLE; SIZE: 80 MM; CAPACITY: 12 L/S; SPEED: 2905 RPM; RATING: 11 KW; POTENTIAL: 400 V; FURNISHED ITEMS: 30M CABLE; CASING MATERIAL: HARD IRON; SUPPL P/N: NP 3153.181 SH 273; WET PIT(P): SEMI PERMANENT, SUBMERSIBLE PUMP INSTALLATION. WET PIT ARRANGEMENT WITH THE PUMP INSTALLED; CABLE TO BE CONTINUOUS AND NOT JOINT; PUMP PERFORMANCE TEST RESULTS TO BE SUPPLIED UPON DELIVERY.OPERATIONS AND MAINTENANCE INSTRUCTION MANUALS TO BE SUPPLIED UPON DELIVERY",null,"SUBMERSIBLE","80 MM","12 L/S",null,"2905 RPM",null,"HARD IRON",null,"11 KW; 400 V",{"$nulls":4},"11 KW","NP 3153.181 SH 273",null,null,"PUMP PERFORMANCE TEST RESULTS TO BE SUPPLIED UPON DELIVERY.OPERATIONS AND MAINTENANCE INSTRUCTION MANUALS TO BE SUPPLIED UPON DELIVERY"]
[810,739173,"PUMP CNTRFGL:1 M;0.3 M3/HR;100 M;65 MM;1","Palmiet","PUMP, CENTRIFUGAL: NPSH: 1 M; CAPACITY: 30 L/S; TOTAL HEAD: 80 M; SIZE: 6 IN; SPEED: 1450 RPM; STAGE: 7; TYPE: VERTICAL CENTRIFUGAL SUMP PUMP; MOUNT: FLANGE; MANUF P/N: M10 VTLV ; A. TYPE: VERTICAL TURBINE CENTRIFUGAL PUMP; B. RATED FLOW AND HEAD: 30L/S AT 78M HEAD; C. PUMP PRESSURE RANGE: 71M TO 78M; D. TOTAL PUMP LENGTH MUST BE BETWEEN 9000MM AND 9130 MM; E. IMPELLER BOWLS (CAST IRON), COLUMNS AND DISCHARGE CONNECTION HEAD MATERIAL CARBON STEEL; F. PUMP CONNECTING SHAFTS MATERIAL CARBON STEEL; G. PUMP CONNECTING SHAFT SOCKET / NUT MATERIAL CARBON STEEL; H. PUMP DISCHARGE HEAD SEALING ARRANGEMENT GLAND PACKING ASBESTOS FREE MATERIAL; I. THE IMPELLER IS CAST (STAINLESS STEEL 316) IN ONE PIECE WITH WEAR RINGS FOR EASY MAINTENANCE OF RUNNING CLEARANCES; J. CORROSION SPECIFICATION AS PER OEM RECOMMENDED SPECIFICATION FOR REVIEW AND ACCEPTANCE BY ESKOM. CORROSION PROTECTION APPLIED TO THE IMPELLER BOWLS, SHAFTS, COLUMNS AND DISCHARGE CONNECTING HEAD; K. THE PUMPS ARE PROVIDED WITH RENEWABLE WEAR RINGS; L. THE PUMPS ARE PROVIDED WITH INTAKE SCREENS; M. ALL BEARINGS SHALL BE DESIGNED FOR A MINIMUM LIFE OF 100 000 HOURS WITH CONTINUOUS OPERATION AT MAXIMUM RADIAL AND AXIAL LOADS; N. ALL PUMPS SHALL HAVE A PERMANENTLY ATTACHED CORROSION RESISTANT NAMEPLATE, DETAILING THE NAME, MANUFACTURER, MODEL NUMBER, MODEL TYPE, BEARINGS SPECIFICATIONS, HEAD, HEAD RANGE, SIZE, DISCHARGE FLOW RATE, DIRECTION OF ROTATION ETC. MOUNTED TO THE DISCHARGE HEAD; O. WARRANTY ON THE PUMP IS MINIMUM 1 YEAR ON DELIVERY OR 6 MONTHS AFTER INSTALLATION WHICHEVER IS LONGER; P. THE CONTRACTOR SUPPLIES EACH PUMP TO THE FOLLOWING DISCHARGE HEAD DIMENSIONAL SPECIFICATION FOR INTERFACE WITH THE EXISTING COMPONENTS. IF THE DIMENSIONS DISCHARGE HEAD CANNOT MEET THE SPECIFICATION, ADAPTORS MUST BE SUPPLIED TO INTERFACE THE PUMP WITH THE EXISTING PIPING AND HEAD BASE PLATE;",null,"VERTICAL CENTRIFUGAL","6 IN","30 L/S","80 M","1450 RPM",7,null,null,"10 V","HEAD MATERIAL CARBON STEEL","ASBESTOS FREE MATERIAL",null,null,"RANGE: 71M TO 78M","M10 VTLV","1 M","FLANGE"]
[820,769828,"PUMP:SELF PRIMING ELECTRIC;1 IN;5 - 45;6","Palmiet","PUMP: TYPE: SELF PRIMING ELECTRIC; SIZE: 1 IN; CAPACITY: 5 - 45 L/MIN; SPEED: 2800 RPM; RATING: 6 BAR; DRIVER: MOTOR; SPECIFICATION: IE3 0.75KW SINGLE PHASE; POTENTIAL: 230 - 240 V; CASING MATERIAL: AISI 304; APPLICATION: PUMP TURBINE COMPARTMENT; MANUF P/N: JESX M8; OPERATING AND INSTRUCTIONS MANUAL AND PUMP CHARACTERISTIC CURVE TO BE INCLUDED WITH DELIVERY OF THIS PUMP",null,"SELF PRIMING ELECTRIC","1 IN","5 - 45 L/MIN",null,"2800 RPM",null,"AISI 304",null,"MOTOR; 0.75KW; 240 V",null,null,"PUMP TURBINE COMPARTMENT",null,"6 BAR","JESX M8"]
[830,772689,"PUMP CNTRFGL:1 M;7.5 L/S;98.39 M;65 MM;1","Palmiet","PUMP: TYPE: SUBMERSIBLE; SIZE: 2 IN; CAPACITY: 100 TO 800 L/MIN; SPEED: 2800 RPM; RATING: 400 VAC; CASING MATERIAL: AISI 304; DW VOX 300. OPERATING INSTRUCTIONS AND MAINTENANCE MANUAL AS WELL AS TEST CERTIFICATES TO BE SUPPLIED ON DELIVERY.PLEASE PROVIDE 30M LONG POWER SUPPLY CABLE UPON DELIVERY.",null,"SUBMERSIBLE","2 IN","100 TO 800 L/MIN",null,"2800 RPM",null,"AISI 304",null,"400 VAC",{"$nulls":4},"400 VAC"]
[840,761990,"PUMP CNTRFGL:11 M;22.5 L/S;10.7 M;100 MM","Palmiet","PUMP, CENTRIFUGAL: NPSH: 11 M; CAPACITY: 22.5 L/S; TOTAL HEAD: 10.7 M; SIZE: 100 MM; SPEED: 1435 RPM; STAGE: SINGLE; DRIVER: 3-PHASE CAGE INDUCTION MOTOR , 4 POLE , 3.8KW; TYPE: TRANSFORMER OIL CIRCULATION PUMP; SPECIFICATION: IEC 34-1, INSULATION CLASS F, IMPELLER SIZE 98MM , PART NO : VMOA 100 - 198; MOUNT: FLANGE MOUNTED",null,"CENTRIFUGAL","100 MM","22.5 L/S","10.7 M","1435 RPM","SINGLE",null,null,"3.8KW",{"$nulls":6},"11 M","FLANGE MOUNTED"]
[850,45267,"PUMP:HYDRAULIC OIL;3.8 CM3/STR;173","Palmiet","PUMP: TYPE: HYDRAULIC OIL; CAPACITY: 3.8 CM3/STR; RATING: 173 KG/CM2; DRIVER: HAND OPERATED; REFERENCE NO: RT-67-1",null,"HYDRAULIC",null,"3.8 CM3/STR",{"$nulls":5},"HAND OPERATED",{"$nulls":4},"173 KG/CM2","RT-67-1"]
[860,45263,"PUMP RTRY:SCREW;80 MM;272 L/MIN;1450 RPM","Palmiet","PUMP, ROTARY: TYPE: SCREW; PORT SIZE: 80 MM; CAPACITY: 272 L/MIN; SPEED: 1450 RPM; RATING: 5 BAR; DRAWING NO: 6520000-001 REV 1; CIRCULATING OIL, OVERALL LENGTH 670 MM, FLANGE TO FLANGE 302 MM",null,"SCREW","80 MM","272 L/MIN",null,"1450 RPM",{"$nulls":8},"5 BAR","6520000-001 REV 1"]
[870,772690,"PUMP:SUBMERSIBLE;2 IN;100 TO 700 L/MIN","Palmiet","PUMP: TYPE: SUBMERSIBLE; SIZE: 2 IN; CAPACITY: 100 TO 700 L/MIN; SPEED: 2800 RPM; RATING: 1.1 KW; CASING MATERIAL: AISI 304; DW M 150 A_230_SINGLE PHASE . OPERATING INSTRUCTIONS AND MAINTENANCE MANUAL AS WELL AS TEST CERTIFICATES TO BE SUPPLIED ON DELIVERY.PLEASE PROVIDE 20M POWER SUPPLY CABLE UPON DELIVERY.",null,"SUBMERSIBLE","2 IN","100 TO 700 L/MIN",null,"2800 RPM",null,"AISI 304",null,"1.1 KW; 150 A",{"$nulls":4},"1.1 KW"]
[890,45268,"PUMP RTRY:INTERNAL GEAR;48 MM;63 CM3/REV","Palmiet","PUMP, ROTARY: TYPE: INTERNAL GEAR; PORT SIZE: 48 MM; CAPACITY: 63 CM3/REV; RATING: 160 KG/CM; DRIVER: MOTOR; REFERENCE NO: 866371; QT52-63A",null,"GEAR","48 MM","63 CM3/REV",{"$nulls":5},"MOTOR; 63A",{"$nulls":4},"160 KG/CM",866371]
[900,41760,"PUMP RTRY:OIL GEAR;22 X 16 MM","Palmiet","PUMP, ROTARY: TYPE: OIL GEAR; PORT SIZE: 22 X 16 MM",null,"GEAR","22 X 16 MM"]
[910,45270,"PUMP RCPRTG:PISTON RADIAL;28 X 18 MM","Palmiet","PUMP, RECIPROCATING: TYPE: PISTON RADIAL; SIZE: 28 X 18 MM; DRIVER: MOTOR; REFERENCE NO: M096-84176220/23P7; PC-1A-5-10; MFG.700, SHAFT DIA 10 MM LG 38 MM",null,"PISTON","28 X 18 MM",{"$nulls":6},"MOTOR; 1A",{"$nulls":5},"M096-84176220/23P7"]
[920,45269,"PUMP RCPRTG:PISTON RADIAL;45 X 30 MM","Palmiet","PUMP, RECIPROCATING: TYPE: PISTON RADIAL; SIZE: 45 X 30 MM; DRIVER: MOTOR; DRAWING NO: M096-84176221/23P4 REV 1; REFERENCE NO: PC-2A-30-10; PC SERIES",null,"PISTON","45 X 30 MM",{"$nulls":6},"MOTOR; 2A",{"$nulls":5},"PC-2A-30-10; M096-84176221/23P4 REV 1"]
[930,45264,"PUMP:LUBRICATION TRANSFER;15 MM;1030;910","Palmiet","PUMP: TYPE: LUBRICATION TRANSFER; SIZE: 15 MM; CAPACITY: 1030 CM3/HR; SPEED: 910 RPM; RATING: 300 BAR; DRIVER: ELECTRIC MOTOR 220/380 V AC; DRAWING NO: 799-000-2557C REV 1; GREASE TANK CAPACITY 30 KG, HR.ON 6 OUTLETS, TYPE OF ENCLOSURE: ISY, INSULATION CLASS: F, OVERALL DIMENSIONS HG 773 MM, DIA 35 MM AT PIONT",null,"LUBRICATION TRANSFER","15 MM","1030 CM3/HR",null,"910 RPM",{"$nulls":3},"380 V",{"$nulls":4},"300 BAR","799-000-2557C REV 1"]
[940,779201,"PUMP CNTRFGL:1 M;150 L/S;22 M;8 x 6 IN;1","Palmiet","PUMP, CENTRIFUGAL: NPSH: 1 M; CAPACITY: 150 L/S; TOTAL HEAD: 22 M; SIZE: 8 x 6 IN; SPEED: 1450 RPM; STAGE: 1 ACRE; DRIVER: ELECTRICAL MOTOR; TYPE: F8B4; SPECIFICATION: 8X6-15; 45 KW MOTOR",null,"F8B4","8 x 6 IN","150 L/S","22 M","1450 RPM","1 ACRE",null,null,"ELECTRICAL MOTOR; 45 KW; 1 A",{"$nulls":6},"1 M"]
[950,779151,"PUMP:VERTICAL TURBINE;10 IN;100 L/S;1486","Palmiet","PUMP: TYPE: VERTICAL TURBINE; SIZE: 10 IN; CAPACITY: 100 L/S; SPEED: 1486 RPM; RATING: 185 KW; DRIVER: ELECTRICAL MOTOR G&C; SPECIFICATION: GA H14 VTLC 5 STAGE; POTENTIAL: 3300 V; APPLICATION: PALMIET DEWATERING PUMP; 4 POLE MOTOR COUPLING F140",null,"VERTICAL TURBINE","10 IN","100 L/S",null,"1486 RPM",{"$nulls":3},"ELECTRICAL MOTOR G&C; 185 KW; 14 V",null,null,"PALMIET DEWATERING PUMP",null,"185 KW"]
[960,781495,"PUMP CNTRFGL:1 M;85 M3/HR;100 M;65 MM;1","Palmiet","PUMP, CENTRIFUGAL: NPSH: 1 M; CAPACITY: 85 M3/HR; TOTAL HEAD: 100 M; SIZE: 65 MM; SPEED: 3900 RPM; STAGE: 1 ACRE; DRIVER: ELECTRICAL MOTOR; MANUF P/N: 0655-050-315/2P GC 10B0; PUMP RATED POWER : 35.89 KW , INCLUDES ELECTRICAL MOTOR : MOTORELLI : VOLTS :400/690 , FRAME : Y3 225S/M-2 B3 PTC , 45KW  ,50 HZ  , RPM 2960",null,"CENTRIFUGAL","65 MM","85 M3/HR","100 M","3900 RPM","1 ACRE",null,null,"ELECTRICAL MOTOR; 35.89 KW; 1 A",{"$nulls":5},"0655-050-315/2P GC 10B0","1 M"]
[970,779150,"PUMP:VERTICAL TURBINE;6 IN;35 L/S;1482","Palmiet","PUMP: TYPE: VERTICAL TURBINE; SIZE: 6 IN; CAPACITY: 35 L/S; SPEED: 1482 RPM; RATING: 45 KW; DRIVER: ELECTRICAL MOTOR WEG; SPECIFICATION: VTP 12 CC 9 STAGE; POTENTIAL: 380 V; APPLICATION: PALMIET SUMP SEEPAGE PUMP","WEG","VERTICAL TURBINE","6 IN","35 L/S",null,"1482 RPM",{"$nulls":3},"ELECTRICAL MOTOR WEG; 45 KW; 380 V",null,null,"PALMIET SUMP SEEPAGE PUMP",null,"45 KW"]
[1020,41582,"PUMP:CIRCULATING WATER;24 MM;1750-2490","Palmiet","PUMP: TYPE: CIRCULATING WATER; SIZE: 24 MM; SPEED: 1750-2490 RPM; DRIVER: ELECTRIC MOTOR 220 VAC 1 PH 50 HZ; REFERENCE NO: 2-130B; BF1714310; FOR DIESEL GENERATOR, 3 SPEED A 0.39 WIND 85, R/MIN 2490, A 0.26 WIND 58, R/MIN 2190, A 0.18 WIND 37 R/MIN 1750",null,"CIRCULATING WATER","24 MM",null,null,"1750-2490 RPM",{"$nulls":3},"220 VAC",{"$nulls":5},"2-130B"]
[1040,779152,"PUMP:SUBMERSIBLE BOREHOLE;350 MM;180 L/S","Palmiet","PUMP: TYPE: SUBMERSIBLE BOREHOLE; SIZE: 350 MM; CAPACITY: 180 L/S; SPEED: 3500 RPM; RATING: 205 KW; DRIVER: ELECTRICAL; POTENTIAL: 3300 V; APPLICATION: PALMIET EMERGENCY PUMP; MANUF P/N: UPA 350-180/2 + UMA 300-205 LV22 3300V",null,"SUBMERSIBLE","350 MM","180 L/S",null,"3500 RPM",{"$nulls":3},"ELECTRICAL; 205 KW; 3300 V",null,null,"PALMIET EMERGENCY PUMP",null,"205 KW","UPA 350-180/2 + UMA 300-205 LV22 3300V"]
[1050,781642,"PUMP CNTRFGL:1 M;0.3 M3/HR;100 M;65 MM;1","Palmiet","PUMP, CENTRIFUGAL: NPSH: 1 M; CAPACITY: 0.3 M3/HR; TOTAL HEAD: 100 M; SIZE: 65 MM; SPEED: 1430 RPM; STAGE: 1 ACRE; DRIVER: ELECTRICAL MOTOR; MOUNT: B3; MANUF P/N: 40-160; FRAME : DX100L , 3 PHASE  , DUTY : S1 , STAR CONNECTED , CURRENT : 5.3 A . PUMP INLET : 65MM , OUTLET : 40MM , HALBERG","HALBERG","CENTRIFUGAL","65 MM","0.3 M3/HR","100 M","1430 RPM","1 ACRE",null,null,"ELECTRICAL MOTOR; 1 A",{"$nulls":5},"40-160","1 M","B3"]
[1060,781575,"PUMP CNTRFGL:1 M;7.5 L/S;98.39 M;65 MM;1","Palmiet","PUMP, CENTRIFUGAL: NPSH: 1 M; CAPACITY: 7.5 L/S; TOTAL HEAD: 98.39 M; SIZE: 65 MM; SPEED: 1435 RPM; STAGE: 1 ACRE; DRIVER: ELECTRICAL MOTOR; MANUF P/N: 65-315; INCLUIDES ELECTRICAL MOTOR FRAME NUMBER: DX 132M , BP , 7.5 KW , MOUNTING : B3",null,"CENTRIFUGAL","65 MM","7.5 L/S","98.39 M","1435 RPM","1 ACRE",null,null,"ELECTRICAL MOTOR; 7.5 KW; 1 A",{"$nulls":5},"65-315","1 M","B3"]
[1090,781519,"PUMP:SUBMERSIBLE;80 MM;136 M3/HR;1405;2","Palmiet","PUMP: TYPE: SUBMERSIBLE; SIZE: 80 MM; CAPACITY: 136 M3/HR; SPEED: 1405 RPM; RATING: 2 KW; FURNISHED ITEMS: 460 IMPELLER; CASING MATERIAL: CAST IRON GREY; APPLICATION: SEWAGE PUMP; MANUF P/N: 3085.160; 10 METER UNJOINTED ELECTRIC SUPPLY CABLE NEEDED ON DELIVERY OF THIS PUMP , FOR SAFE SUBMERGING OF PUMP",null,"SUBMERSIBLE","80 MM","136 M3/HR",null,"1405 RPM",null,"CAST IRON GREY",null,"2 KW",null,null,"SEWAGE PUMP",null,"2 KW",3085.16]
[1110,781990,"PUMP:HORIZONTAL SPLIT;10 -12 IN;135 L/S","Palmiet","PUMP: TYPE: HORIZONTAL SPLIT; SIZE: 10 -12 IN; CAPACITY: 135 L/S; SPEED: 1485 RPM; RATING: 6 BAR; DRIVER: 3.3 KV ELECTRIC MOTOR; APPLICATION: PALMIET ELECTRIC FIRE PUMP; MANUF P/N: HSM10/12",null,"HORIZONTAL SPLIT","10 -12 IN","135 L/S",null,"1485 RPM",{"$nulls":3},"3.3 KV ELECTRIC MOTOR",null,null,"PALMIET ELECTRIC FIRE PUMP",null,"6 BAR","HSM10/12"]
[1130,781520,"PUMP CNTRFGL:1 M;0.3 M3/HR;61.184 M;80;1","Palmiet","PUMP, CENTRIFUGAL: NPSH: 1 M; CAPACITY: 0.3 M3/HR; TOTAL HEAD: 61.184 M; SIZE: 80 MM; SPEED: 2940 RPM; STAGE: 1 ACRE; DRIVER: ELECTRICAL MOTOR 380V 15KW; MOUNT: B3; MANUF P/N: 32-26; MOTOR FRAME 160M , HALBERG","HALBERG","CENTRIFUGAL","80 MM","0.3 M3/HR","61.184 M","2940 RPM","1 ACRE",null,null,"15KW; 380V; 1 A",{"$nulls":5},"32-26","1 M","B3"]

{"sheet":"Vanderkloof","index":12,"n_rows":4,"n_cols":25,"rows_kept":4,"merged":[[0,0,0,23],[1,0,1,24]]}
[]
[]
["Item of requisition","Material","Short Text","Storage Location","Full Description","OEM / Manufacturer","Pump Type","Size","Capacity / Flow","Head","Speed (RPM)","Stage","Body / Casing Material","Impeller Material","Driver / Motor Details","Connection Type","Seal / Packing Type","Medium / Application","Operating Temperature","Pressure / Rating","Reference / Part No.","NPSH","Mounting","Special Requirements","Supplier Comment"]
[240,754580,"PUMP:AUX SUBMERSIBLE;H991 X D500 MM;160","Vanderkloof","PUMP: TYPE: AUX SUBMERSIBLE; SIZE: H991 X D500 MM; CAPACITY: 160 M3/HR; SPEED: 2895 RPM; RATING: 18 KW; APPLICATION: AUXILARY SUMP PUMP; SUPPL P/N: BS2870HT 3~251 FLYGT; BS2870HT3- 251, SUBMERSIBLE PUMP, HIGH HEAD, 18 KW 3-PHASE, 400 VOLT, 2895RPM","FLYGT","SUBMERSIBLE","H991 X D500 MM","160 M3/HR",null,"2895 RPM",{"$nulls":3},"18 KW; 400 V",null,null,"AUXILARY SUMP PUMP",null,"18 KW","BS2870HT 3~251 FLYGT"]

{"sheet":"Catalogue_Lookup","index":13,"n_rows":84,"n_cols":2,"rows_kept":84,"hidden":true}
["ERP Number","Full Description"]
["0581218","PUMP, CENTRIFUGAL: NPSH: 0; CAPACITY: 39 L/S; TOTAL HEAD: 49 M; SIZE: 856 MM; SPEED: 1450 RPM; STAGE: SINGLE; TYPE: SUBMERSIBLE; REFERENCE NO: MJP 053 4054; 150MH-SBO-4P55-D150-HZ-02; POWER INSTALLED: 55KW; VOLTAGE: 400V; AMPS: 105A FULL LOAD; PUMP WEIGHT: 1184KG; HYDRAULIC END; IMPELLER TYPE: OPEN VANE; IMPELLER DIAMETER 394MM; VANE HEIGHT: 24MM; NUMBER OF VANES IS 5; MAX SPHERE THROUGH IMPELLER: 30MM PRODUCT PUMPED SLURRY; PUMP TOTAL LENGTH: 1648; DISCHARGE FLANGE DETAIL: 150 NOM TO BS4504 1613 OD: 288MM 8 HOLE FLANGE PCD: 240"]
["0763291","PUMP, CENTRIFUGAL: NPSH: 1.8 M; CAPACITY: 80 M3/HR; TOTAL HEAD: 60 M; SIZE: DIA 400 MM; SPEED: 1460 RPM; STAGE: 1; DRIVER: BHP: 19.3 KW, MOTOR: 30 KW; TYPE: FUEL TREATMENT; SPECIFICATION: PUMP TYPE: CENTRIFUGAL,  KRC-80F/400-100/GN, Q: 80 M3/H, H: 60M, BHP: 19.3 KW, SPED: 1460 RPM, PUMPING MEDIUM: DIESEL; MOUNT: HORIZONTAL; MANUF P/N:  KRC-80F/400-100/GN, SERIAL NUMBER:1277485/01-1, APOLLO GÖSSNITZ GMBH"]
["0239821","ASSEMBLY: TYPE: LUBE OIL PUMP; DIMENSIONS: DIA 230 MM; SUPPL P/N: VSS V65-250; REFERENCE NO: 7045802; W-69-T-1330/200L; SPEED 2900 RPM"]
["0627091","PUMP: TYPE: HYDRAULIC; SIZE: 1-1/2 IN; CAPACITY: 41 L/MIN; SPEED: 1465 RPM; RATING: 320 BAR; DRIVER: MOTOR; POTENTIAL: 400 V; APPLICATION: MBV LIFT OIL GAS1; REFERENCE NO: T7B B09 2R00"]
["0586241","PUMP, CENTRIFUGAL: NPSH: 1 M; CAPACITY: 130 M3/HR; TOTAL HEAD: 42.2 M; SIZE: 100 X 80; SPEED: 2940 RPM; STAGE: SINGLE; MANUF P/N: KSBETANORM100-080-200GGA10GA302202B; REFERENCE NO: M063/11E; SUCTION DIAMETER: DN100; DISCHARGE DIAMETER: DN80; CODE:9972464992"]
["0650096","PUMP, RECIPROCATING: TYPE: DIAPHRAGM DOSING; SUPPL P/N: 251-5-10046"]
["0140716","PUMP, ASSEMBLY: TYPE: MOTOR; REFERENCE NO: CA90 CALPEDA SPA; RATING 220/380 VOLT; 3/1.73 AMP; 0.75HP; 0.55KW; 2900RPM; 50HZ; 3 PHASE; DELEVERY 8/40 M 42/17; VENDORS ARE RESPONSIBLE FOR ENSURING THAT THEY ARE PERFORMING AGAINST THE CORRECT DRAWING REVISION NUMBER (IF APPLICABLE)."]
["0562732","PUMP, CENTRIFUGAL: NPSH: 2.4 M; CAPACITY: 600 M3/HR; TOTAL HEAD: 71.2 M; SIZE: 200 X 250; SPEED: 1450 RPM; STAGE: 1; DRIVER: ELECTRIC MOTOR; TYPE: SLUICE HP; SPECIFICATION: KSB; SHAFT DIAMETER: 70 MM; REFERENCE NO: ZAN-28833; APPLICATION: TO BE FITTED WITH A 456 MM DOUBLE ENTRY IMPELLER; OMEGA 200-520A"]
["0716822","PUMP: TYPE: SUBMISSIBLE; SIZE: 25 M; CAPACITY: 2500 L/MIN; SPEED: 1450 RPM; RATING: 30 KW; DRIVER: ELECTRICAL MOTOR; APPLICATION: NEUTRALISATION SUMP WATER; SUPPL P/N: 350CP ( ) 150H100Z; A COMPLETE DATA BOOK TO BE SUBMITTED ON SPARE DELIVERY"]
["0658358","ASSEMBLY: TYPE: LUBE OIL PUMP; APPLICATION: TURBINE; DIMENSIONS: LG 1360 X HT 450 MM; MATERIAL: STEEL; COMPRISING: MOTOR, COUPLING, COUPLING HOUSING AND PUMP; REFERENCE NO: 132273-000; PUMP: TYPE L3MF-070/140; IFOKUI-G; MOTOR: TYPE WEG; PHASE 3; FRAME 160M-04; ENCLOSURE RATING IP55; INSULATION CLASS F; VOLTAGE 380/660 V 400/690 V; POWER 11 KW; SPEED 1465 RPM; AMPERAGE 21.9/12.6 A; POWER FACTOR 0.85; EFFIECENCY 89.8 PCT; LEISTRITZ; STANDARD ISO 9001"]
["0763618","ASSEMBLY: TYPE: NB50-160; APPLICATION: COOLING WATER PUMP; OEM P/N: D-78315; TYPE: NB50-160 Ø 162; U3.20.D-W64-42/350,NR. :R.6009090,Q: 54M³/H; H:35MM; N:2900 1/M; P:7.1KW; V:0.65MM²/S,0.992KG/DM³"]
["0751465","PUMP: TYPE: PROMINENT GMXA; SIZE: 25 W; CAPACITY: 2.3 L/HR; SPEED: 180 STR/MIN; RATING: 16 BAR; SUPPL P/N: GMXA1602; PRODUCT RANGE: GMXA1602PVT2"]
["0767236","PUMP, CENTRIFUGAL: NPSH: 0 M; CAPACITY: 50 M3/S; TOTAL HEAD: 35 M; SIZE: 161 MM; SPEED: 2900 RPM; STAGE: 1; DRIVER: 11KW; TYPE: NT50-160; MOUNT: FOOT; SHAFT DIAMETER: 0 ACRE; MANUF P/N: S.6056434; TYPE NT50-160 DIA161 U3.20D-W64,"]
["0620211","PUMP, ASSEMBLY: TYPE: JACKING; APPLICATION: ROTOR; HYDRAULIC PUMP MCY14-1B: RATE: 1.25 ML/R; PRESSURE: 31.5 MPA; SPEED: 1500 RPM; CONNECTION SIZE: 1/2 IN; MOTOR ABB: FREQENCY: 50, SPEED: 1430 RPM; POWER: 1.5 KW; AMPERAGE: 5 A; ENCLOSURE RATING: IP55; FRAME: M2BA90SLD4; VOLTAGE: 230/400V; MOUNT: FLANGE; SHAFT SIZE: DIA 24 X LG 55 MM; COMPLETE WITH PEDESTAL, COUPLING, PRESSURE REGULATOR AND HOSE.; VENDORS ARE RESPONSIBLE FOR ENSURING THAT THEY ARE PERFORMING AGAINST THE CORRECT DRAWING REVISION NUMBER (IF APPLICABLE)."]
["0643672","PUMP: TYPE: HYDRAULIC VANE; SIZE: SUCTION DIA X 38.1; PRESSURE DIA 25.4 MM; SPEED: 1465 RPM; RATING: 300 BAR; DRIVER: ELECTRIC MOTOR; SPECIFICATION: T7BB112R00A5M0; APPLICATION: MBV LIFTING OIL; SUPPL P/N: 054-34367-500; DENISON"]
["0046403","SHAFT, PUMP: LENGTH: 717 MM; MATERIAL: STL; NOMINAL DIAMETER: 92 MM; END STYLE 1: DIA 60 X SLOT 18 MM; END STYLE 2: DIA 57 X THD 12 MM; REFERENCE NO: 5-007-0"]
["0666763","PUMP: TYPE: SUBMERSIBLE; SIZE: DIA 160 MM; CAPACITY: 0.3-5.0 L/S; 32-2 M; SPEED: 2900 RPM; RATING: 1.9 KW; DRIVER: MOTOR 400 V 4.5 A 50 HZ; SPECIFICATION: NS 50-172/01 2ULG 160; APPLICATION: SUBMERSIBLE PUMP FOR SEWAGE"]
["0769828","PUMP: TYPE: SELF PRIMING ELECTRIC; SIZE: 1 IN; CAPACITY: 5 - 45 L/MIN; SPEED: 2800 RPM; RATING: 6 BAR; DRIVER: MOTOR; SPECIFICATION: IE3 0.75KW SINGLE PHASE; POTENTIAL: 230 - 240 V; CASING MATERIAL: AISI 304; APPLICATION: PUMP TURBINE COMPARTMENT; MANUF P/N: JESX M8; OPERATING AND INSTRUCTIONS MANUAL AND PUMP CHARACTERISTIC CURVE TO BE INCLUDED WITH DELIVERY OF THIS PUMP"]
["0781642","PUMP, CENTRIFUGAL: NPSH: 1 M; CAPACITY: 0.3 M3/HR; TOTAL HEAD: 100 M; SIZE: 65 MM; SPEED: 1430 RPM; STAGE: 1 ACRE; DRIVER: ELECTRICAL MOTOR; MOUNT: B3; MANUF P/N: 40-160; FRAME : DX100L , 3 PHASE  , DUTY : S1 , STAR CONNECTED , CURRENT : 5.3 A . PUMP INLET : 65MM , OUTLET : 40MM , HALBERG"]
["0781575","PUMP, CENTRIFUGAL: NPSH: 1 M; CAPACITY: 7.5 L/S; TOTAL HEAD: 98.39 M; SIZE: 65 MM; SPEED: 1435 RPM; STAGE: 1 ACRE; DRIVER: ELECTRICAL MOTOR; MANUF P/N: 65-315; INCLUIDES ELECTRICAL MOTOR FRAME NUMBER: DX 132M , BP , 7.5 KW , MOUNTING : B3"]
["0761990","PUMP, CENTRIFUGAL: NPSH: 11 M; CAPACITY: 22.5 L/S; TOTAL HEAD: 10.7 M; SIZE: 100 MM; SPEED: 1435 RPM; STAGE: SINGLE; DRIVER: 3-PHASE CAGE INDUCTION MOTOR , 4 POLE , 3.8KW; TYPE: TRANSFORMER OIL CIRCULATION PUMP; SPECIFICATION: IEC 34-1, INSULATION CLASS F, IMPELLER SIZE 98MM , PART NO : VMOA 100 - 198; MOUNT: FLANGE MOUNTED"]
["0750954","PUMP: TYPE: PROMINENT BT4B; SIZE: 10.0 W; CAPACITY: 1 L/HR; SPEED: 180 STR/MIN; RATING: 16 BAR; SUPPL P/N: BT4B 1601 PVT2"]
["0624685","PUMP: TYPE: GEAR; SIZE: 11 MM; CAPACITY: 8.8 L/MIN; SPEED: 3800 RPM; RATING: 7.6 CM3; CASING MATERIAL: PLASTIC/STL; OEM P/N: GHPP-D11, OEM: MARZOCCHI"]
["0620403","PUMP, ROTARY: TYPE: VANES; PORT SIZE: 1 X 1-1/2 IN; CAPACITY: 29 CM3; SPEED: 980 RPM; RATING: 21 MPA; DRIVER: ELECTRIC MOTOR; APPLICATION: GENERATOR; MOUNT: FOOT; OEM P/N: A10VO28DR/31R-PPC12N00M; DRAWING NO: M680-5V7129CP2 REV 0; REXROTH"]
["0773313","PUMP: TYPE: HYDROSTATIC PRESSURE TESTING UNIT; SIZE: 2.2 KW; CAPACITY: 11 L/MIN; SPEED: 1450 RPM; RATING: 0 - 100 BAR; SPECIFICATION: PUMP MODEL : NHDP1115R; MANUF P/N: 8H-T2-11-100"]
["0767475","PUMP: TYPE: GEAR PUMP; SIZE: 1½ IN; CAPACITY: 8 M3/HR; SPEED: 420 RPM; RATING: 5 HP; APPLICATION: OIL STORAGE BULK TANKS; MODEL NO:"]
["0239820","ASSEMBLY: TYPE: LUBE OIL PUMP; DIMENSIONS: DIA 158 MM; SUPPL P/N: NSS V50-160; REFERENCE NO: W-69-T-1330-GL112; 7045803; SPEED 2100 RPM, NSPH 1.6 M"]
["0045263","PUMP, ROTARY: TYPE: SCREW; PORT SIZE: 80 MM; CAPACITY: 272 L/MIN; SPEED: 1450 RPM; RATING: 5 BAR; DRAWING NO: 6520000-001 REV 1; CIRCULATING OIL, OVERALL LENGTH 670 MM, FLANGE TO FLANGE 302 MM"]
["0624686","PUMP: TYPE: GEAR; SIZE: 50 MM; CAPACITY: 48 L/MIN; SPEED: 3000 RPM; RATING: 33 CM3; CASING MATERIAL: PLASTIC/STL; MANUF P/N: GPHA3-D-50"]
["0045267","PUMP: TYPE: HYDRAULIC OIL; CAPACITY: 3.8 CM3/STR; RATING: 173 KG/CM2; DRIVER: HAND OPERATED; REFERENCE NO: RT-67-1"]
["0177401","PUMP, ROTARY: TYPE: GEAR; PORT SIZE: 90 MM; CAPACITY: 400 L/MIN; SPEED: 960 RPM; RATING: 490 KPA; REFERENCE NO: K6Q700082; DRIVER 380 VAC 15.5 A 3PH 50 HZ 7.5 KW"]
["0755878","PUMP: TYPE: ETANORM 150-125-315 GB10; SIZE: 305 MM; CAPACITY: 216 M3/HR; SPEED: 147 RPM; RATING: 216 M3/HR; DRIVER: 21.71 KW; POTENTIAL: 380 V; APPLICATION: CIRCULATING WATER IN CHILLER PLANT; SUPPL P/N: 9974643299/100/2; P/N TYPE:"]
["0731981","PUMP: TYPE: HYDRAULIC HAND PUMP; SIZE: 2200 CM3; CAPACITY: CYLINDER STROKE 25.4 MM; SPEED: 2 RPM; RATING: 700 BAR"]
["0046406","SHAFT, PUMP: LENGTH: 493 MM; MATERIAL: STL; NOMINAL DIAMETER: 20 MM; END STYLE 1: DIA 24 X SLOT 8 MM; END STYLE 2: DIA 16 X THD 1.5 MM; SUPPL P/N: 210; FOR K.S.B. ETA-B40- 26AK CENTRIFUGAL PUMP; IMPELLER DIA. 238MM"]
["0695456","PUMP, ASSEMBLY: TYPE: GEAR PUMP; APPLICATION: LUBRICATION; OEM P/N: 063543; J.P. SAUER & SOHN WP6310 COMPRESSOR; VENDORS ARE RESPONSIBLE FOR ENSURING THAT THEY ARE PERFORMING AGAINST THE CORRECT DRAWING REVISION NUMBER (IF APPLICABLE)."]
["0764619","PUMP: TYPE: CENTRIFUGAL; SIZE: BS2400.402 HT243 ACRE; CAPACITY: 25 L/S; SPEED: 2960 RPM; RATING: 90 KW , 380V, 155A ACRE; REFERENCE NO: BS2400.402 HT243"]
["0772878","KIT: TYPE: ACCESORIES; APPLICATION: SUBMERSIBLE PUMPS; COMPRISING: 50 MM X 500 MM - GALVANISED PIPE , CAMLOCK ADAPTOR (2\") A200 50MM , CAMLOCK TAIL (2\") C200 50MM , SUCTION HOSE SMOOTH 50MM BLUE 30 METRES"]
["0568041","PUMP: TYPE: HEAD PERISTALTIC; SIZE: 4 MM; CAPACITY: 300 CM3/HR; SPEED: 5 RPM; RATING: 1 KPA; DRIVER: ELECTRIC MOTOR; CASING MATERIAL: PLASTIC; MANUF P/N: 90P1030; USED ON CEMS SYSTEM"]
["0177522","PUMP, ROTARY: TYPE: SCREW; PORT SIZE: 70 X 60 MM; CAPACITY: 251 L/MIN; SPEED: 1475 RPM; RATING: 64 BAR; DRIVER: ELECTRIC MOTOR 68 A 35 KW; APPLICATION: TURBINE OIL TANKS; SPECIFICATION: IP54; REFERENCE NO: SMBA280R46U9W2"]
["0725185","PUMP: TYPE: SUBMERSIBLE; SIZE: 80 MM; CAPACITY: 12 L/S; SPEED: 2905 RPM; RATING: 11 KW; POTENTIAL: 400 V; FURNISHED ITEMS: 30M CABLE; CASING MATERIAL: HARD IRON; SUPPL P/N: NP 3153.181 SH 273; WET PIT(P): SEMI PERMANENT, SUBMERSIBLE PUMP INSTALLATION. WET PIT ARRANGEMENT WITH THE PUMP INSTALLED; CABLE TO BE CONTINUOUS AND NOT JOINT; PUMP PERFORMANCE TEST RESULTS TO BE SUPPLIED UPON DELIVERY.OPERATIONS AND MAINTENANCE INSTRUCTION MANUALS TO BE SUPPLIED UPON DELIVERY"]
["0767237","PUMP, CENTRIFUGAL: NPSH: 0 M; CAPACITY: 172 M3/S; TOTAL HEAD: 35 M; SIZE: 35 MM; SPEED: 2900 RPM; STAGE: 1; DRIVER: 30KW; TYPE: NT80-200/02; MOUNT: FOOT; SHAFT DIAMETER: 0 ACRE; MANUF P/N: S.6056426; TYPE: NT80-200/02 DIA192 U3.20D-W119,"]
["0659604","ASSEMBLY: TYPE: OIL PUMP; APPLICATION: INLET VALVE PUMP; DIMENSIONS: LG 1300 X HT 650 MM; MATERIAL: STEEL; COMPRISING: MOTOR AND PUMP; OEM P/N: IVP6-125 101, OEM: VOITH TURBO; MOTOR SPECIFICATIONS: KUENLE KDGN2W, 55 KW, 3 PHASE, 400/690 V, 1480 RPM, S1, IP55, ISO F, 0.87 ACOS, VOITH MAT NO 250.00871710, 250 M 4 KT NV IE2; COUPLING SPECIFICATIONS: R+L HYDRAULICS RV550/265/3/0/DV400/83; PUMP SPECIFICATIONS: VOITH IVP 6-125 101, SERIAL NUMBER 0020096460/1403, MATERIAL H56.995120; EXTENSION HOUSING SPESIFICATIONS: TYPE 55 KW-B35/IPV6-125 101, MATERIAL 250.01204710, SERIAL NUMBER 20096970/1408; STANDARD ISO 9001"]
["0779152","PUMP: TYPE: SUBMERSIBLE BOREHOLE; SIZE: 350 MM; CAPACITY: 180 L/S; SPEED: 3500 RPM; RATING: 205 KW; DRIVER: ELECTRICAL; POTENTIAL: 3300 V; APPLICATION: PALMIET EMERGENCY PUMP; MANUF P/N: UPA 350-180/2 + UMA 300-205 LV22 3300V"]
["0049532","PUMP, ROTARY: TYPE: HYDRAULIC DOUBLE SCREW; PORT SIZE: 50 MM; CAPACITY: 520 L/MIN; SPEED: 2920 RPM; RATING: 60 BAR; REFERENCE NO: LB 17-80/80-E-C; POWER INPUT 54 KW, PUMPING LIQUID: HYDR.OIL VISCOSITY 38 DEG E, OPERATING TEMPERATURE: 50 DEG C"]
["0684709","PUMP: TYPE: DOSING; SIZE: 0-10 BAR; CAPACITY: 0-10 BAR, 11 WATTS; SPEED: VARIABLE; RATING: 10 BAR, FLOW RATE 3 L/HOUR; DRIVER: INCLUDED; SPECIFICATION: ISO; POTENTIAL: 220-240 VAC; CASING MATERIAL: PVC; APPLICATION: DOSING; SUPPL P/N: 208-3.0-10000"]
["0736849","PUMP: TYPE: CENTRIFUGAL; SIZE: 45375-048; CAPACITY: 0.097 M3/S; SPEED: 1479 RPM; RATING: 270 KPA; DRIVER: MOTOR; SPECIFICATION: BS 4891; POTENTIAL: 380 V; CASING MATERIAL: CAST STEEL; APPLICATION: AC LUB OIL PUMP; SUPPL P/N: 45375 048; SCOPE OF WORK/REPAIR,STRIP AND ASSESSMENT, NEW GASKET AND BOLTS. REPLACE IMPELLER WITH OEM SUPPLY,REPLACE WEAR RINGS WITH OEM SUPPLY. REFURBISH THRUST JOURNAL BEARING AND RE-COAT WHITE METAL BEARING TO OEM SPECIFICATION. SUPPLY NEW FLEXIBLE SHAFT, REBURBISH STUB SHAFT AND PUMP HOUSING. ENGINEERING SERVICES AND TESTING"]
["0781519","PUMP: TYPE: SUBMERSIBLE; SIZE: 80 MM; CAPACITY: 136 M3/HR; SPEED: 1405 RPM; RATING: 2 KW; FURNISHED ITEMS: 460 IMPELLER; CASING MATERIAL: CAST IRON GREY; APPLICATION: SEWAGE PUMP; MANUF P/N: 3085.160; 10 METER UNJOINTED ELECTRIC SUPPLY CABLE NEEDED ON DELIVERY OF THIS PUMP , FOR SAFE SUBMERGING OF PUMP"]
["0553136","PUMP: TYPE: PERISTALLIC DRAIN; SIZE: DN4/6; CAPACITY: 300 CM3/HR; SPEED: 5 RPM; RATING: 200-2200 MBAR; DRIVER: ELECTRICAL MOTOR; SPECIFICATION: EN61010/50081/50082; POTENTIAL: 230 VAC; APPLICATION: OEMS CONDENSOR; MANUF P/N: SR25.2-W(01P1307); ENCLOSURE RATING: IP52; TEMP RATING: MAX 60 DEG C; TUBE CONNECTIONS: DN4/6 MM; M AND C; 230 VAC WITH CONNECTION TERMINALS FOR SURFACE AND WALL MOUNTING; IP10 EN60529; REPLACING SR25.1 P/N1P1000"]
["0045268","PUMP, ROTARY: TYPE: INTERNAL GEAR; PORT SIZE: 48 MM; CAPACITY: 63 CM3/REV; RATING: 160 KG/CM; DRIVER: MOTOR; REFERENCE NO: 866371; QT52-63A"]
["0779151","PUMP: TYPE: VERTICAL TURBINE; SIZE: 10 IN; CAPACITY: 100 L/S; SPEED: 1486 RPM; RATING: 185 KW; DRIVER: ELECTRICAL MOTOR G&C; SPECIFICATION: GA H14 VTLC 5 STAGE; POTENTIAL: 3300 V; APPLICATION: PALMIET DEWATERING PUMP; 4 POLE MOTOR COUPLING F140"]
["0767574","PUMP: TYPE: CENTRIFUGAL PUMP; SIZE: 12x10x17 IN; CAPACITY: 300 - 400 L/S; SPEED: 1480 RPM; RATING: 400 V; DRIVER: 110 KW; APPLICATION: MAIN COOLING WATER SYSTEM; MODEL NO: PWO 12X10X17 / P12/ 10-17"]
["0041760","PUMP, ROTARY: TYPE: OIL GEAR; PORT SIZE: 22 X 16 MM"]
["0658356","ASSEMBLY: TYPE: OIL PUMP; APPLICATION: INLET VLV CTRL; DIMENSIONS: LG 1070 X HT 540 MM; MATERIAL: STEEL; COMPRISING: MOTOR AND PUMP; B35 DF; IPV5-64 171 EXTENSION PIECE; MOTOR SPECIFICATIONS: REFERENCE NUMBER 5013480609-1; PHASE 3; INSULATION CLASS F; ENCLOSURE RATING IP 55, FRAME IM B35 (400); POWER 30 KW; VOLTAGE 400/690 V; POWER FACTOR 0.86; AMPERAGE 54.6/31.5A; SPEED 1465 RPM; ARTICAL NUMBER 250-00705410; KUENLE; STANDARD ISO 9001"]
["0739173","PUMP, CENTRIFUGAL: NPSH: 1 M; CAPACITY: 30 L/S; TOTAL HEAD: 80 M; SIZE: 6 IN; SPEED: 1450 RPM; STAGE: 7; TYPE: VERTICAL CENTRIFUGAL SUMP PUMP; MOUNT: FLANGE; MANUF P/N: M10 VTLV ; A. TYPE: VERTICAL TURBINE CENTRIFUGAL PUMP; B. RATED FLOW AND HEAD: 30L/S AT 78M HEAD; C. PUMP PRESSURE RANGE: 71M TO 78M; D. TOTAL PUMP LENGTH MUST BE BETWEEN 9000MM AND 9130 MM; E. IMPELLER BOWLS (CAST IRON), COLUMNS AND DISCHARGE CONNECTION HEAD MATERIAL CARBON STEEL; F. PUMP CONNECTING SHAFTS MATERIAL CARBON STEEL; G. PUMP CONNECTING SHAFT SOCKET / NUT MATERIAL CARBON STEEL; H. PUMP DISCHARGE HEAD SEALING ARRANGEMENT GLAND PACKING ASBESTOS FREE MATERIAL; I. THE IMPELLER IS CAST (STAINLESS STEEL 316) IN ONE PIECE WITH WEAR RINGS FOR EASY MAINTENANCE OF RUNNING CLEARANCES; J. CORROSION SPECIFICATION AS PER OEM RECOMMENDED SPECIFICATION FOR REVIEW AND ACCEPTANCE BY ESKOM. CORROSION PROTECTION APPLIED TO THE IMPELLER BOWLS, SHAFTS, COLUMNS AND DISCHARGE CONNECTING HEAD; K. THE PUMPS ARE PROVIDED WITH RENEWABLE WEAR RINGS; L. THE PUMPS ARE PROVIDED WITH INTAKE SCREENS; M. ALL BEARINGS SHALL BE DESIGNED FOR A MINIMUM LIFE OF 100 000 HOURS WITH CONTINUOUS OPERATION AT MAXIMUM RADIAL AND AXIAL LOADS; N. ALL PUMPS SHALL HAVE A PERMANENTLY ATTACHED CORROSION RESISTANT NAMEPLATE, DETAILING THE NAME, MANUFACTURER, MODEL NUMBER, MODEL TYPE, BEARINGS SPECIFICATIONS, HEAD, HEAD RANGE, SIZE, DISCHARGE FLOW RATE, DIRECTION OF ROTATION ETC. MOUNTED TO THE DISCHARGE HEAD; O. WARRANTY ON THE PUMP IS MINIMUM 1 YEAR ON DELIVERY OR 6 MONTHS AFTER INSTALLATION WHICHEVER IS LONGER; P. THE CONTRACTOR SUPPLIES EACH PUMP TO THE FOLLOWING DISCHARGE HEAD DIMENSIONAL SPECIFICATION FOR INTERFACE WITH THE EXISTING COMPONENTS. IF THE DIMENSIONS DISCHARGE HEAD CANNOT MEET THE SPECIFICATION, ADAPTORS MUST BE SUPPLIED TO INTERFACE THE PUMP WITH THE EXISTING PIPING AND HEAD BASE PLATE;"]
["0781495","PUMP, CENTRIFUGAL: NPSH: 1 M; CAPACITY: 85 M3/HR; TOTAL HEAD: 100 M; SIZE: 65 MM; SPEED: 3900 RPM; STAGE: 1 ACRE; DRIVER: ELECTRICAL MOTOR; MANUF P/N: 0655-050-315/2P GC 10B0; PUMP RATED POWER : 35.89 KW , INCLUDES ELECTRICAL MOTOR : MOTORELLI : VOLTS :400/690 , FRAME : Y3 225S/M-2 B3 PTC , 45KW  ,50 HZ  , RPM 2960"]
["0752355","PUMP: TYPE: HAND; SIZE: R1/2 IN; CAPACITY: 12 L; SPEED: 45 RPM; RATING: 60 BAR; MANUF P/N: RP505; ROTHENBERGER RP 50S MANUAL PRESSURE TESTING PUMP"]
["0041582","PUMP: TYPE: CIRCULATING WATER; SIZE: 24 MM; SPEED: 1750-2490 RPM; DRIVER: ELECTRIC MOTOR 220 VAC 1 PH 50 HZ; REFERENCE NO: 2-130B; BF1714310; FOR DIESEL GENERATOR, 3 SPEED A 0.39 WIND 85, R/MIN 2490, A 0.26 WIND 58, R/MIN 2190, A 0.18 WIND 37 R/MIN 1750"]
["0767484","PUMP, CENTRIFUGAL: NPSH: 5.24 M; CAPACITY: 108.6 M3/S; TOTAL HEAD: 63.30 M; SIZE: CP 80 - 216 ACRE; SPEED: 2950 RPM; STAGE: 1; TYPE: CENTRIFUGAL PUMP; MOUNT: HORIZONTAL; MODEL NO:"]
["0772689","PUMP: TYPE: SUBMERSIBLE; SIZE: 2 IN; CAPACITY: 100 TO 800 L/MIN; SPEED: 2800 RPM; RATING: 400 VAC; CASING MATERIAL: AISI 304; DW VOX 300. OPERATING INSTRUCTIONS AND MAINTENANCE MANUAL AS WELL AS TEST CERTIFICATES TO BE SUPPLIED ON DELIVERY.PLEASE PROVIDE 30M LONG POWER SUPPLY CABLE UPON DELIVERY."]
["0781520","PUMP, CENTRIFUGAL: NPSH: 1 M; CAPACITY: 0.3 M3/HR; TOTAL HEAD: 61.184 M; SIZE: 80 MM; SPEED: 2940 RPM; STAGE: 1 ACRE; DRIVER: ELECTRICAL MOTOR 380V 15KW; MOUNT: B3; MANUF P/N: 32-26; MOTOR FRAME 160M , HALBERG"]
["0045270","PUMP, RECIPROCATING: TYPE: PISTON RADIAL; SIZE: 28 X 18 MM; DRIVER: MOTOR; REFERENCE NO: M096-84176220/23P7; PC-1A-5-10; MFG.700, SHAFT DIA 10 MM LG 38 MM"]
["0760054","PUMP: TYPE: NSSV80-250 ∅ 226; SIZE: W69-T-1230/225M-2; CAPACITY: 96-164 M3/HR; SPEED: 2900 RPM; RATING: 205 BAR; DRIVER: 33.8 KW"]
["0683236","PUMP: TYPE: MONO; SIZE: VARIOUS; CAPACITY: 13.4 M3/HR; SPEED: 1430 RPM; RATING: 10 BAR; DRIVER: ELECTRIC MOTOR; POTENTIAL: 380 V; CASING MATERIAL: CAST STEEL; APPLICATION: STATION SEWAGE PLANT; MODEL NO: C62M"]
["0045269","PUMP, RECIPROCATING: TYPE: PISTON RADIAL; SIZE: 45 X 30 MM; DRIVER: MOTOR; DRAWING NO: M096-84176221/23P4 REV 1; REFERENCE NO: PC-2A-30-10; PC SERIES"]
["0767234","PUMP, CENTRIFUGAL: NPSH: 2.5 M; CAPACITY: 68 M3/HR; TOTAL HEAD: 14.6 M; SIZE: 133 MM; SPEED: 2900 RPM; STAGE: 1; TYPE: NSSV65-160; SHAFT DIAMETER: 0 ACRE; MANUF P/N: R.6001147; TYPE: NSSV65-160 DIA 133 W69-T-1330/132S-M,NR. R.6001147,Q:68 M3/H, H:14.6 M, N:2900 1/MIN, P:4.95 KW, NPSH:2.5 M, DENSITY:0.841 KG/DM3, VELOCITY:13.9 MM2/S"]
["0767604","PUMP: TYPE: CENTRIFUGAL PUMP; SIZE: 10x8x17 IN; CAPACITY: 200 - 400 L/S; SPEED: 980 RPM; RATING: 380 V; DRIVER: 55 KW; APPLICATION: COMMON SERVICES COOLING SYSTEM; MODEL NO:"]
["0250735","PUMP, CENTRIFUGAL: NPSH: 4.1 M; CAPACITY: 124 M3/HR; TOTAL HEAD: 1.091 KM; SPEED: 2980 RPM; STAGE: 13; DRIVER: ELECTRIC MOTOR; TYPE: FUEL OIL INJECTION; MOUNT: BASE"]
["0779201","PUMP, CENTRIFUGAL: NPSH: 1 M; CAPACITY: 150 L/S; TOTAL HEAD: 22 M; SIZE: 8 x 6 IN; SPEED: 1450 RPM; STAGE: 1 ACRE; DRIVER: ELECTRICAL MOTOR; TYPE: F8B4; SPECIFICATION: 8X6-15; 45 KW MOTOR"]
["0779150","PUMP: TYPE: VERTICAL TURBINE; SIZE: 6 IN; CAPACITY: 35 L/S; SPEED: 1482 RPM; RATING: 45 KW; DRIVER: ELECTRICAL MOTOR WEG; SPECIFICATION: VTP 12 CC 9 STAGE; POTENTIAL: 380 V; APPLICATION: PALMIET SUMP SEEPAGE PUMP"]
["0767474","PUMP: TYPE: SINE CURVE GEAR PUMP; SIZE: 125 MM; CAPACITY: 5000 L/S; SPEED: 725 RPM; RATING: 75 KW; APPLICATION: THRUST GUIDE BEARING OIL SYSTEM; DRAWING NO:"]
["0023664","PUMP, ROTARY: TYPE: GEAR; CAPACITY: 220 GAL/MIN; SPEED: 960 RPM; RATING: 28.44 LB; REFERENCE NO: EP8360455; ENCLOSED PORT SIZE; OIL CIRC GEN BEARING"]
["0781990","PUMP: TYPE: HORIZONTAL SPLIT; SIZE: 10 -12 IN; CAPACITY: 135 L/S; SPEED: 1485 RPM; RATING: 6 BAR; DRIVER: 3.3 KV ELECTRIC MOTOR; APPLICATION: PALMIET ELECTRIC FIRE PUMP; MANUF P/N: HSM10/12"]
["0587283","STATOR, PUMP: TYPE: SCREW; DIMENSIONS: DIA 57 X LG 210 MM; MATERIAL: STEEL/VITON RUBBER; MANUF P/N: 113011 0053D; SEEPEX BN1-6L; VENDORS ARE RESPONSIBLE FOR ENSURING THAT THEY ARE PERFORMING AGAINST THE CORRECT DRAWING REVISION NUMBER (IF APPLICABLE)."]
["0767572","PUMP: TYPE: LB 17; SIZE: J-80/80-E-C ACRE; CAPACITY: 530 L/MIN; SPEED: 2900 RPM; RATING: 59.9 KPA; APPLICATION: GORVENOR OIL SYSTEM; MODEL NO:"]
["0623907","PUMP, ROTARY: TYPE: 2 STG BIDIRECTIONAL HYDRAULIC; PORT SIZE: 1-1/4 X 1 IN; CAPACITY: 62 L/MIN; SPEED: 2800 RPM; RATING: 44 CM3; DRIVER: MOTOR; APPLICATION: SURGE CHAMBER HOIST; MOUNT: FLANGE; COMPRISING OF ONE GHPA3A-R-66-S2-D-E3-RF2224 AND ONE GHPP3-R-66-D-E1; CROSS HYDRAULICS"]
["0570352","PUMP: TYPE: PISTON; SIZE: 1 IN; CAPACITY: 59.4 L/MIN; SPEED: 1500/3300 RPM; RATING: 350 BAR; DRIVER: MOTOR; SPECIFICATION: A10 VS/018/31; APPLICATION: HYDRAULIC OIL SKID; MANUF P/N: A10 VS0 18; REFERENCE NO: R910949268"]
["0646932","PUMP: TYPE: HAND; SIZE: 3/4 IN; CAPACITY: VARIABLE; SPEED: 0-100 PCT; RATING: PN10; DRIVER: HAND OPERATED; SPECIFICATION: ISO 9001; CASING MATERIAL: CI; APPLICATION: INLET VALVE CONTROL"]
["0763617","ASSEMBLY: TYPE: NB80-200/02 Ø192; APPLICATION: COOLING WATER PUMP; OEM P/N: D-78315; TYPE: NB80-200/02 Ø192; U3.20D-W119-55/400,NR. :R.6009079,Q: 172M³/H; H:35MM; N:2900 1/M; P:23.1KW; V:0.65MM²/S,0.992KG/DM³"]
["0045264","PUMP: TYPE: LUBRICATION TRANSFER; SIZE: 15 MM; CAPACITY: 1030 CM3/HR; SPEED: 910 RPM; RATING: 300 BAR; DRIVER: ELECTRIC MOTOR 220/380 V AC; DRAWING NO: 799-000-2557C REV 1; GREASE TANK CAPACITY 30 KG, HR.ON 6 OUTLETS, TYPE OF ENCLOSURE: ISY, INSULATION CLASS: F, OVERALL DIMENSIONS HG 773 MM, DIA 35 MM AT PIONT"]
["0644796","MOTOR: TYPE: PUMP MOTOR; RATING: 2/3 MIN; SPECIFICATION: ABB BREAKER HECS-805; SUPPL P/N: GPFX052220R0002; VOLTAGE 220-250 VDC; POWER 660W"]
["0754580","PUMP: TYPE: AUX SUBMERSIBLE; SIZE: H991 X D500 MM; CAPACITY: 160 M3/HR; SPEED: 2895 RPM; RATING: 18 KW; APPLICATION: AUXILARY SUMP PUMP; SUPPL P/N: BS2870HT 3~251 FLYGT; BS2870HT3- 251, SUBMERSIBLE PUMP, HIGH HEAD, 18 KW 3-PHASE, 400 VOLT, 2895RPM"]
["0637419","PUMP: TYPE: HYDRAULIC GEAR; SIZE: 4.09 IN; CAPACITY: 2.7 GAL/MIN; SPEED: 3000 RPM; RATING: 138 BAR; SPECIFICATION: SAE; CASING MATERIAL: AL DIE CAST; MODEL NO: 705089; REFERENCE NO: D27X2905; OPERATING TEMPERATURE RANGE: -40 TO 185 DEG F"]
["0772690","PUMP: TYPE: SUBMERSIBLE; SIZE: 2 IN; CAPACITY: 100 TO 700 L/MIN; SPEED: 2800 RPM; RATING: 1.1 KW; CASING MATERIAL: AISI 304; DW M 150 A_230_SINGLE PHASE . OPERATING INSTRUCTIONS AND MAINTENANCE MANUAL AS WELL AS TEST CERTIFICATES TO BE SUPPLIED ON DELIVERY.PLEASE PROVIDE 20M POWER SUPPLY CABLE UPON DELIVERY."]